{"text_format":"1","workbook":"xlsx","n_sheets":12,"sheets":["HOME","Applicant Info","Checklist","Terms & Conditions","Multi-Facility","Income Qualifier Directory","Lighting","Lighting SOW","HVAC & Smart Thermostats","Motors, VSDs & Pool Pumps","Windows","Custom"],"not_rendered":{"charts":0,"images":51,"macros":1,"external_links":2,"defined_names":119,"comments":4,"pivot_tables":0},"unopened":[],"bounds":{"document_bytes":16777216,"sheet_cells":100000,"rows_first":2000,"rows_last":500,"rows_between":2000,"halvings":0,"cell_chars":16384,"cell_head_chars":4096},"cells_cut":0,"cells_raw":0,"read":"whole","date_system":"1900"}

{"sheet":"HOME","index":0,"n_rows":42,"n_cols":11,"rows_kept":42,"cut":false,"hidden":false,"merged":[[27,9,27,12],[39,5,39,7],[19,5,19,8],[24,1,28,3],[25,5,25,8],[19,1,21,3],[20,5,22,8],[26,5,34,8],[38,0,38,8],[0,0,1,2],[0,3,0,8],[1,3,1,8],[16,1,16,2],[17,0,17,4],[16,4,16,5],[16,7,16,8],[2,0,15,8],[41,5,41,8],[29,1,33,3],[23,5,23,8],[40,5,40,8],[37,5,37,8],[36,5,36,8],[35,0,35,3],[37,0,37,3],[40,0,41,2],[40,3,41,4]]}
[null,null,null,"2020 v2 Multifamily Application"]
[null,null,null,"PNM Business Energy Efficiency Programs",null,null,null,null,null,null,"Add comments below:"]
["Why improve energy efficiency?"]
[]
[]
[]
[]
[]
[]
[]
[]
[]
[]
[]
[]
[]
[null,"Directly improves profitability by cutting operating costs",null,null,"Distinguishes your business as an energy efficiency steward in the community",null,null,"Qualifies your business for rebates that can cover portions of the upgrade cost"]
["Application Process",null,null,null,null,"Click on a quick link below:"]
[]
["1.","Submit a Pre-Notification Application to reserve funding (if required).",null,null,null,"Administrative"]
[]
[]
["2.","Install the qualified technology."]
[]
["3.","Complete, sign and submit Final Application with all required documentation within 6 months of project completion."]
[null,null,null,null,null,"Worksheets"]
[]
[]
[]
["4.","The incentive check will be sent 4 to 6 weeks after approval of the Final Application."]
[]
[]
[]
[]
[]
[]
[]
[]
["Contact Our PNM Business Energy Efficiency Team"]
[]
["320 Gold Avenue SW, Ste 500 Albuquerque, NM 87102",null,null,"(505) 938-9400 Main                                  (505) 938-9401 Fax",null,"energyefficiency@pnm.com"]
[null,null,null,null,null,"www.pnmenergyefficiency.com"]

{"sheet":"Applicant Info","index":1,"n_rows":89,"n_cols":17,"rows_kept":89,"cut":false,"hidden":false,"merged":[[76,5,76,6],[76,7,76,8],[44,6,44,10],[52,9,52,10],[52,0,52,4],[52,5,52,8],[65,0,65,4],[64,0,64,4],[66,0,66,4],[62,0,62,10],[53,5,53,8],[53,0,53,4],[51,0,51,10],[68,7,68,10],[67,7,67,10],[53,9,53,10],[67,0,67,4],[48,4,48,5],[47,4,47,10],[48,0,48,3],[49,0,49,3],[47,0,47,3],[49,4,49,10],[46,8,46,10],[65,5,65,6],[69,0,69,4],[58,0,58,10],[63,0,63,10],[50,8,50,10],[69,7,69,10],[66,5,67,6],[61,0,61,10],[57,0,57,10],[68,0,68,4],[64,7,64,10],[65,7,65,10],[66,7,66,10],[50,4,50,5],[59,0,59,10],[60,0,60,10],[55,0,55,10],[56,0,56,10],[9,0,9,10],[18,0,18,5],[35,0,35,3],[41,7,42,10],[34,4,34,10],[24,6,24,10],[30,0,30,3],[35,9,35,10],[33,0,33,10],[35,4,35,5],[19,0,19,5],[26,8,26,10],[32,4,32,5],[32,0,32,3],[21,6,21,10],[25,6,25,10],[21,0,21,5],[28,0,28,3],[26,6,26,7],[29,4,29,5],[25,0,25,5],[26,3,26,5],[23,6,23,10],[22,6,22,10],[0,3,0,8],[3,0,3,5],[3,6,3,8],[32,8,32,10],[29,6,29,7],[31,0,31,3],[31,4,31,5],[31,6,31,7],[30,4,30,10],[20,6,20,10],[7,0,7,1],[10,0,10,5],[0,9,0,10],[6,7,6,8],[5,7,5,8],[10,6,10,8],[28,4,28,10],[29,0,29,3],[27,4,27,10],[22,0,22,5],[23,0,23,5],[20,0,20,5],[7,7,7,8],[5,2,5,3],[86,5,86,6],[87,5,87,6],[88,5,88,6],[35,6,35,8],[38,0,38,3],[38,4,38,5],[27,0,27,3],[34,0,34,3],[24,0,24,5],[43,4,43,10],[43,0,43,3],[46,3,46,5],[39,0,39,10],[36,0,36,3],[36,4,36,10],[38,6,38,7],[37,0,37,3],[37,4,37,10],[44,0,44,5],[46,6,46,7],[45,0,45,5],[45,6,45,10],[76,1,76,4],[48,6,48,7],[77,5,77,6],[78,5,78,6],[79,5,79,6],[80,5,80,6],[81,5,81,6],[82,5,82,6],[83,5,83,6],[84,5,84,6],[85,5,85,6],[86,7,86,8],[87,7,87,8],[88,7,88,8],[77,7,77,8],[78,7,78,8],[79,7,79,8],[80,7,80,8],[81,7,81,8],[82,7,82,8],[83,7,83,8],[84,7,84,8],[85,7,85,8]]}
[null,null,null,"APPLICANT INFORMATION",null,null,null,null,null,"For office use only:"]
[null,null,null,null,null,null,null,null,null,"Application #","Revision #"]
[]
["Application Type:",null,null,null,null,null,"Check ONE box below:"]
[]
[null,null,"Retrofit",null,null,null,null,"Pre-Notification",null,"Date",null,null,null,null,null,{"$f":"IF(G6>0,\"Yes\",)","v":0}]
[null,null,null,null,null,null,null,"or"]
[null,null,null,null,null,null,null,"Final Application",null,"Date",null,null,null,null,"New pre notification checkbox flag:",false]
[]
["Customer Information",null,null,null,null,null,null,null,null,null,null,null,null,null,"Multifacility checkbox flag:",false]
["PNM Account Number where measures installed* ",null,null,null,null,null,null,null,null,null,null,null,null,null,"SOW Checkbox",false]
[null,null,null,null,null,null,null,null,null,null,null,null,null,null,null,true]
[null,null,"This Application represents multiple accounts / premises",null,null,null,"Enter number of Accounts / Premises ------->",null,null,null,null,null,null,{"$f":"is","v":{"$error":"#NAME?"}},"IQ Checkbox",false]
[null,null,"2. If yes: Complete Multi-Facility Worksheet -------> CLICK HERE"]
[null,null,"This project includes lighting measures as part of the scope"]
[null,null,"Scope  of Work is REQUIRED for Lighting measures ----> Click Here"]
[null,null,"Income Qualifier"]
[null,null,"Check if your property qualifies for an Income Qualifier Bonus----> Click here "]
["Building Type*"]
[{"$f":"M21","v":"Multifamily "},null,null,null,null,null,null,null,null,null,null,null,"Business Type",null,"Tax Status",null,"State"]
["Name of Property Owner*",null,null,null,null,null,"Name Exactly as it Appears on Your Utility Bill*",null,null,null,null,null,"Multifamily ",null,"Corporation (Inc, PC, etc.)",null,"AL"]
[null,null,null,null,null,null,null,null,null,null,null,null,null,null,"Government Agency",null,"AK"]
["Name of Property Manager*",null,null,null,null,null,"Name of Multifamily Property*",null,null,null,null,null,null,null,"Individual",null,"AZ"]
[null,null,null,null,null,null,null,null,null,null,null,null,null,null,"Partnership",null,"AR"]
["Name of Contact Person*",null,null,null,null,null,"Title*",null,null,null,null,null,null,null,"Exempt",null,"CA"]
[null,null,null,null,null,null,null,null,null,null,null,null,null,null,null,null,"CO"]
["Telephone #*",null,null,null,null,null,"Fax #",null,null,null,null,null,null,null,null,null,"CT"]
["Email Address*",null,null,null,null,null,null,null,null,null,null,null,null,null,null,null,"DE"]
["Address Where Measures Installed*",null,null,null,null,null,null,null,null,null,null,null,null,null,null,null,"FL"]
["City Where Measures Installed*",null,null,null,null,null,"State*",null,{"$f":"IF(E30=\"\",\"\",\"NM\")","v":""},"Zip*",null,null,null,null,null,null,"GA"]
["Mailing Address*",null,null,null,null,null,null,null,null,null,null,null,null,null,null,null,"HI"]
["City*",null,null,null,null,null,"State*",null,null,"Zip*",null,null,null,null,null,null,"ID"]
["Taxpayer ID Number (SSN/FEIN)*",null,null,null,null,null,"Tax Status*",null,null,null,null,null,null,null,null,null,"IL"]
["Contractor Information",null,null,null,null,null,null,null,null,null,null,null,null,null,null,null,"IN"]
["Contracting Company*",null,null,null,null,null,null,null,null,null,null,null,null,null,null,null,"IA"]
["Contractor Name*",null,null,null,null,null,"Contractor Phone Number*",null,null,null,null,null,null,null,null,null,"KS"]
["Contractor Email Address*",null,null,null,null,null,null,null,null,null,null,null,null,null,null,null,"KY"]
["Contractor Mailing Address*",null,null,null,null,null,null,null,null,null,null,null,null,null,null,null,"LA"]
["City*",null,null,null,null,null,"State*",null,null,"Zip*",null,null,null,null,null,null,"ME"]
["Third Party Payment Release",null,null,null,null,null,null,null,null,null,null,null,null,null,null,null,"MD"]
[null,null,null,null,null,null,null,null,null,null,null,null,null,null,null,null,"MA"]
[null,null,"I request that the incentive check be sent to the third party below",null,null,null,null,"Check here if the third party payee is the contractor (Contractor must be a PNM Authorized Contractor to be eligible for third party payment)",null,null,null,null,null,null,null,null,"MI"]
[null,null,null,null,null,null,null,null,null,null,null,null,null,null,null,null,"MN"]
["Name of Third Party*",null,null,null,null,null,null,null,null,null,null,null,null,null,null,null,"MS"]
["Name of Third Party Contact Person*",null,null,null,null,null,"Title*",null,null,null,null,null,null,null,null,null,"MO"]
[null,null,null,null,null,null,null,null,null,null,null,null,null,null,null,null,"MT"]
["Third Party Phone #*",null,null,null,null,null,"Fax #",null,null,null,null,null,null,null,null,null,"NE"]
["Third Party Mailing Address*",null,null,null,null,null,null,null,null,null,null,null,null,null,null,null,"NV"]
["Third Party City*",null,null,null,null,null,"State*",null,null,"Zip*",null,null,null,null,null,null,"NH"]
["Third Party Email Address*",null,null,null,null,null,null,null,null,null,null,null,null,null,null,null,"NJ"]
["Third Party Taxpayer ID # (SSN/FEIN)*",null,null,null,null,null,"Tax Status*",null,null,null,null,null,null,null,null,null,"NM"]
["Incentive Summary",null,null,null,null,null,null,null,null,null,null,null,null,null,null,null,"NY"]
["Total Incentive Requested",null,null,null,null,"Total Project Cost  PRE-TAX * REQUIRED *",null,null,null,{"$f":"IF(P8=TRUE, \"Estimated Project Completion Date\", \"Project Completion Date\")","v":"Project Completion Date"},null,null,null,null,null,null,"NC"]
[{"$f":"MIN(H89, F54*0.5,400000)","v":0},null,null,null,null,null,null,null,null,null,null,null,null,null,null,null,"ND"]
[null,null,null,null,null,null,null,null,null,null,null,null,null,null,null,null,"OH"]
["Incentive requested + 20% Bonus (valid 7/1/2020-12/31/2020 ONLY) \n*Any bonus offers are a limited time only, while funds are available and can be terminated at any time at the program's discretion.",null,null,null,null,null,null,null,null,null,null,null,null,null,null,null,"OK"]
[{"$f":"MIN($H$89*1.2,$F$54*0.5,400000)","v":0},null,null,null,null,null,null,null,null,null,null,null,null,null,null,null,"OR"]
["AGREEMENT AND AUTHORIZATION",null,null,null,null,null,null,null,null,null,null,null,null,null,null,null,"PA"]
["I understand that in the event funds are reserved based on a pre-notification, the payment of incentives will be based upon the Final Application and program terms and conditions, and that the PNM Business Energy Efficiency program is subject to change or cancellation at any time and without notice. PNM is not responsible for any lost, late, stolen, ineligible, illegible, misdirected or postage-due mail. All completed submissions become the property of PNM and will not be returned. PNM makes no guarantees about the availability of products or rebate forms. By participating in the PNM Business Energy Efficiency program, customers agree to waive any claims and release PNM from any liability for damages of any kind. Rebates are funded by a charge on PNM electric customer bills.",null,null,null,null,null,null,null,null,null,null,null,null,null,null,null,"RI"]
[{"$f":"\" I,  \" &A22& \" , certify that \" &G24& \" qualifies as a ''Low-Income/Affordable Housing'' community in the State of New Mexico. \" &G24& \" participates in at least one of the following programs to qualify for the Low-Income Bonus provided by the PNM Business Energy Efficiency Programs:\"","v":" I,   , certify that  qualifies as a ''Low-Income/Affordable Housing'' community in the State of New Mexico.  participates in at least one of the following programs to qualify for the Low-Income Bonus provided by the PNM Business Energy Efficiency Programs:"},null,null,null,null,null,null,null,null,null,null,null,null,null,null,null,"SC"]
["For a property to be considered multifamily, it must consist of five or more attached dwelling units or a complex consisting of two or more buildings with four or more dwelling units within each building. \nFor a multifamily property to be considered “Income Qualified” in this program, it must be listed on the MFA Housing New Mexico website. The Income Qualified Directory is also available on a tab in this document. ",null,null,null,null,null,null,null,null,null,null,null,null,null,null,null,"SD"]
[{"$f":"\"The signature on this application authorizes \" &A24& \" to act on behalf of \" &A22& \" with the PNM Business Energy Efficiency Program. \" &A22& \" hereby designates, appoints and empowers \" &A24& \" to communicate and sign on behalf of \" &A22& \" in the PNM Business Energy Efficiency Program.\"","v":"The signature on this application authorizes  to act on behalf of  with the PNM Business Energy Efficiency Program.  hereby designates, appoints and empowers  to communicate and sign on behalf of  in the PNM Business Energy Efficiency Program."},null,null,null,null,null,null,null,null,null,null,null,null,null,null,null,"TN"]
["I have read and understand the program requirements, measure specifications, and Terms & Conditions set forth in this application and agree to abide by those requirements. Furthermore, I concur that I must meet all eligibility criteria in order to be paid under this program.",null,null,null,null,null,null,null,null,null,null,null,null,null,null,null,"TX"]
["As an eligible customer, I verify that the signature below is my own and that the information is correct. I am requesting consideration for participation under this program. By signing this agreement I attest that I understand and agree to abide by all Program terms and conditions.",null,null,null,null,null,null,null,null,null,null,null,null,null,null,null,"UT"]
["Customer Signature (PNM Customer)",null,null,null,null,null,null,"Third Party Signature",null,null,null,null,null,null,null,null,"VT"]
[null,null,null,null,null,"Please sign by hand or via DocuSign®",null,null,null,null,null,null,null,null,null,null,"VA"]
["Print Customer Name",null,null,null,null,null,null,"Print Third Party Name",null,null,null,null,null,null,null,null,"WA"]
[null,null,null,null,null,null,null,null,null,null,null,null,null,null,null,null,"WI"]
["Date",null,null,null,null,null,null,"Date",null,null,null,null,null,null,null,null,"WV"]
[null,null,null,null,null,null,null,null,null,null,null,null,null,null,null,null,"WY"]
[]
[]
[]
[]
[]
[null,null,null,null,null,null,null,null,null,null,null,null,{"$f":"(H78-F78)","v":0}]
[null,"For Office Use Only",null,null,null,"Low Income Bonus",null,"Total Incentive",null,null,null,null,0]
[null,"Retrofit Lighting Interior",null,null,null,{"$f":"Lighting!N13","v":0},null,{"$f":"Lighting!N14","v":0},null,null,null,null,0]
[null,"Lighting-LED or Fluorescent replacing HID",null,null,null,{"$f":"Lighting!J27","v":0},null,{"$f":"Lighting!L27","v":0},null,null,null,null,0]
[null,"Lighting-LED replacing Fluorescent",null,null,null,{"$f":"Lighting!J71","v":0},null,{"$f":"Lighting!L71","v":0},null,null,null,null,0]
[null,"Lighting-Controlled LED Fixures",null,null,null,{"$f":"Lighting!F115","v":0},null,{"$f":"Lighting!H115","v":0},null,null,null,null,{"$error":"#VALUE!"}]
[null,"HVAC",null,null,null,{"$f":"'HVAC & Smart Thermostats'!I43","v":0},null,{"$f":"'HVAC & Smart Thermostats'!I44","v":0},null,null,null,null,0]
[null,"Smart Thermostats",null,null,null,{"$f":"'HVAC & Smart Thermostats'!G59","v":0},null,{"$f":"'HVAC & Smart Thermostats'!G60","v":""},null,null,null,null,0]
[null,"Windows Incentive",null,null,null,{"$f":"Windows!J17","v":0},null,{"$f":"Windows!J18","v":0},null,null,null,null,0]
[null,"Motors Incentives",null,null,null,{"$f":"'Motors, VSDs & Pool Pumps'!I36","v":0},null,{"$f":"'Motors, VSDs & Pool Pumps'!I37","v":0},null,null,null,null,0]
[null,"Pool Pumps Incentive",null,null,null,{"$f":"'Motors, VSDs & Pool Pumps'!J47","v":0},null,{"$f":"'Motors, VSDs & Pool Pumps'!J48","v":0},null,null,null,null,0]
[null,"VSD Incentives",null,null,null,{"$f":"'Motors, VSDs & Pool Pumps'!J62","v":0},null,{"$f":"'Motors, VSDs & Pool Pumps'!J63","v":0},null,null,null,null,0]
[null,"Custom Incentives",null,null,null,{"$f":"Custom!I51","v":0},null,{"$f":"Custom!I52","v":0}]
[null,"Total------>",null,null,null,{"$f":"SUM(F78:G88)","v":0},null,{"$f":"SUM(H78:I88)","v":0}]

{"sheet":"Checklist","index":2,"n_rows":61,"n_cols":8,"rows_kept":61,"cut":false,"hidden":false,"merged":[[60,0,62,9],[0,3,0,6],[49,7,49,8]]}
[null,null,null,"APPLICATION CHECKLIST"]
[]
[]
[]
[]
[]
[]
[]
[]
[]
[]
[]
[]
[]
[]
[]
[]
[]
[]
[]
[]
[]
[]
[]
[]
[]
[]
[]
[]
[]
[]
[]
[]
[]
[]
[]
[]
[]
[]
[]
[]
[]
[]
[]
[]
[]
[]
[]
[]
[null,null,null,null,null,null,null,"http://www.pnmenergyefficiency.com"]
[]
[]
[]
[]
[]
[]
[]
[]
[]
[]
["APPLICATION CHECKLIST  (CONTINUED)"]

{"sheet":"Terms & Conditions","index":3,"n_rows":1,"n_cols":4,"rows_kept":1,"cut":false,"hidden":false,"merged":[]}
[null,null,null,"TERMS & CONDITIONS"]

{"sheet":"Multi-Facility","index":4,"n_rows":401,"n_cols":7,"rows_kept":401,"cut":false,"hidden":false,"merged":[[4,3,4,4],[5,1,5,2],[7,0,7,4],[0,1,0,3]]}
[null,"LIGHTING MULTIPLE FACILITY WORKSHEET"]
["Use this worksheet ONLY if installing the SAME measure in facilities with different service addresses and unique account numbers."]
["If a project encompasses multiple buildings at the same premise, this worksheet is not required."]
["For official use only","Pre-Notification Date:",{"$f":"IF(ISBLANK('Applicant Info'!$K$6),\" \",'Applicant Info'!$K$6)","v":" "},"Final Application Date:",{"$f":"IF(ISBLANK('Applicant Info'!$K$8),\" \",'Applicant Info'!$K$8)","v":" "}]
["Application #",{"$f":"IF('Applicant Info'!J3=\"\",\"\",'Applicant Info'!J3)","v":""},"Business Name:",{"$f":"IF(ISBLANK('Applicant Info'!$A$22),\" \",'Applicant Info'!$A$22)","v":" "}]
["Prepared by:",{"$f":"IF(ISBLANK('Applicant Info'!$A$26),\" \",'Applicant Info'!$A$26)","v":" "},null,"Contact #:",{"$f":"'Applicant Info'!$D$27","v":0}]
[]
["Project Locations "]
["Service Address","Account #","Replacement Equipment Type 1","Replacement Equipment Type 2","Replacement Equipment Qty","Existing Equipment Description","Existing Equipment Qty"]
[]
[]
[]
[]
[]
[]
[]
[]
[]
[]
[]
[]
[]
[]
[]
[]
[]
[]
[]
[]
[]
[]
[]
[]
[]
["Total",null,null,null,{"$f":"SUM(E10:E34)","v":0},null,{"$f":"SUM(G10:G34)","v":0}]
[]
[]
[]
[]
[]
[]
[]
[]
[]
[]
[]
[]
[]
[]
[]
[]
[]
[]
[]
[]
[]
[]
[]
[]
[]
[]
[]
[]
[]
[]
[]
[]
[]
[]
[]
[]
[]
[]
[]
[]
[]
[]
[]
[]
[]
[]
[]
[]
[]
[]
[]
[]
[]
[]
[]
[]
[]
[]
[]
[]
[]
[]
[]
[]
[]
[]
[]
[]
[]
[]
[]
[]
[]
[]
[]
[]
[]
[]
[]
[]
[]
[]
[]
[]
[]
[]
[]
[]
[]
[]
[]
[]
[]
[]
[]
[]
[]
[]
[]
[]
[]
[]
[]
[]
[]
[]
[]
[]
[]
[]
[]
[]
[]
[]
[]
[]
[]
[]
[]
[]
[]
[]
[]
[]
[]
[]
[]
[]
[]
[]
[]
[]
[]
[]
[]
[]
[]
[]
[]
[]
[]
[]
[]
[]
[]
[]
[]
[]
[]
[]
[]
[]
[]
[]
[]
[]
[]
[]
[]
[]
[]
[]
[]
[]
["Measure Type 1"]
["Interior_Lighting"]
["Exterior_Lighting"]
["_24_7_Lighting"]
["Plug_Load_Controls"]
["Custom"]
["HVAC"]
["Envelope"]
["Refrigeration"]
["Food_Service_Equipment"]
["Motors"]
["VSDs"]
[]
["Measure Type 1","Measure Type 2","Unit","Incentive",null,"Measure Type 1"]
["24/7 Lighting","T8, T5 or LED Replacing HID Lamp Only","Watts Reduced",0.25,null,"Interior Lighting"]
["24/7 Lighting","T8, T5 or LED Replacing HID, Entire Fixture","Watts Reduced",0.5,null,"Exterior Lighting"]
["24/7 Lighting","T8, T5 or LED Replacing HID, Retrofit Kit","Watts Reduced",0.3,null,"24/7 Lighting"]
["24/7 Lighting","LED Replacing T5, T8 or T12, Lamp Only","Watts Reduced",0.25,null,"HVAC"]
["24/7 Lighting","LED Replacing T5, T8 or T12, Entire Fixture","Watts Reduced",0.5,null,"Envelope"]
["24/7 Lighting","LED Replacing T5, T8 or T12, Retrofit Kit","Watts Reduced",0.3,null,"Refrigeration"]
["24/7 Lighting","Controls for Existing LED Fixtures","Watts Controlled",0.5,null,"Food Service Equipment"]
["Exterior Lighting","T8, T5 or LED Replacing HID, Lamp Only","Watts Reduced",0.2,null,"Plug Load Controls"]
["Exterior Lighting","T8, T5 or LED Replacing HID, Entire Fixture","Watts Reduced",0.4,null,"Motors"]
["Exterior Lighting","T8, T5 or LED Replacing HID, Retrofit Kit","Watts Reduced",0.25,null,"VSDs"]
["Exterior Lighting","LED Replacing T5, T8 or T12, Lamp Only","Watts Reduced",0.2]
["Exterior Lighting","LED Replacing T5, T8 or T12, Entire Fixture","Watts Reduced",0.4]
["Exterior Lighting","LED Replacing T5, T8 or T12, Retrofit Kit","Watts Reduced",0.25]
["Exterior Lighting","Controls for Existing LED Fixtures","Watts Controlled",0.4]
["Interior Lighting","20W or less LED Lamp replacing Incandescent Lamp ≤ 100W","Lamp",8]
["Interior Lighting","20W or less LED Lamp replacing CFL Lamp ≤ 42W","Lamp",4]
["Interior Lighting","Controls  Occupancy Sensors","Watts Controlled",0.12]
["Interior Lighting","Controls  Daylighting Sensor Controls","Watts Controlled",0.09]
["Interior Lighting","T8, T5 or LED Replacing HID, Lamp Only","Watts Reduced",0.15]
["Interior Lighting","T8, T5 or LED Replacing HID, Entire Fixture","Watts Reduced",0.3]
["Interior Lighting","T8, T5 or LED Replacing HID, Retrofit Kit","Watts Reduced",0.2]
["Interior Lighting","LED Replacing T5, T8 or T12, Lamp Only","Watts Reduced",0.15]
["Interior Lighting","LED Replacing T5, T8 or T12, Entire Fixture","Watts Reduced",0.3]
["Interior Lighting","LED Replacing T5, T8 or T12, Retrofit Kit","Watts Reduced",0.2]
[]
[null,null,"Unit","Incentive"]
["Envelope","Window Film","Sq. Ft. of Glazing",1.2]
[]
[null,null,"Unit","Incentive"]
["Refrigeration","Strip Curtains on Walk-ins and Freezers","Sq. Ft.",3]
["Refrigeration","Night Covers for Displays","Lin. Ft. of Case",10]
["Refrigeration","EC Motor for Reach-in Refrigerator or Freezer Cases","Motor",25]
["Refrigeration","Evaporator Fan Controller - Shade Pole Motor","Motor",40]
["Refrigeration","Anti Sweat Heater Controls","Lin. Ft. of Case",25]
["Refrigeration","LED Refrigeration Case Lighting","Door",40]
["Refrigeration","ENERGY STAR® Solid Door Freezer","Unit",100]
["Refrigeration","ENERGY STAR® Glass Door Freezer","Unit",350]
[]
[null,null,"Unit","Incentive"]
["Food Service Equipment","ENERGY STAR® Steam Cookers","Unit",400]
["Food Service Equipment","Combination Oven","Unit",800]
["Food Service Equipment","ENERGY STAR® Hot Holding Cabinet - 1/2 size","Unit",200]
["Food Service Equipment","ENERGY STAR® Hot Holding Cabinet - 3/4 size","Unit",300]
["Food Service Equipment","ENERGY STAR® Hot Holding Cabinet - Full size","Unit",400]
["Food Service Equipment","ENERGY STAR® Beverage Vending Machine","Unit",80]
["Food Service Equipment","ENERGY STAR® Commercial Vat Fryer","Unit",225]
["Food Service Equipment","ENERGY STAR® Griddle","Unit",125]
[]
[null,null,"Unit","Incentive"]
["High Efficiency Ice Makers","101-200 lbs/24 hours","Unit",100]
["High Efficiency Ice Makers","201-300 lbs/24 hours","Unit",150]
["High Efficiency Ice Makers","301-400 lbs/24 hours","Unit",200]
["High Efficiency Ice Makers","401-500 lbs/24 hours","Unit",250]
["High Efficiency Ice Makers","501-1000 lbs/24 hours","Unit",300]
["High Efficiency Ice Makers","1001-1500 lbs/24 hours","Unit",350]
["High Efficiency Ice Makers",">1500 lbs/24 hours","Unit",400]
[]
[null,null,"Unit","Incentive"]
["Plug Load Controls","Beverage Vending Machine Control","Unit","Contact for offer"]
["Plug Load Controls","Refrigerated Cooler Control","Unit","Contact for offer"]
["Plug Load Controls","Snack Machine Control","Unit","Contact for offer"]
["Plug Load Controls","Plug Load Occupancy Sensors","Unit",25]
[]
[null,null,"Unit","Incentive"]
["Motors","1200 RPM -  1 HP - Open ","motor",1]
["Motors","1200 RPM -  1 HP - Open ","motor",1.5]
["Motors","1200 RPM -  1 HP - Open ","motor",2]
["Motors","1200 RPM -  1 HP - Open ","motor",3]
["Motors","1200 RPM -  1 HP - Open ","motor",4]
["Motors","1200 RPM -  1 HP - Open ","motor",9]
["Motors","1200 RPM -  1 HP - Open ","motor",10]
["Motors","1200 RPM -  1 HP - Open ","motor",11]
["Motors","1200 RPM -  1 HP - Open ","motor",12]
["Motors","1200 RPM -  1 HP - Open ","motor",15]
["Motors","1200 RPM -  1 HP - Open ","motor",17]
["Motors","1200 RPM -  1 HP - Open ","motor",20]
["Motors","1200 RPM -  1 HP - Open ","motor",24]
["Motors","1200 RPM -  1 HP - Open ","motor",25]
["Motors","1200 RPM -  1 HP - Open ","motor",30]
["Motors","1200 RPM -  1 HP - Open ","motor",40]
["Motors","1200 RPM -  1 HP - Open ","motor",50]
["Motors","1200 RPM -  1 HP - Open ","motor",60]
["Motors","1200 RPM -  1 HP - Open ","motor",75]
["Motors","1200 RPM -  1 HP - Open ","motor",1]
["Motors","1200 RPM -  1 HP - Open ","motor",1.5]
["Motors","1200 RPM -  1 HP - Open ","motor",2]
["Motors","1200 RPM -  1 HP - Open ","motor",3]
["Motors","1200 RPM -  1 HP - Open ","motor",4]
["Motors","1200 RPM -  1 HP - Open ","motor",9]
["Motors","1200 RPM -  1 HP - Open ","motor",10]
["Motors","1200 RPM -  1 HP - Open ","motor",11]
["Motors","1200 RPM -  1 HP - Open ","motor",12]
["Motors","1200 RPM -  1 HP - Open ","motor",15]
["Motors","1200 RPM -  1 HP - Open ","motor",17]
["Motors","1200 RPM -  1 HP - Open ","motor",20]
["Motors","1200 RPM -  1 HP - Open ","motor",24]
["Motors","1200 RPM -  1 HP - Open ","motor",25]
["Motors","1200 RPM -  1 HP - Open ","motor",30]
["Motors","1200 RPM -  1 HP - Open ","motor",40]
["Motors","1200 RPM -  1 HP - Open ","motor",50]
["Motors","1200 RPM -  1 HP - Open ","motor",60]
["Motors","1200 RPM -  1 HP - Open ","motor",75]
["Motors","1200 RPM -  1 HP - Open ","motor",1]
["Motors","1200 RPM -  1 HP - Open ","motor",1.5]
["Motors","1200 RPM -  1 HP - Open ","motor",2]
["Motors","1200 RPM -  1 HP - Open ","motor",3]
["Motors","1200 RPM -  1 HP - Open ","motor",4]
["Motors","1200 RPM -  1 HP - Open ","motor",9]
["Motors","1200 RPM -  1 HP - Open ","motor",10]
["Motors","1200 RPM -  1 HP - Open ","motor",11]
["Motors","1200 RPM -  1 HP - Open ","motor",12]
["Motors","1200 RPM -  1 HP - Open ","motor",15]
["Motors","1200 RPM -  1 HP - Open ","motor",17]
["Motors","1200 RPM -  1 HP - Open ","motor",20]
["Motors","1200 RPM -  1 HP - Open ","motor",24]
["Motors","1200 RPM -  1 HP - Open ","motor",25]
["Motors","1200 RPM -  1 HP - Open ","motor",30]
["Motors","1200 RPM -  1 HP - Open ","motor",40]
["Motors","1200 RPM -  1 HP - Open ","motor",50]
["Motors","1200 RPM -  1 HP - Open ","motor",60]
["Motors","1200 RPM -  1 HP - Open ","motor",75]
["Motors","1200 RPM -  1 HP - Open ","motor",1]
["Motors","1200 RPM -  1 HP - Open ","motor",1.5]
["Motors","1200 RPM -  1 HP - Open ","motor",2]
["Motors","1200 RPM -  1 HP - Open ","motor",3]
["Motors","1200 RPM -  1 HP - Open ","motor",4]
["Motors","1200 RPM -  1 HP - Open ","motor",9]
["Motors","1200 RPM -  1 HP - Open ","motor",10]
["Motors","1200 RPM -  1 HP - Open ","motor",11]
["Motors","1200 RPM -  1 HP - Open ","motor",12]
["Motors","1200 RPM -  1 HP - Open ","motor",15]
["Motors","1200 RPM -  1 HP - Open ","motor",17]
["Motors","1200 RPM -  1 HP - Open ","motor",20]
["Motors","1200 RPM -  1 HP - Open ","motor",24]
["Motors","1200 RPM -  1 HP - Open ","motor",25]
["Motors","1200 RPM -  1 HP - Open ","motor",30]
["Motors","1200 RPM -  1 HP - Open ","motor",40]
["Motors","1200 RPM -  1 HP - Open ","motor",50]
["Motors","1200 RPM -  1 HP - Open ","motor",60]
["Motors","1200 RPM -  1 HP - Open ","motor",75]
["Motors","1200 RPM -  1 HP - Open ","motor",1]
["Motors","1200 RPM -  1 HP - Open ","motor",1.5]
["Motors","1200 RPM -  1 HP - Open ","motor",2]
["Motors","1200 RPM -  1 HP - Open ","motor",3]
["Motors","1200 RPM -  1 HP - Open ","motor",4]
["Motors","1200 RPM -  1 HP - Open ","motor",9]
["Motors","1200 RPM -  1 HP - Open ","motor",10]
["Motors","1200 RPM -  1 HP - Open ","motor",11]
["Motors","1200 RPM -  1 HP - Open ","motor",12]
["Motors","1200 RPM -  1 HP - Open ","motor",15]
["Motors","1200 RPM -  1 HP - Open ","motor",17]
["Motors","1200 RPM -  1 HP - Open ","motor",20]
["Motors","1200 RPM -  1 HP - Open ","motor",24]
["Motors","1200 RPM -  1 HP - Open ","motor",25]
["Motors","1200 RPM -  1 HP - Open ","motor",30]
["Motors","1200 RPM -  1 HP - Open ","motor",40]
["Motors","1200 RPM -  1 HP - Open ","motor",50]
["Motors","1200 RPM -  1 HP - Open ","motor",60]
["Motors","1200 RPM -  1 HP - Open ","motor",75]
["Motors","1200 RPM -  1 HP - Open ","motor",1]
["Motors","1200 RPM -  1 HP - Open ","motor",1.5]
["Motors","1200 RPM -  1 HP - Open ","motor",2]
["Motors","1200 RPM -  1 HP - Open ","motor",3]
["Motors","1200 RPM -  1 HP - Open ","motor",4]
["Motors","1200 RPM -  1 HP - Open ","motor",9]
["Motors","1200 RPM -  1 HP - Open ","motor",10]
["Motors","1200 RPM -  1 HP - Open ","motor",11]
["Motors","1200 RPM -  1 HP - Open ","motor",12]
["Motors","1200 RPM -  1 HP - Open ","motor",15]
["Motors","1200 RPM -  1 HP - Open ","motor",17]
["Motors","1200 RPM -  1 HP - Open ","motor",20]
["Motors","1200 RPM -  1 HP - Open ","motor",24]
["Motors","1200 RPM -  1 HP - Open ","motor",25]
["Motors","1200 RPM -  1 HP - Open ","motor",30]
["Motors","1200 RPM -  1 HP - Open ","motor",40]
["Motors","1200 RPM -  1 HP - Open ","motor",50]
["Motors","1200 RPM -  1 HP - Open ","motor",60]
["Motors","1200 RPM -  1 HP - Open ","motor",75]
[]
[]
[null,null,"Unit","Incentive"]
["VSDs","VSD Size (HP)","Hp",50]
[]
[null,null,"Unit","Incentive"]
["HVAC","HVAC Units, contact for offer","Unit","Contact for offer"]
[]
[null,null,"Unit","Incentive"]
["Custom","Per kWh","kWh",7.4999999999999997E-2]

{"sheet":"Income Qualifier Directory","index":5,"n_rows":279,"n_cols":19,"rows_kept":279,"cut":false,"hidden":false,"merged":[]}
[null,null,"Type Address --->",null,{"$f":"IF(D1=\"\",\"\",I3)","v":""}]
["#","Apartment Community Name","Phone #","Address","City/Town","Zip Code",null,{"$f":"IFERROR(VLOOKUP(A3,I2:I279,3,FALSE),\"\")","v":""}]
[1,"Abo Apartments","575.746.2496","700 North 10th St.","Artesia",88210,null,1,{"$f":"IFERROR(VLOOKUP(H3,J3:L279,3,FALSE),\"\")","v":"700 North 10th St."},{"$f":"IFERROR(RANK(K3,$K$3:$K$279,1),\"\")","v":1},{"$f":"IFERROR(SEARCH($D$1,L3)+ROW()/100000,\"\")","v":1.00003},"700 North 10th St.",null,null,1,{"$f":"IFERROR(VLOOKUP(O3,Q3:S279,3,FALSE),\"\")","v":""},{"$f":"IFERROR(RANK(R3,$R$3:$R$279,1),\"\")","v":""},{"$f":"IFERROR(SEARCH(#REF!,S3)+ROW()/100000,\"\")","v":""},"575.746.2496"]
[2,"Abode Group Home","575.523.2219","999 West Amador","Las Cruces",88005,null,2,{"$f":"IFERROR(VLOOKUP(H4,J4:L279,3,FALSE),\"\")","v":"999 West Amador"},2,{"$f":"IFERROR(SEARCH($D$1,L4)+ROW()/100000,\"\")","v":1.00004},"999 West Amador",null,null,2,{"$f":"IFERROR(VLOOKUP(O4,Q4:S279,3,FALSE),\"\")","v":""},"",{"$f":"IFERROR(SEARCH(#REF!,S4)+ROW()/100000,\"\")","v":""},"575.523.2219"]
[3,"Alta Tierra Apartments","575.523.5472","1500 East Madrid","Las Cruces",88001,null,3,{"$f":"IFERROR(VLOOKUP(H5,J5:L279,3,FALSE),\"\")","v":"1500 East Madrid"},3,1.0000500000000001,"1500 East Madrid",null,null,3,{"$f":"IFERROR(VLOOKUP(O5,Q5:S279,3,FALSE),\"\")","v":""},"",{"$f":"IFERROR(SEARCH(#REF!,S5)+ROW()/100000,\"\")","v":""},"575.523.5472"]
[4,"Alta Vista Apartments","505.298.1856","4200 Spanish Bit NE","Albuquerque",87111,null,4,{"$f":"IFERROR(VLOOKUP(H6,J6:L279,3,FALSE),\"\")","v":"4200 Spanish Bit NE"},4,1.0000599999999999,"4200 Spanish Bit NE",null,null,4,{"$f":"IFERROR(VLOOKUP(O6,Q6:S279,3,FALSE),\"\")","v":""},"",{"$f":"IFERROR(SEARCH(#REF!,S6)+ROW()/100000,\"\")","v":""},"505.298.1856"]
[5,"Anasazi Village Apartments","505.474.7200","6921 Airport Road","Santa Fe",87507,null,5,"6921 Airport Road",5,1.00007,"6921 Airport Road",null,null,5,"","",{"$f":"IFERROR(SEARCH(#REF!,S7)+ROW()/100000,\"\")","v":""},"505.474.7200"]
[6,"Apple Ridge Apartments","505.327.0151","1600 Cliffside Drive","Farmington",87401,null,6,"1600 Cliffside Drive",6,1.0000800000000001,"1600 Cliffside Drive",null,null,6,"","",{"$f":"IFERROR(SEARCH(#REF!,S8)+ROW()/100000,\"\")","v":""},"505.327.0151"]
[7,"Arioso Apartments","505.884.7622","7303 Montgomery Blvd. NE","Albuquerque",87109,null,7,"1600 Cliffside Drive",7,1.0000899999999999,"1600 Cliffside Drive",null,null,7,"","",{"$f":"IFERROR(SEARCH(#REF!,S9)+ROW()/100000,\"\")","v":""},"505.327.0151"]
[8,"Arrowhead Ridge","505.892.2988","4515 Arrowhead Ridge Drive","Rio Rancho",87124,null,8,"7303 Montgomery Blvd. NE",8,1.0001,"7303 Montgomery Blvd. NE",null,null,8,"","",{"$f":"IFERROR(SEARCH(#REF!,S10)+ROW()/100000,\"\")","v":""},"505.884.7622"]
[9,"Arroyo Villas Apartments","505.898.6719","4701 Irving Blvd. NW","Albuquerque",87114,null,9,"4515 Arrowhead Ridge Drive",9,1.0001100000000001,"4515 Arrowhead Ridge Drive",null,null,9,"","",{"$f":"IFERROR(SEARCH(#REF!,S11)+ROW()/100000,\"\")","v":""},"505.892.2988"]
[10,"Artesia Properties","575.746.3236","1601 West Centre St.","Artesia",88210,null,10,"4701 Irving Blvd. NW",10,1.0001199999999999,"4701 Irving Blvd. NW",null,null,10,"","",{"$f":"IFERROR(SEARCH(#REF!,S12)+ROW()/100000,\"\")","v":""},"505.898.6719"]
[11,"Aspen Ridge Apartments","505.268.3344","820 Louisiana Blvd. SE","Albuquerque",87108,null,11,"1601 West Centre St.",11,1.00013,"1601 West Centre St.",null,null,11,"","",{"$f":"IFERROR(SEARCH(#REF!,S13)+ROW()/100000,\"\")","v":""},"575.746.3236"]
[12,"Avalon Cove Apartments","575.393.1475","1200 East Broadway","Hobbs",88240,null,12,"820 Louisiana Blvd. SE",12,1.00014,"820 Louisiana Blvd. SE",null,null,12,"","",{"$f":"IFERROR(SEARCH(#REF!,S14)+ROW()/100000,\"\")","v":""},"505.268.3344"]
[13,"Azotea Senior Apartments","575.437.5465","2400 East First St.","Alamogordo",88310,null,13,"1200 East Broadway",13,1.0001500000000001,"1200 East Broadway",null,null,13,"","",{"$f":"IFERROR(SEARCH(#REF!,S15)+ROW()/100000,\"\")","v":""},"575.393.1475"]
[14,"Aztec Villiage Apartments","505.883.0859","4321 Montgomery Blvd. NE","Albuquerque",87109,null,14,"2400 East First St.",14,1.0001599999999999,"2400 East First St.",null,null,14,"","",{"$f":"IFERROR(SEARCH(#REF!,S16)+ROW()/100000,\"\")","v":""},"575.437.5465"]
[15,"Battered Family Services","505.722.7483","207 South Strong Drive","Gallup",87301,null,15,"4321 Montgomery Blvd. NE",15,1.00017,"4321 Montgomery Blvd. NE",null,null,15,"","",{"$f":"IFERROR(SEARCH(#REF!,S17)+ROW()/100000,\"\")","v":""},"505.883.0859"]
[16,"Belen Crossing Apartments","505.864.4640","1200 Court St.","Belen",87002,null,16,"207 South Strong Drive",16,1.0001800000000001,"207 South Strong Drive",null,null,16,"","",{"$f":"IFERROR(SEARCH(#REF!,S18)+ROW()/100000,\"\")","v":""},"505.722.7483"]
[17,"Belen Vista Apartments","505.864.7999","531 Christopher Road","Belen",87002,null,19,{"$f":"IFERROR(VLOOKUP(H19,J19:L294,3,FALSE),\"\")","v":"110 Otoño Road"},17,1.0001899999999999,"531 Christoper Road",null,null,19,{"$f":"IFERROR(VLOOKUP(O19,Q19:S294,3,FALSE),\"\")","v":""},"",{"$f":"IFERROR(SEARCH(#REF!,S19)+ROW()/100000,\"\")","v":""},"505.864.7999"]
[18,"Bella Vista Apartments","575.751.1017","110 Otoño Road","Taos",87571,null,20,"3400 Gidding",18,1.0002,"531 Christopher Road",null,null,20,"","",{"$f":"IFERROR(SEARCH(#REF!,S20)+ROW()/100000,\"\")","v":""},"505.864.7999"]
[19,"Bella Vista Townhomes","575.763.4297","3400 Gidding","Clovis",88101,null,21,"6302 Harper Place NE",19,1.00021,"110 Otoño Road",null,null,21,"","",{"$f":"IFERROR(SEARCH(#REF!,S21)+ROW()/100000,\"\")","v":""},"575.751.1017"]
[20,"Brentwood Gardens","505.821.0818","6302 Harper Place NE","Albuquerque",87109,null,22,"6302 Harper Place NE",20,1.0002200000000001,"3400 Gidding",null,null,22,"","",{"$f":"IFERROR(SEARCH(#REF!,S22)+ROW()/100000,\"\")","v":""},"575.763.4297"]
[21,"Broadway Apartments","505.266.7000","414 Broadway Blvd. SE","Albuquerque",87102,null,23,"414 Broadway Blvd. SE",21,1.00023,"6302 Harper Place NE",null,null,23,"","",{"$f":"IFERROR(SEARCH(#REF!,S23)+ROW()/100000,\"\")","v":""},"505.821.0818"]
[22,"Buena Vista Apartments","505.896.8959","1355 Meadowlark Lane SE","Rio Rancho",87124,null,24,"1355 Meadowlark Lane SE",22,1.00024,"6302 Harper Place NE",null,null,24,"","",{"$f":"IFERROR(SEARCH(#REF!,S24)+ROW()/100000,\"\")","v":""},"505.821.0818"]
[23,"Buena Vista Senior Living","575.396.4912","1501 Good Samaritan Drive","Lovington",88260,null,25,"1501 Good Samaritan Drive",23,1.0002500000000001,"414 Broadway Blvd. SE",null,null,25,"","",{"$f":"IFERROR(SEARCH(#REF!,S25)+ROW()/100000,\"\")","v":""},"505.266.7000"]
[24,"Burley Court Apartments","575.528.2017","1401 Burley Court","Las Cruces",88005,null,26,"1401 Burley Court",24,1.0002599999999999,"1355 Meadowlark Lane SE",null,null,26,"","",{"$f":"IFERROR(SEARCH(#REF!,S26)+ROW()/100000,\"\")","v":""},"505.896.8959"]
[25,"Caballo Peak Apartments","505.662.0620","3301 Canyon Road","Los Alamos",87544,null,27,"3301 Canyon Road",25,1.00027,"1501 Good Samaritan Drive",null,null,27,"","",{"$f":"IFERROR(SEARCH(#REF!,S27)+ROW()/100000,\"\")","v":""},"575.396.4912"]
[26,"Campo Alegria Apartments","505.983.6324","104 Camino del Campo","Santa Fe",87501,null,28,"104 Camino del Campo",26,1.0002800000000001,"1401 Burley Court",null,null,28,"","",{"$f":"IFERROR(SEARCH(#REF!,S28)+ROW()/100000,\"\")","v":""},"575.528.2017"]
[27,"Candelaria Gardens","505.833.6000","820 Candelaria NW","Albuquerque",87105,null,29,"820 Candelaria NW",27,1.0002899999999999,"3301 Canyon Road",null,null,29,"","",{"$f":"IFERROR(SEARCH(#REF!,S29)+ROW()/100000,\"\")","v":""},"505.662.0620"]
[28,"Candlelight Square","505.884.2295","7501 Montgomery Blvd. NE","Albuquerque",87109,null,30,"7501 Montgomery Blvd. NE",28,1.0003,"104 Camino del Campo",null,null,30,"","",{"$f":"IFERROR(SEARCH(#REF!,S30)+ROW()/100000,\"\")","v":""},"505.983.6324"]
[29,"Cañon de Arrowhead","505.833.9334","1700 Market St. NW","Albuquerque",87120,null,31,"1700 Market St. NW",29,1.00031,"820 Candelaria NW",null,null,31,"","",{"$f":"IFERROR(SEARCH(#REF!,S31)+ROW()/100000,\"\")","v":""},"505.833.6000"]
[30,"Canyon Point Apartments","505.294.3108","301 Western Skies Drive SE","Albuquerque",87123,null,32,"301 Western Skies Drive SE",30,1.0003200000000001,"7501 Montgomery Blvd. NE",null,null,32,"","",{"$f":"IFERROR(SEARCH(#REF!,S32)+ROW()/100000,\"\")","v":""},"505.884.2295"]
[31,"Canyon Ridge Apartments","505.299.8066","200 Figueroa St. NE","Albuquerque",87123,null,33,"200 Figueroa St. NE",31,1.0003299999999999,"1700 Market St. NW",null,null,33,"","",{"$f":"IFERROR(SEARCH(#REF!,S33)+ROW()/100000,\"\")","v":""},"505.833.9334"]
[32,"Casa Alegre II","505.454.0016","400 Mountain View Drive","Las Vegas",87701,null,34,"400 Mountain View Drive",32,1.00034,"301 Western Skies Drive SE",null,null,34,"","",{"$f":"IFERROR(SEARCH(#REF!,S34)+ROW()/100000,\"\")","v":""},"505.294.3108"]
[33,"Casa Bonita","505.865.4588","675 US Highway 314 SW","Los Lunas",87031,null,35,"675 US Highway 314 SW",33,1.0003500000000001,"200 Figueroa St. NE",null,null,35,"","",{"$f":"IFERROR(SEARCH(#REF!,S35)+ROW()/100000,\"\")","v":""},"505.299.8066"]
[34,"Casa Bonita Apartments","505.881.0668","4528 Carlisle Blvd. NE","Albuquerque",87109,null,36,"4528 Carlisle Blvd. NE",34,1.0003599999999999,"400 Mountain View Drive",null,null,36,"","",{"$f":"IFERROR(SEARCH(#REF!,S36)+ROW()/100000,\"\")","v":""},"505.454.0016"]
[35,"Casa Cerrillos","505.471.3456","3811 1/2 Cerrillos Road","Santa Fe",87507,null,37,"3811 1/2 Cerrillos Road",35,1.00037,"675 US Highway 314 SW",null,null,37,"","",{"$f":"IFERROR(SEARCH(#REF!,S37)+ROW()/100000,\"\")","v":""},"505.865.4588"]
[36,"Casa de Chavez","505.865.4588","675 US Highway 314 SW","Los Lunas",87031,null,38,"675 US Highway 314 SW",36,1.00038,"4528 Carlisle Blvd. NE",null,null,38,"","",{"$f":"IFERROR(SEARCH(#REF!,S38)+ROW()/100000,\"\")","v":""},"505.881.0668"]
[37,"Casa del Rio Apartments","575.894.2244","165 North Silver","T or C",87901,null,39,"165 North Silver",37,1.0003899999999999,"3811 1/2 Cerrillos Road",null,null,39,"","",{"$f":"IFERROR(SEARCH(#REF!,S39)+ROW()/100000,\"\")","v":""},"505.471.3456"]
[38,"Casa Linda","575.388.3755","100 East 17 St.","Silver City",88061,null,40,"165 North Silver",38,1.0004,"675 US Highway 314 SW",null,null,40,"","",{"$f":"IFERROR(SEARCH(#REF!,S40)+ROW()/100000,\"\")","v":""},"505.865.4588"]
[39,"Casa Rufina","505.988.1116","2323 Casa Rufina Road","Santa Fe",87507,null,41,"100 East 17 St.",39,1.00041,"165 North Silver",null,null,41,"","",{"$f":"IFERROR(SEARCH(#REF!,S41)+ROW()/100000,\"\")","v":""},"575.894.2244"]
[40,"Casa Villita Apartments","505.474.7400","3330 Calle Po Ae Pi","Santa Fe",87507,null,42,"2323 Casa Rufina Road",40,1.0004200000000001,"165 North Silver",null,null,42,"","",{"$f":"IFERROR(SEARCH(#REF!,S42)+ROW()/100000,\"\")","v":""},"575.894.2244"]
[41,"Casamera Apartments","505.863.2700","350 Basilio Drive","Gallup",87301,null,43,"3330 Calle Po Ae Pi",41,1.0004299999999999,"100 East 17 St.",null,null,43,"","",{"$f":"IFERROR(SEARCH(#REF!,S43)+ROW()/100000,\"\")","v":""},"575.388.3755"]
[42,"Casitas de Colores","505.842.5644","215 Lead Ave. SW","Albuquerque",87102,null,44,"350 Basilio Drive",42,1.00044,"2323 Casa Rufina Road",null,null,44,"","",{"$f":"IFERROR(SEARCH(#REF!,S44)+ROW()/100000,\"\")","v":""},"505.988.1116"]
[43,"Cedar Hills Apartments","505.863.3689","1710 Elm Circle","Gallup",87301,null,45,"215 Lead Ave. SW",43,1.0004500000000001,"3330 Calle Po Ae Pi",null,null,45,"","",{"$f":"IFERROR(SEARCH(#REF!,S45)+ROW()/100000,\"\")","v":""},"505.474.7400"]
[44,"Central Apartments","575.537.6012","500 South Prescott St.","Santa Clara",88026,null,46,"1710 Elm Circle",44,1.0004599999999999,"350 Basilio Drive",null,null,46,"","",{"$f":"IFERROR(SEARCH(#REF!,S46)+ROW()/100000,\"\")","v":""},"505.863.2700"]
[45,"Chaco River Apartments","505.368.3735","Northwest Division West of mile Marker 94 on Hwy 491","Shiprock",87420,null,47,"500 South Prescott St.",45,1.00047,"215 Lead Ave. SW",null,null,47,"","",{"$f":"IFERROR(SEARCH(#REF!,S47)+ROW()/100000,\"\")","v":""},"505.842.5644"]
[46,"Chateau Apartments","505.883.0864","6101 Osuna Road NE","Albuquerque",87109,null,48,"Northwest Division West of mile Marker 94 on Hwy 491",46,1.00048,"1710 Elm Circle",null,null,48,"","",{"$f":"IFERROR(SEARCH(#REF!,S48)+ROW()/100000,\"\")","v":""},"505.863.3689"]
[47,"Chuska Apartments","505.863.7400","2534 East Aztec Ave.","Gallup",87301,null,49,"6101 Osuna Road NE",47,1.0004900000000001,"500 South Prescott St.",null,null,50,{"$f":"IFERROR(VLOOKUP(O49,Q49:S325,3,FALSE),\"\")","v":""},"",{"$f":"IFERROR(SEARCH(#REF!,S49)+ROW()/100000,\"\")","v":""},"575.537.6012"]
[48,"Cibola Apartments","575.835.3315","1101 El Camino Real","Socorro",87801,null,50,"2534 East Aztec Ave.",48,1.0004999999999999,"Northwest Division West of mile Marker 94 on Hwy 491",null,null,51,"","",{"$f":"IFERROR(SEARCH(#REF!,S50)+ROW()/100000,\"\")","v":""},"505.368.3735"]
[49,"Cielo De Oro Senior Housing Apartments","575.622.4146","1700 West Hendricks St.","Roswell",88203,null,51,{"$f":"IFERROR(VLOOKUP(H51,J51:L326,3,FALSE),\"\")","v":"1101 El Camino Real"},49,1.00051,"6101 Osuna Road NE",null,null,52,"","",{"$f":"IFERROR(SEARCH(#REF!,S51)+ROW()/100000,\"\")","v":""},"505.883.0864"]
[50,"Cimmaron Apartments","575.882.0042","825 Fourth St.","Anthony",88021,null,52,"1700 West Hendricks St.",50,1.0005200000000001,"2534 East Aztec Ave.",null,null,53,"","",{"$f":"IFERROR(SEARCH(#REF!,S52)+ROW()/100000,\"\")","v":""},"505.863.7400"]
[51,"Cinnamon Ridge Apartments","575.472.3974","1001 Cinnamon Loop","Santa Rosa",88435,null,53,"825 Fourth St.",51,1.0005299999999999,"1101 El Camino Real",null,null,54,"","",{"$f":"IFERROR(SEARCH(#REF!,S53)+ROW()/100000,\"\")","v":""},"575.835.3315"]
[52,"Cliffside Apartments","505.722.0127","601 Dani Drive","Gallup",87301,null,54,"1001 Cinnamon Loop",52,1.00054,"1700 West Hendricks St.",null,null,55,"","",{"$f":"IFERROR(SEARCH(#REF!,S54)+ROW()/100000,\"\")","v":""},"575.622.4146"]
[53,"Clovis Apartments","575.762.1533","1000 North Dr. Martin Luther King","Clovis",88101,null,55,"601 Dani Drive",53,1.0005500000000001,"825 Fourth St.",null,null,56,"","",{"$f":"IFERROR(SEARCH(#REF!,S55)+ROW()/100000,\"\")","v":""},"575.882.0042"]
[54,"Colonial Hillcrest Apartments","575.885.3816","605 North Fifth St.","Carlsbad",88220,null,56,"1000 North Dr. Martin Luther King",54,1.0005599999999999,"1001 Cinnamon Loop",null,null,57,"","",{"$f":"IFERROR(SEARCH(#REF!,S56)+ROW()/100000,\"\")","v":""},"575.472.3974"]
[55,"Colonial Hillcrest Apartments","575.885.3816","604 North Fifth St.","Carlsbad",88220,null,57,"605 North Fifth St.",55,1.00057,"601 Dani Drive",null,null,58,"","",{"$f":"IFERROR(SEARCH(#REF!,S57)+ROW()/100000,\"\")","v":""},"505.722.0127"]
[56,"Columbus Apartments","575.531.2546","60 Botanica Drive","Columbus",88029,null,58,"604 North Fifth St.",56,1.00058,"1000 North Dr. Martin Luther King",null,null,59,"","",{"$f":"IFERROR(SEARCH(#REF!,S58)+ROW()/100000,\"\")","v":""},"575.762.1533"]
[57,"Cottonwood Commons","575.434.2036","1220 Jefferson St.","Alamogordo",88310,null,59,"60 Botanica Drive",57,1.0005900000000001,"605 North Fifth St.",null,null,60,"","",{"$f":"IFERROR(SEARCH(#REF!,S59)+ROW()/100000,\"\")","v":""},"575.885.3816"]
[58,"Country Club Apartments","505.471.1871","1002 Airport Road","Santa Fe",87505,null,60,"1220 Jefferson St.",58,1.0005999999999999,"604 North Fifth St.",null,null,61,"","",{"$f":"IFERROR(SEARCH(#REF!,S60)+ROW()/100000,\"\")","v":""},"575.885.3816"]
[59,"Cuatro Apartments","505.503.1591","1319 Fourth St. NW","Albuquerque",87102,null,61,"1002 Airport Road",59,1.00061,"60 Botanica Drive",null,null,62,"","",{"$f":"IFERROR(SEARCH(#REF!,S61)+ROW()/100000,\"\")","v":""},"575.531.2546"]
[60,"David Spector Shalom House","505.823.1433","5500 Wyoming Blvd. NE","Albuquerque",87109,null,62,"1319 Fourth St. NW",60,1.0006200000000001,"1220 Jefferson St.",null,null,63,"","",{"$f":"IFERROR(SEARCH(#REF!,S62)+ROW()/100000,\"\")","v":""},"575.434.2036"]
[61,"Deer Hollow Senior Apartments","505.632.0296","701 Bergin Lane","Bloomfield",87413,null,63,"5500 Wyoming Blvd. NE",61,1.0006299999999999,"1002 Airport Road",null,null,64,"","",{"$f":"IFERROR(SEARCH(#REF!,S63)+ROW()/100000,\"\")","v":""},"505.471.1871"]
[62,"Deming Manor Apartments","575.546.7498","1000 South Zinc","Deming",88030,null,64,"701 Bergin Lane",62,1.00064,"1319 Fourth St. NW",null,null,65,"","",{"$f":"IFERROR(SEARCH(#REF!,S64)+ROW()/100000,\"\")","v":""},"505.503.1591"]
[63,"Depot Apartments","505.832.6746","704 West Maple","Moriarty",87035,null,65,"1000 South Zinc",63,1.00065,"5500 Wyoming Blvd. NE",null,null,66,"","",{"$f":"IFERROR(SEARCH(#REF!,S65)+ROW()/100000,\"\")","v":""},"505.823.1433"]
[64,"Desert Palms","575.523.4138","2405 West Picacho Ave.","Las Cruces",88007,null,66,"1000 South Zinc",64,{"$f":"IFERROR(SEARCH($D$1,L66)+ROW()/100000,\"\")","v":1.0006600000000001},"701 Bergin Lane",null,null,67,"","",{"$f":"IFERROR(SEARCH(#REF!,S66)+ROW()/100000,\"\")","v":""},"505.632.0296"]
[65,"Desert Sun Apartments","575.544.9955","1201 North Eighth St.","Deming",88030,null,67,"704 West Maple",{"$f":"IFERROR(RANK(K67,$K$3:$K$279,1),\"\")","v":65},1.0006699999999999,"1000 South Zinc",null,null,68,"",{"$f":"IFERROR(RANK(R67,$R$3:$R$279,1),\"\")","v":""},{"$f":"IFERROR(SEARCH(#REF!,S67)+ROW()/100000,\"\")","v":""},"575.546.7498"]
[66,"Desert Willow Apartments","505.856.6900","8901 Jefferson St. NE","Albuquerque",87113,null,68,"2405 West Picacho Ave.",66,1.00068,"1000 South Zinc",null,null,69,"","",{"$f":"IFERROR(SEARCH(#REF!,S68)+ROW()/100000,\"\")","v":""},"575.546.7498"]
[67,"Dona Ana Park Apartments","575.524.2524","1900 North Solano Drive","Las Cruces",88001,null,69,"1201 North Eighth St.",67,1.0006900000000001,"704 West Maple",null,null,70,"","",{"$f":"IFERROR(SEARCH(#REF!,S69)+ROW()/100000,\"\")","v":""},"505.832.6746"]
[68,"Downtown @ 700 2nd Apartments","505.242.2100","700 Second St. NW","Albuquerque",87102,null,70,"8901 Jefferson St. NE",68,1.0006999999999999,"2405 West Picacho Ave.",null,null,71,"","",{"$f":"IFERROR(SEARCH(#REF!,S70)+ROW()/100000,\"\")","v":""},"575.523.4138"]
[69,"Drexel House","505.325.3734","115 West Broadway","Farmington",87401,null,71,"1900 North Solano Drive",69,1.00071,"1201 North Eighth St.",null,null,72,"","",{"$f":"IFERROR(SEARCH(#REF!,S71)+ROW()/100000,\"\")","v":""},"575.544.9955"]
[70,"Eagle Creek Apartments","575.746.9731","302 North Fourth St.","Artesia",88210,null,72,"700 Second St. NW",70,1.0007200000000001,"8901 Jefferson St. NE",null,null,73,"","",{"$f":"IFERROR(SEARCH(#REF!,S72)+ROW()/100000,\"\")","v":""},"505.856.6900"]
[71,"East Mesa Apartments","505.879.2554","710 West Mesa","Gallup",87301,null,73,"115 West Broadway",71,1.0007299999999999,"1900 North Solano Drive",null,null,74,"","",{"$f":"IFERROR(SEARCH(#REF!,S73)+ROW()/100000,\"\")","v":""},"575.524.2524"]
[72,"Eaton Village","505.327.5720","2550 East 16th St.","Farmington",87401,null,74,"302 North Fourth St.",72,1.00074,"700 Second St. NW",null,null,75,"","",{"$f":"IFERROR(SEARCH(#REF!,S74)+ROW()/100000,\"\")","v":""},"505.242.2100"]
[73,"Echols Place Apartments","575.763.9009","1600 Echols Ave.","Clovis",88101,null,75,"710 West Mesa",73,1.00075,"115 West Broadway",null,null,76,"","",{"$f":"IFERROR(SEARCH(#REF!,S75)+ROW()/100000,\"\")","v":""},"505.325.3734"]
[74,"El Cerrito","575.751.1892","250 Paseo del Cañon East","Taos",87571,null,76,"2550 East 16th St.",74,1.0007600000000001,"302 North Fourth St.",null,null,77,"","",{"$f":"IFERROR(SEARCH(#REF!,S76)+ROW()/100000,\"\")","v":""},"575.746.9731"]
[75,"El Paseo Apartments  ","505.922.9600","301 El Pueblo Road NW","Los Ranchos de Albuquerque",87114,null,77,"1600 Echols Ave.",75,1.0007699999999999,"710 West Mesa",null,null,78,"","",{"$f":"IFERROR(SEARCH(#REF!,S77)+ROW()/100000,\"\")","v":""},"505.879.2554"]
[76,"El Pueblo Madeira Court","505.266.5855","1001 Madeira Drive SW","Albuquerque",87108,null,78,"250 Paseo del Cañon East",76,1.00078,"2550 East 16th St.",null,null,79,"","",{"$f":"IFERROR(SEARCH(#REF!,S78)+ROW()/100000,\"\")","v":""},"505.327.5720"]
[77,"Enchanted Vista","505.891.4900","4501 Sprint Blvd. NE","Rio Rancho",87144,null,79,"301 El Pueblo Road NW",77,1.0007900000000001,"1600 Echols Ave.",null,null,80,"","",{"$f":"IFERROR(SEARCH(#REF!,S79)+ROW()/100000,\"\")","v":""},"575.763.9009"]
[78,"Encino El Paseo Village Apartments","505.489-7322","420 Coal St. SE","Albuquerque",87102,null,80,"1001 Madeira Drive SW",78,1.0007999999999999,"250 Paseo del Cañon East",null,null,81,"","",{"$f":"IFERROR(SEARCH(#REF!,S80)+ROW()/100000,\"\")","v":""},"575.751.1892"]
[79,"Encino Gardens","505.266.7736","412 Alvarado St. SE","Albuquerque",87108,null,81,"4501 Sprint Blvd. NE",79,1.00081,"301 El Pueblo Road NW",null,null,82,{"$f":"IFERROR(VLOOKUP(O81,Q81:S357,3,FALSE),\"\")","v":""},"",{"$f":"IFERROR(SEARCH(#REF!,S81)+ROW()/100000,\"\")","v":""},"505.922.9600"]
[80,"Encino Terrace","505.247.4185","609 Encino Place NE","Albuquerque",87102,null,82,"420 Coal St. SE",80,1.00082,"1001 Madeira Drive SW",null,null,83,"","",{"$f":"IFERROR(SEARCH(#REF!,S82)+ROW()/100000,\"\")","v":""},"505.266.5855"]
[81,"Encino Villa Apartments","505.989.7271","1501 Montano St.","Santa Fe",87505,null,83,{"$f":"IFERROR(VLOOKUP(H83,J83:L358,3,FALSE),\"\")","v":"412 Alvarado St. SE"},81,1.0008300000000001,"4501 Sprint Blvd. NE",null,null,84,"","",{"$f":"IFERROR(SEARCH(#REF!,S83)+ROW()/100000,\"\")","v":""},"505.891.4900"]
[82,"Evergreen Apartments","505.474.9260","2020 Calle Lorca","Santa Fe",87505,null,84,"609 Encino Place NE",82,1.00084,"420 Coal St. SE",null,null,85,"","",{"$f":"IFERROR(SEARCH(#REF!,S84)+ROW()/100000,\"\")","v":""},"505.489-7322"]
[83,"Falcon Ridge Apartments","575.267.9003","20 South Chile Capital St.","Hatch",87937,null,85,"1501 Montano St.",83,1.00085,"412 Alvarado St. SE",null,null,86,"","",{"$f":"IFERROR(SEARCH(#REF!,S85)+ROW()/100000,\"\")","v":""},"505.266.7736"]
[84,"Four Hills Apartments","575.382.0500","2595 Mars Ave.","Las Cruces",88012,null,86,"2020 Calle Lorca",84,1.0008600000000001,"609 Encino Place NE",null,null,87,"","",{"$f":"IFERROR(SEARCH(#REF!,S86)+ROW()/100000,\"\")","v":""},"505.247.4185"]
[85,"Four Seasons Apartments","575.392.6243","2405 North Jefferson St.","Hobbs",88240,null,87,"20 South Chile Capital St.",85,1.0008699999999999,"1501 Montano St.",null,null,88,"","",{"$f":"IFERROR(SEARCH(#REF!,S87)+ROW()/100000,\"\")","v":""},"505.989.7271"]
[86,"Franklin Vista 1, III, IV, V Apartments","575.882.5049","505 Curry Court, Bldg. E","Anthony",88021,null,88,"2595 Mars Ave.",86,1.00088,"2020 Calle Lorca",null,null,89,"","",{"$f":"IFERROR(SEARCH(#REF!,S88)+ROW()/100000,\"\")","v":""},"505.474.9260"]
[87,"Franklin Vista 2, VI, VII Apartments","575.882.3909","855 Clark Ave.","Anthony",88021,null,89,"2405 North Jefferson St.",87,1.0008900000000001,"20 South Chile Capital St.",null,null,90,"","",{"$f":"IFERROR(SEARCH(#REF!,S89)+ROW()/100000,\"\")","v":""},"575.267.9003"]
[88,"Gallinas Valley Apartments","505.425.5060","2612 Seventh St.","Las Vegas",87701,null,90,"505 Curry Court, Bldg. E",88,1.0008999999999999,"2595 Mars Ave.",null,null,91,"","",{"$f":"IFERROR(SEARCH(#REF!,S90)+ROW()/100000,\"\")","v":""},"575.382.0500"]
[89,"Gallup Group Home","505.783.4567","209 West Adams","Gallup",87301,null,91,"855 Clark Ave.",89,1.00091,"2405 North Jefferson St.",null,null,92,"","",{"$f":"IFERROR(SEARCH(#REF!,S91)+ROW()/100000,\"\")","v":""},"575.392.6243"]
[90,"Gatewood Village Apartments","575.769.1995","1309 West 15th St.","Clovis",88101,null,92,"2612 Seventh St.",90,1.00092,"505 Curry Court, Bldg. E",null,null,93,"","",{"$f":"IFERROR(SEARCH(#REF!,S92)+ROW()/100000,\"\")","v":""},"575.882.5049"]
[91,"Grants Apartments","505.287.4973","1703 Cordova Court","Grants",87020,null,93,"209 West Adams",91,1.0009300000000001,"855 Clark Ave.",null,null,94,"","",{"$f":"IFERROR(SEARCH(#REF!,S93)+ROW()/100000,\"\")","v":""},"575.882.3909"]
[92,"Hidden Valley Apartments","505.863.9253","810 Patton Drive","Gallup",87301,null,94,"1309 West 15th St.",92,1.0009399999999999,"2612 Seventh St.",null,null,95,"","",{"$f":"IFERROR(SEARCH(#REF!,S94)+ROW()/100000,\"\")","v":""},"505.425.5060"]
[93,"Hidden Valley Village","505.632.0004","717 Ruth Lane","Bloomfield",87413,null,95,"1309 West 15th St.",93,1.00095,"209 West Adams",null,null,96,"","",{"$f":"IFERROR(SEARCH(#REF!,S95)+ROW()/100000,\"\")","v":""},"505.783.4567"]
[94,"Highland Park Apartments","575.522.4868","2013 South Triviz Drive","Las Cruces",88001,null,96,"1703 Cordova Court",94,1.0009600000000001,"1309 West 15th St.",null,null,97,"","",{"$f":"IFERROR(SEARCH(#REF!,S96)+ROW()/100000,\"\")","v":""},"575.769.1995"]
[95,"Hilltop Terrace Apartments","505.865.5064","393 Canal Blvd.","Los Lunas",87031,null,97,"810 Patton Drive",95,1.0009699999999999,"1309 West 15th St.",null,null,98,"","",{"$f":"IFERROR(SEARCH(#REF!,S97)+ROW()/100000,\"\")","v":""},"575.769.1995"]
[96,"Hobbs Apartments","575.393.2523","2001 East Clinton St.","Hobbs",88240,null,98,"717 Ruth Lane",96,1.00098,"1703 Cordova Court",null,null,99,"","",{"$f":"IFERROR(SEARCH(#REF!,S98)+ROW()/100000,\"\")","v":""},"505.287.4973"]
[97,"Homeward Bound Apartments","505.471.1174","3454 Cerrillos Road","Santa Fe",87507,null,99,"2013 South Triviz Drive",97,1.00099,"810 Patton Drive",null,null,100,"","",{"$f":"IFERROR(SEARCH(#REF!,S99)+ROW()/100000,\"\")","v":""},"505.863.9253"]
[98,"Hooghan Hozho","505.863.8892","201 East Coal Ave.","Gallup",87301,null,100,"2013 South Triviz Drive",98,1.0009999999999999,"717 Ruth Lane",null,null,101,"","",{"$f":"IFERROR(SEARCH(#REF!,S100)+ROW()/100000,\"\")","v":""},"505.632.0004"]
[99,"Hotel Clovis Lofts","575.763.9588","201 North Main St.","Clovis",88101,null,101,"393 Canal Blvd.",99,1.00101,"2013 South Triviz Drive",null,null,102,"","",{"$f":"IFERROR(SEARCH(#REF!,S101)+ROW()/100000,\"\")","v":""},"575.522.4868"]
[100,"Imperial Apartments","505.247.2551","205 Silver Ave. SW","Albuquerque",87102,null,102,"2001 East Clinton St.",100,1.00102,"2013 South Triviz Drive",null,null,103,"","",{"$f":"IFERROR(SEARCH(#REF!,S102)+ROW()/100000,\"\")","v":""},"575.522.4868"]
[101,"I-Sah-din-dii","575.464.9235","101 Central Ave.","Mescalero",88340,null,103,"3454 Cerrillos Road",101,1.0010300000000001,"393 Canal Blvd.",null,null,104,"","",{"$f":"IFERROR(SEARCH(#REF!,S103)+ROW()/100000,\"\")","v":""},"505.865.5064"]
[102,"Jack Rabbit Hill","505.455.7973","Eagle View Lane","Picuris Pueblo",87553,null,104,"201 East Coal Ave.",102,1.0010399999999999,"2001 East Clinton St.",null,null,105,"","",{"$f":"IFERROR(SEARCH(#REF!,S104)+ROW()/100000,\"\")","v":""},"575.393.2523"]
[103,"James K. Lyons Apartments","575.359.1732","109 North Ave I","Portales",88130,null,105,"201 North Main St.",103,1.00105,"3454 Cerrillos Road",null,null,106,"","",{"$f":"IFERROR(SEARCH(#REF!,S105)+ROW()/100000,\"\")","v":""},"505.471.1174"]
[104,"Jefferson Crossings","505.881.4999","4401 Montgomery NE","Albuquerque",87109,null,106,"205 Silver Ave. SW",104,1.0010600000000001,"201 East Coal Ave.",null,null,107,"","",{"$f":"IFERROR(SEARCH(#REF!,S106)+ROW()/100000,\"\")","v":""},"505.863.8892"]
[105,"Kenneth Wallin Complex","575.461.7823","601 Garcia St.","Logan",88324,null,107,"101 Central Ave.",105,1.0010699999999999,"201 North Main St.",null,null,108,"","",{"$f":"IFERROR(SEARCH(#REF!,S107)+ROW()/100000,\"\")","v":""},"575.763.9588"]
[106,"Kentucky Manor","505.266.7000","437 Kentucky St. SE","Albuquerque",87108,null,108,"Eagle View Lane",106,1.00108,"205 Silver Ave. SW",null,null,109,"","",{"$f":"IFERROR(SEARCH(#REF!,S108)+ROW()/100000,\"\")","v":""},"505.247.2551"]
[107,"King Arthur's Court Apartments","575.542.9336","428 West Gale","Lordsburg",88045,null,109,"109 North Ave I",107,1.00109,"101 Central Ave.",null,null,110,"","",{"$f":"IFERROR(SEARCH(#REF!,S109)+ROW()/100000,\"\")","v":""},"575.464.9235"]
[108,"Kingdom of the Sun Retirement","575.546.6619","800 West Buckeye St.","Deming",88030,null,110,"4401 Montgomery NE",108,1.0011000000000001,"Eagle View Lane",null,null,111,"","",{"$f":"IFERROR(SEARCH(#REF!,S110)+ROW()/100000,\"\")","v":""},"505.455.7973"]
[109,"Kristin Park","505.425.6555","2351 Moreland Drive","Las Vegas",87701,null,111,"601 Garcia St.",109,1.0011099999999999,"109 North Ave I",null,null,112,"","",{"$f":"IFERROR(SEARCH(#REF!,S111)+ROW()/100000,\"\")","v":""},"575.359.1732"]
[110,"La Cantera Senior Apartments","505.890.9400","3600 Old Airport Road NW","Albuquerque",87114,null,112,"437 Kentucky St. SE",110,1.00112,"4401 Montgomery NE",null,null,113,"","",{"$f":"IFERROR(SEARCH(#REF!,S112)+ROW()/100000,\"\")","v":""},"505.881.4999"]
[111,"La Hacienda Apartments","505.864.8477","420 North Second St.","Belen",87002,null,113,"428 West Gale",111,1.0011300000000001,"601 Garcia St.",null,null,114,{"$f":"IFERROR(VLOOKUP(O113,Q113:S389,3,FALSE),\"\")","v":""},"",{"$f":"IFERROR(SEARCH(#REF!,S113)+ROW()/100000,\"\")","v":""},"575.461.7823"]
[112,"La Luz Apartments","505.438.0010","2325 Cerrillos Road","Santa Fe",87505,null,114,"428 West Gale",112,1.0011399999999999,"437 Kentucky St. SE",null,null,115,"","",{"$f":"IFERROR(SEARCH(#REF!,S114)+ROW()/100000,\"\")","v":""},"505.266.7000"]
[113,"La Paloma del Sol","575.546.8567","601 South Santa Monica St.","Deming",88030,null,115,{"$f":"IFERROR(VLOOKUP(H115,J115:L390,3,FALSE),\"\")","v":"800 West Buckeye St."},113,1.00115,"428 West Gale",null,null,116,"","",{"$f":"IFERROR(SEARCH(#REF!,S115)+ROW()/100000,\"\")","v":""},"575.542.9336"]
[114,"La Posada Apartments","575.885.3816","710 Hueco St.","Carlsbad",88220,null,116,"2351 Moreland Drive",114,1.00116,"428 West Gale",null,null,117,"","",{"$f":"IFERROR(SEARCH(#REF!,S116)+ROW()/100000,\"\")","v":""},"575.542.9336"]
[115,"La Pradera Apartments","575.392.0038","1023 East Glorietta Drive","Hobbs",88240,null,117,"3600 Old Airport Road NW",115,1.0011699999999999,"800 West Buckeye St.",null,null,118,"","",{"$f":"IFERROR(SEARCH(#REF!,S117)+ROW()/100000,\"\")","v":""},"575.546.6619"]
[116,"La Resolana Apartments","505.296.1425","1025 Chelwood Park Blvd. NE","Albuquerque",87112,null,118,"420 North Second St.",116,1.00118,"2351 Moreland Drive",null,null,119,"","",{"$f":"IFERROR(SEARCH(#REF!,S118)+ROW()/100000,\"\")","v":""},"505.425.6555"]
[117,"La Terraza Apartments","505.836.5800","3704 Ladera Drive NW","Albuquerque",87120,null,119,"2325 Cerrillos Road",117,1.00119,"3600 Old Airport Road NW",null,null,120,"","",{"$f":"IFERROR(SEARCH(#REF!,S119)+ROW()/100000,\"\")","v":""},"505.890.9400"]
[118,"La Terraza Apartments","505.324.6201","900 Cannery Court","Farmington",87401,null,120,"601 South Santa Monica St.",118,1.0012000000000001,"420 North Second St.",null,null,121,"","",{"$f":"IFERROR(SEARCH(#REF!,S120)+ROW()/100000,\"\")","v":""},"505.864.8477"]
[119,"La Tierra Apartments","575.258.2727","107 Jack Little Drive","Ruidoso",88345,null,121,"710 Hueco St.",119,1.0012099999999999,"2325 Cerrillos Road",null,null,122,"","",{"$f":"IFERROR(SEARCH(#REF!,S121)+ROW()/100000,\"\")","v":""},"505.438.0010"]
[120,"La Vida Nueva","505.265.2860","1200 Dickerson Drive SE","Albuquerque",87106,null,122,"1023 East Glorietta Drive",120,1.00122,"601 South Santa Monica St.",null,null,123,"","",{"$f":"IFERROR(SEARCH(#REF!,S122)+ROW()/100000,\"\")","v":""},"575.546.8567"]
[121,"La Villa Elena","505.867.6123","201 Villa Elena Lane","Bernalillo",87004,null,123,"1025 Chelwood Park Blvd. NE",121,1.0012300000000001,"710 Hueco St.",null,null,124,"","",{"$f":"IFERROR(SEARCH(#REF!,S123)+ROW()/100000,\"\")","v":""},"575.885.3816"]
[122,"Ladera Apartment Homes","575.378.5262","102 Dipalo Hill Drive","Ruidoso Downs",88346,null,124,"3704 Ladera Drive NW",122,1.0012399999999999,"1023 East Glorietta Drive",null,null,125,"","",{"$f":"IFERROR(SEARCH(#REF!,S124)+ROW()/100000,\"\")","v":""},"575.392.0038"]
[123,"Ladera Village Apartments","505.326.1687","3500 North Butler Ave.","Farmington",87401,null,125,"900 Cannery Court",123,1.00125,"1025 Chelwood Park Blvd. NE",null,null,126,"","",{"$f":"IFERROR(SEARCH(#REF!,S125)+ROW()/100000,\"\")","v":""},"505.296.1425"]
[124,"Laguna Homes","505.552.6430","13 Rodeo Drive","Laguna",87026,null,126,"107 Jack Little Drive",124,1.00126,"3704 Ladera Drive NW",null,null,127,"","",{"$f":"IFERROR(SEARCH(#REF!,S126)+ROW()/100000,\"\")","v":""},"505.836.5800"]
[125,"Las Brisas Apartments","505.255.4252","1201 San Pedro Drive SE","Albuquerque",87108,null,127,"1200 Dickerson Drive SE",125,1.0012700000000001,"900 Cannery Court",null,null,128,"","",{"$f":"IFERROR(SEARCH(#REF!,S127)+ROW()/100000,\"\")","v":""},"505.324.6201"]
[126,"Las Lomas Apartments","505.747.3790","600 State Road 76","Espanola",87532,null,128,"201 Villa Elena Lane",126,1.0012799999999999,"107 Jack Little Drive",null,null,129,"","",{"$f":"IFERROR(SEARCH(#REF!,S128)+ROW()/100000,\"\")","v":""},"575.258.2727"]
[127,"Las Palomas Apartments","505.984.8887","2001 Hopewell St.","Santa Fe",87505,null,129,"102 Dipalo Hill Drive",127,1.00129,"1200 Dickerson Drive SE",null,null,130,"","",{"$f":"IFERROR(SEARCH(#REF!,S129)+ROW()/100000,\"\")","v":""},"505.265.2860"]
[128,"Lifestyle Apartments at Renaissance","505.341.3540","4920 Union Way NE","Albuquerque",87107,null,130,"3500 North Butler Ave.",128,{"$f":"IFERROR(SEARCH($D$1,L130)+ROW()/100000,\"\")","v":1.0013000000000001},"201 Villa Elena Lane",null,null,131,"","",{"$f":"IFERROR(SEARCH(#REF!,S130)+ROW()/100000,\"\")","v":""},"505.867.6123"]
[129,"Lintero Apartments","575.388.2519","2711 North Leslie","Silver City",88061,null,131,"13 Rodeo Drive",{"$f":"IFERROR(RANK(K131,$K$3:$K$279,1),\"\")","v":129},1.0013099999999999,"102 Dipalo Hill Drive",null,null,132,"",{"$f":"IFERROR(RANK(R131,$R$3:$R$279,1),\"\")","v":""},{"$f":"IFERROR(SEARCH(#REF!,S131)+ROW()/100000,\"\")","v":""},"575.378.5262"]
[130,"Lolomas Senior Housing","575.763.9575","1500 Mitchell St.","Clovis",88101,null,132,"1201 San Pedro Drive SE",130,1.00132,"3500 North Butler Ave.",null,null,133,"","",{"$f":"IFERROR(SEARCH(#REF!,S132)+ROW()/100000,\"\")","v":""},"505.326.1687"]
[131,"Loma Del Norte","575.882.2282","1130 North Fourth St.","Anthony",88021,null,133,"600 State Road 76",131,1.0013300000000001,"13 Rodeo Drive",null,null,134,"","",{"$f":"IFERROR(SEARCH(#REF!,S133)+ROW()/100000,\"\")","v":""},"505.552.6430"]
[132,"Loma Parda Apartments","575.758.4400","1200 Camino de La Cruz","Taos",87571,null,134,"2001 Hopewell St.",132,1.0013399999999999,"1201 San Pedro Drive SE",null,null,135,"","",{"$f":"IFERROR(SEARCH(#REF!,S134)+ROW()/100000,\"\")","v":""},"505.255.4252"]
[133,"Lomas Gardens","505.292.5916","12601 Lomas Blvd. NE","Albuquerque",87112,null,135,"4920 Union Way NE",133,1.00135,"600 State Road 76",null,null,136,"","",{"$f":"IFERROR(SEARCH(#REF!,S135)+ROW()/100000,\"\")","v":""},"505.747.3790"]
[134,"Los Alamos Group Home","505.662.4703","2056 Peach St.","Los Alamos",87544,null,136,"2711 North Leslie",134,1.00136,"2001 Hopewell St.",null,null,137,"","",{"$f":"IFERROR(SEARCH(#REF!,S136)+ROW()/100000,\"\")","v":""},"505.984.8887"]
[135,"Los Altos Apartments","575.525.8535","2301 El Camino","Las Cruces",88012,null,137,"2711 North Leslie",135,1.0013700000000001,"4920 Union Way NE",null,null,138,"","",{"$f":"IFERROR(SEARCH(#REF!,S137)+ROW()/100000,\"\")","v":""},"505.341.3540"]
[136,"Luna Lodge Apartments","505.266.7000","9119 Central Ave. NE","Albuquerque",87123,null,138,"1500 Mitchell St.",136,1.0013799999999999,"2711 North Leslie",null,null,139,"","",{"$f":"IFERROR(SEARCH(#REF!,S138)+ROW()/100000,\"\")","v":""},"575.388.2519"]
[137,"Main Street Townhomes","575.763.9529","3205 North Main St.","Clovis",88101,null,139,"1130 North Fourth St.",137,1.00139,"2711 North Leslie",null,null,140,"","",{"$f":"IFERROR(SEARCH(#REF!,S139)+ROW()/100000,\"\")","v":""},"575.388.2519"]
[138,"Manzano Mesa Apartments","505.332.7200","700 Eubank Blvd. SE","Albuquerque",87123,null,140,"1200 Camino de La Cruz",138,1.0014000000000001,"1500 Mitchell St.",null,null,141,"","",{"$f":"IFERROR(SEARCH(#REF!,S140)+ROW()/100000,\"\")","v":""},"575.763.9575"]
[139,"Mariposa Village Sr.","575.544.0087","901 South Tennyson","Deming",88030,null,141,"12601 Lomas Blvd. NE",139,1.0014099999999999,"1130 North Fourth St.",null,null,142,"","",{"$f":"IFERROR(SEARCH(#REF!,S141)+ROW()/100000,\"\")","v":""},"575.882.2282"]
[140,"Meadow Vista Homes","575.874.3453","329 Meadow Vista Road","Sunland Park",88063,null,142,"2056 Peach St.",140,1.00142,"1200 Camino de La Cruz",null,null,143,"","",{"$f":"IFERROR(SEARCH(#REF!,S142)+ROW()/100000,\"\")","v":""},"575.758.4400"]
[141,"Mesa Del Norte Apartments","505.661.8474","650 San Ildefonso Road","Los Alamos",87544,null,143,"2301 El Camino",141,1.00143,"12601 Lomas Blvd. NE",null,null,144,"","",{"$f":"IFERROR(SEARCH(#REF!,S143)+ROW()/100000,\"\")","v":""},"505.292.5916"]
[142,"Mesa Ridge Apartments","505.836.1924","3501 Atrisco NW","Albuquerque",87120,null,144,"9119 Central Ave. NE",142,1.0014400000000001,"2056 Peach St.",null,null,145,"","",{"$f":"IFERROR(SEARCH(#REF!,S144)+ROW()/100000,\"\")","v":""},"505.662.4703"]
[143,"Mesa Verde Apartments","575.622.4944","502 South Wyoming Ave.","Roswell",88203,null,145,"3205 North Main St.",143,1.00145,"2301 El Camino",null,null,146,{"$f":"IFERROR(VLOOKUP(O145,Q145:S421,3,FALSE),\"\")","v":""},"",{"$f":"IFERROR(SEARCH(#REF!,S145)+ROW()/100000,\"\")","v":""},"575.525.8535"]
[144,"Mesa Village Apartments","505.564.2570","1750 East Elm St.","Farmington",87401,null,146,"700 Eubank Blvd. SE",144,1.00146,"9119 Central Ave. NE",null,null,147,"","",{"$f":"IFERROR(SEARCH(#REF!,S146)+ROW()/100000,\"\")","v":""},"505.266.7000"]
[145,"Mesquite Village","575.541.5979","1851 North Mesquite St.","Las Cruces",88001,null,147,{"$f":"IFERROR(VLOOKUP(H147,J147:L422,3,FALSE),\"\")","v":"901 South Tennyson"},145,1.0014700000000001,"3205 North Main St.",null,null,148,"","",{"$f":"IFERROR(SEARCH(#REF!,S147)+ROW()/100000,\"\")","v":""},"575.763.9529"]
[146,"Mesquite Village","575.482.9539","412 South Ave. F","Texico",88135,null,148,"329 Meadow Vista Road",146,1.0014799999999999,"700 Eubank Blvd. SE",null,null,149,"","",{"$f":"IFERROR(SEARCH(#REF!,S148)+ROW()/100000,\"\")","v":""},"505.332.7200"]
[147,"Mira Vista Villas","575.647.8444","2141 North Solano Drive","Las Cruces",88001,null,149,"650 San Ildefonso Road",147,1.00149,"901 South Tennyson",null,null,150,"","",{"$f":"IFERROR(SEARCH(#REF!,S149)+ROW()/100000,\"\")","v":""},"575.544.0087"]
[148,"Mission Apartments","575.885.8204","805 Hueco St.","Carlsbad",88220,null,150,"502 South Wyoming Ave.",148,1.0015000000000001,"329 Meadow Vista Road",null,null,151,"","",{"$f":"IFERROR(SEARCH(#REF!,S150)+ROW()/100000,\"\")","v":""},"575.874.3453"]
[149,"Montana Meadows","575.524.1873","201 Montana Ave.","Las Cruces",88005,null,151,"1750 East Elm St.",149,1.0015099999999999,"650 San Ildefonso Road",null,null,152,"","",{"$f":"IFERROR(SEARCH(#REF!,S151)+ROW()/100000,\"\")","v":""},"505.661.8474"]
[150,"Montana Senior Village","575.647.0918","370 East Montana Ave. #101","Las Cruces",88005,null,153,{"$f":"IFERROR(VLOOKUP(H152,J152:L428,3,FALSE),\"\")","v":"412 South Ave. F"},150,1.00152,"502 South Wyoming Ave.",null,null,154,{"$f":"IFERROR(VLOOKUP(O152,Q152:S429,3,FALSE),\"\")","v":""},"",{"$f":"IFERROR(SEARCH(#REF!,S152)+ROW()/100000,\"\")","v":""},"575.622.4944"]
[151,"Monte Vista Apartments","505.454.0098","500 Mountain View Drive","Las Vegas",87701,null,154,"2141 North Solano Drive",151,1.00153,"1750 East Elm St.",null,null,155,"","",{"$f":"IFERROR(SEARCH(#REF!,S153)+ROW()/100000,\"\")","v":""},"505.564.2570"]
[152,"Montgomery Manor","505.296.9023","4301 Morris St. NE","Albuquerque",87111,null,155,"805 Hueco St.",152,1.0015400000000001,"1851 North Mesquite St.",null,null,156,"","",{"$f":"IFERROR(SEARCH(#REF!,S154)+ROW()/100000,\"\")","v":""},"575.541.5979"]
[153,"Mountain View Estates","575.546.6619","1101 Shelly Drive","Deming",88030,null,156,"201 Montana Ave.",153,1.0015499999999999,"412 South Ave. F",null,null,157,"","",{"$f":"IFERROR(SEARCH(#REF!,S155)+ROW()/100000,\"\")","v":""},"575.482.9539"]
[154,"Mountain View II","505.266.5455","1515 Columbia St. SE","Albuquerque",87106,null,157,"201 Montana Ave.",154,1.00156,"2141 North Solano Drive",null,null,158,"","",{"$f":"IFERROR(SEARCH(#REF!,S156)+ROW()/100000,\"\")","v":""},"575.647.8444"]
[155,"Mountain View III","505.266.5455","1333 Columbia St. SE","Albuquerque",87106,null,158,"370 East Montana Ave. #101",155,1.0015700000000001,"805 Hueco St.",null,null,159,"","",{"$f":"IFERROR(SEARCH(#REF!,S157)+ROW()/100000,\"\")","v":""},"575.885.8204"]
[156,"Mountain Vista Apartments","505.662.5417","600 San Ildefonso Road","Los Alamos",87544,null,159,"500 Mountain View Drive",156,1.0015799999999999,"201 Montana Ave.",null,null,160,"","",{"$f":"IFERROR(SEARCH(#REF!,S158)+ROW()/100000,\"\")","v":""},"575.524.1873"]
[157,"New Leaf Communities","575.964.1571","1601 East Marland St.","Hobbs",88240,null,160,"4301 Morris St. NE",157,1.00159,"201 Montana Ave.",null,null,161,"","",{"$f":"IFERROR(SEARCH(#REF!,S159)+ROW()/100000,\"\")","v":""},"575.527.8566"]
[158,"NewLife Homes IV","505.433.5111","6600 Delia Roa SW","Albuquerque",87121,null,161,"4301 Morris St. NE",158,1.0016,"370 East Montana Ave. #101",null,null,162,"","",{"$f":"IFERROR(SEARCH(#REF!,S160)+ROW()/100000,\"\")","v":""},"575.647.0918"]
[159,"North Star Apartments","505.425.5060","333 Chico Drive","Las Vegas",87701,null,162,"1101 Shelly Drive",159,1.0016099999999999,"500 Mountain View Drive",null,null,163,"","",{"$f":"IFERROR(SEARCH(#REF!,S161)+ROW()/100000,\"\")","v":""},"505.454.0098"]
[160,"Northgate Apartments","505.327.4197","2500 West Apache St.","Farmington",87401,null,163,"1101 Shelly Drive",160,1.00162,"4301 Morris St. NE",null,null,164,"","",{"$f":"IFERROR(SEARCH(#REF!,S162)+ROW()/100000,\"\")","v":""},"505.296.9023"]
[161,"Ortiz Properties","505.255.8275","1335 Ortiz Road SE","Albuquerque",87108,null,164,"1515 Columbia St. SE",161,1.00163,"4301 Morris St. NE",null,null,165,"","",{"$f":"IFERROR(SEARCH(#REF!,S163)+ROW()/100000,\"\")","v":""},"505.296.9023"]
[162,"Otero Village Apartments","575.437.0498","2553 East First St.","Alamogordo",88310,null,165,"1333 Columbia St. SE",162,1.0016400000000001,"1101 Shelly Drive",null,null,166,"","",{"$f":"IFERROR(SEARCH(#REF!,S164)+ROW()/100000,\"\")","v":""},"575.546.6619"]
[163,"PAHA LIHTC Homes #1","505.552.7528","6-A Sunrise Road","Pueblo of Acoma",87034,null,166,"600 San Ildefonso Road",163,1.0016499999999999,"1101 Shelly Drive",null,null,167,"","",{"$f":"IFERROR(SEARCH(#REF!,S165)+ROW()/100000,\"\")","v":""},"575.546.6619"]
[164,"Park Place Apartments","575.397.2195","920 East Michigan Drive","Hobbs",88240,null,167,"1601 East Marland St.",164,1.00166,"1515 Columbia St. SE",null,null,168,"","",{"$f":"IFERROR(SEARCH(#REF!,S166)+ROW()/100000,\"\")","v":""},"505.266.5455"]
[165,"Parkside Village","575.769.2490","1200 North Sycamore St.","Clovis",88101,null,168,"6600 Delia Roa SW",165,1.0016700000000001,"1333 Columbia St. SE",null,null,169,"","",{"$f":"IFERROR(SEARCH(#REF!,S167)+ROW()/100000,\"\")","v":""},"505.266.5455"]
[166,"Pasa Tiempo","505.988.2859","664 Alta Vista St.","Santa Fe",87507,null,169,"333 Chico Drive",166,1.0016799999999999,"600 San Ildefonso Road",null,null,170,"","",{"$f":"IFERROR(SEARCH(#REF!,S168)+ROW()/100000,\"\")","v":""},"505.662.5417"]
[167,"Paseo Del Sol Apartments","505.473.5980","4551 Paseo Del Sol","Santa Fe",87507,null,170,"2500 West Apache St.",167,1.00169,"1601 East Marland St.",null,null,171,"","",{"$f":"IFERROR(SEARCH(#REF!,S169)+ROW()/100000,\"\")","v":""},"575.964.1571"]
[168,"Paseo del Sol Apartments  ","505.897.8356","291 El Pueblo Road NW","Los Ranchos de Albuquerque",87114,null,171,"2500 West Apache St.",168,1.0017,"6600 Delia Roa SW",null,null,172,"","",{"$f":"IFERROR(SEARCH(#REF!,S170)+ROW()/100000,\"\")","v":""},"505.433.5111"]
[169,"Pecos Valley Village","575.623.1800","Scattered Site","Roswell",88203,null,172,"1335 Ortiz Road SE",169,1.0017100000000001,"333 Chico Drive",null,null,173,"","",{"$f":"IFERROR(SEARCH(#REF!,S171)+ROW()/100000,\"\")","v":""},"505.425.5060"]
[170,"Piñon Hills Apartments","505.722.6025","2811 Dairy Drive","Gallup",87301,null,173,"2553 East First St.",170,1.0017199999999999,"2500 West Apache St.",null,null,174,"","",{"$f":"IFERROR(SEARCH(#REF!,S172)+ROW()/100000,\"\")","v":""},"505.327.4197"]
[171,"Pinon Palmer Rental","575.464.9235","165 Bull Pen Road","Mescalero",88340,null,174,"6-A Sunrise Road",171,1.00173,"2500 West Apache St.",null,null,175,"","",{"$f":"IFERROR(SEARCH(#REF!,S173)+ROW()/100000,\"\")","v":""},"505.327.4197"]
[172,"Pinos Blancos","505.632.3206","600 West Blanco Blvd.","Bloomfield",87413,null,175,"920 East Michigan Drive",172,1.0017400000000001,"1335 Ortiz Road SE",null,null,176,"","",{"$f":"IFERROR(SEARCH(#REF!,S174)+ROW()/100000,\"\")","v":""},"505.255.8275"]
[173,"Playa Apartments","575.589.0498","142 Linda Vista Drive","Sunland Park",88063,null,176,"1200 North Sycamore St.",173,1.0017499999999999,"2553 East First St.",null,null,177,"","",{"$f":"IFERROR(SEARCH(#REF!,S175)+ROW()/100000,\"\")","v":""},"575.437.0498"]
[174,"Plaza Ciudaña","505.219.2163","310 Indian School Road NE","Albuquerque",87102,null,177,"664 Alta Vista St.",174,1.00176,"6-A Sunrise Road",null,null,178,"","",{"$f":"IFERROR(SEARCH(#REF!,S176)+ROW()/100000,\"\")","v":""},"505.552.7528"]
[175,"Plaza David Chavez","505.242.1361","2821 Mountain Road NW","Albuquerque",87104,null,178,"4551 Paseo Del Sol",175,1.00177,"920 East Michigan Drive",null,null,179,"","",{"$f":"IFERROR(SEARCH(#REF!,S177)+ROW()/100000,\"\")","v":""},"575.397.2195"]
[176,"Plaza Feliz Apartments","505.255.3030","517 San Pablo St. SE","Albuquerque",87108,null,179,"291 El Pueblo Road NW",176,1.0017799999999999,"1200 North Sycamore St.",null,null,180,"","",{"$f":"IFERROR(SEARCH(#REF!,S178)+ROW()/100000,\"\")","v":""},"575.769.2490"]
[177,"Polk Avenue Apartments","575.396.6129","214 West Polk Ave.","Lovington",88260,null,180,"Scattered Site",177,1.00179,"664 Alta Vista St.",null,null,181,"","",{"$f":"IFERROR(SEARCH(#REF!,S179)+ROW()/100000,\"\")","v":""},"505.988.2859"]
[178,"Portales Estates","575.359.0610","1903 South Avenue I, H5","Portales",88130,null,181,"2811 Dairy Drive",178,1.0018,"4551 Paseo Del Sol",null,null,182,"","",{"$f":"IFERROR(SEARCH(#REF!,S180)+ROW()/100000,\"\")","v":""},"505.473.5980"]
[179,"Quay Apartments","575.461.3555","702 West Sunset Ave.","Tucumcari",88401,null,182,"165 Bull Pen Road",179,1.0018100000000001,"291 El Pueblo Road NW",null,null,183,"","",{"$f":"IFERROR(SEARCH(#REF!,S181)+ROW()/100000,\"\")","v":""},"505.897.8356"]
[180,"Ranchitos Village Apartments","505.822.9159","6811 Ranchitos Road NE","Albuquerque",87109,null,183,"600 West Blanco Blvd.",180,1.0018199999999999,"Scattered Site",null,null,184,"","",{"$f":"IFERROR(SEARCH(#REF!,S182)+ROW()/100000,\"\")","v":""},"575.623.1800"]
[181,"Red Lake Acres","505.777.2480","PO Box 1277","Navajo",87328,null,184,"142 Linda Vista Drive",181,1.00183,"2811 Dairy Drive",null,null,185,"","",{"$f":"IFERROR(SEARCH(#REF!,S183)+ROW()/100000,\"\")","v":""},"505.722.6025"]
[182,"Rio Abajo Apartments","575.894.2875","1485 East Second Ave.","T or C",87901,null,185,"310 Indian School Road NE",182,1.0018400000000001,"165 Bull Pen Road",null,null,186,"","",{"$f":"IFERROR(SEARCH(#REF!,S184)+ROW()/100000,\"\")","v":""},"575.464.9235"]
[183,"Rio Mimbres Apartments","575.546.8257","1608 South Tin St.","Deming",88030,null,186,"2821 Mountain Road NW",183,1.0018499999999999,"600 West Blanco Blvd.",null,null,187,"","",{"$f":"IFERROR(SEARCH(#REF!,S185)+ROW()/100000,\"\")","v":""},"505.632.3206"]
[184,"Rio Pecos Estates","575.472.2272","1005 McCarley Loop","Santa Rosa",88435,null,187,"517 San Pablo St. SE",184,1.00186,"142 Linda Vista Drive",null,null,188,"","",{"$f":"IFERROR(SEARCH(#REF!,S186)+ROW()/100000,\"\")","v":""},"575.589.0498"]
[185,"Rio Verde Apartments","505.864.9558","2291 Highway 304","Belen",87002,null,188,"214 West Polk Ave.",185,1.00187,"310 Indian School Road NE",null,null,189,"","",{"$f":"IFERROR(SEARCH(#REF!,S187)+ROW()/100000,\"\")","v":""},"505.219.2163"]
[186,"Rio Vista Apartments","505.299.9119","770 Juan Tabo Blvd. NE","Albuquerque",87123,null,189,"214 West Polk Ave.",186,1.0018800000000001,"2821 Mountain Road NW",null,null,190,"","",{"$f":"IFERROR(SEARCH(#REF!,S188)+ROW()/100000,\"\")","v":""},"505.242.1361"]
[187,"Rio Volcan Apartments","505.836.0902","1919 Ladera Drive NW","Albuquerque",87120,null,191,{"$f":"IFERROR(VLOOKUP(H189,J189:L466,3,FALSE),\"\")","v":"702 West Sunset Ave."},187,1.0018899999999999,"517 San Pablo St. SE",null,null,192,{"$f":"IFERROR(VLOOKUP(O189,Q189:S467,3,FALSE),\"\")","v":""},"",{"$f":"IFERROR(SEARCH(#REF!,S189)+ROW()/100000,\"\")","v":""},"505.255.3030"]
[188,"River Glen Apartments","505.839.0600","6801 Glenrio Road NW","Albuquerque",87121,null,192,"6811 Ranchitos Road NE",188,1.0019,"214 West Polk Ave.",null,null,193,"","",{"$f":"IFERROR(SEARCH(#REF!,S190)+ROW()/100000,\"\")","v":""},"575.396.6129"]
[189,"Robledo Ridge Apartments","575.556.9820","1519 Medina Drive","Las Cruces",88007,null,193,"PO Box 1277",189,1.0019100000000001,"214 West Polk Ave.",null,null,194,"","",{"$f":"IFERROR(SEARCH(#REF!,S191)+ROW()/100000,\"\")","v":""},"575.396.6129"]
[190,"Roselawn Apartments","575.736.1073","1006 South Roselawn","Artesia",88210,null,194,"1485 East Second Ave.",190,{"$f":"IFERROR(SEARCH($D$1,L192)+ROW()/100000,\"\")","v":1.0019199999999999},"1903 South Avenue I, H5",null,null,195,"","",{"$f":"IFERROR(SEARCH(#REF!,S192)+ROW()/100000,\"\")","v":""},"575.359.0610"]
[191,"Roswell Summit Apartments","575.622.4646","1100 South Wyoming","Roswell",88203,null,195,"1608 South Tin St.",191,1.00193,"702 West Sunset Ave.",null,null,196,"","",{"$f":"IFERROR(SEARCH(#REF!,S193)+ROW()/100000,\"\")","v":""},"575.461.3555"]
[192,"Ruth Visage Apartments","575.356.6562","1101 West Fir St.","Portales",88130,null,196,"1005 McCarley Loop",192,1.0019400000000001,"6811 Ranchitos Road NE",null,null,197,"","",{"$f":"IFERROR(SEARCH(#REF!,S194)+ROW()/100000,\"\")","v":""},"505.822.9159"]
[193,"Saddlecreek Apartments","575.622.3042","1901 South Sunset Ave.","Roswell",88203,null,197,"2291 Highway 304",{"$f":"IFERROR(RANK(K195,$K$3:$K$279,1),\"\")","v":193},1.0019499999999999,"PO Box 1277",null,null,198,"",{"$f":"IFERROR(RANK(R195,$R$3:$R$279,1),\"\")","v":""},{"$f":"IFERROR(SEARCH(#REF!,S195)+ROW()/100000,\"\")","v":""},"505.777.2480"]
[194,"Sage Apartments","505.863.4111","110 Rudy Drive","Gallup",87301,null,198,"770 Juan Tabo Blvd. NE",194,1.00196,"1485 East Second Ave.",null,null,199,"","",{"$f":"IFERROR(SEARCH(#REF!,S196)+ROW()/100000,\"\")","v":""},"575.894.2875"]
[195,"Sagebrush Place Apartments","505.722.7454","650 Dani Drive","Gallup",87301,null,199,"770 Juan Tabo Blvd. NE",195,1.00197,"1608 South Tin St.",null,null,200,"","",{"$f":"IFERROR(SEARCH(#REF!,S197)+ROW()/100000,\"\")","v":""},"575.546.8257"]
[196,"Saint Anthony Plaza Apartments","505.766.5619","1750 Indian School Road NW","Albuquerque",87104,null,200,"1919 Ladera Drive NW",196,1.0019800000000001,"1005 McCarley Loop",null,null,201,"","",{"$f":"IFERROR(SEARCH(#REF!,S198)+ROW()/100000,\"\")","v":""},"575.472.2272"]
[197,"San Juan Apartments","505.325.8590","2614 East 20th St.","Farmington",87401,null,201,"6801 Glenrio Road NW",197,1.0019899999999999,"2291 Highway 304",null,null,202,"","",{"$f":"IFERROR(SEARCH(#REF!,S199)+ROW()/100000,\"\")","v":""},"505.864.9558"]
[198,"San Miguel Senior Apartments","505.425.5060","2710 Collins Drive","Las Vegas",87701,null,202,"1519 Medina Drive",198,1.002,"770 Juan Tabo Blvd. NE",null,null,203,"","",{"$f":"IFERROR(SEARCH(#REF!,S200)+ROW()/100000,\"\")","v":""},"505.299.9119"]
[199,"San Tierra Apartments","505.438.4944","3991 Camino Juliana","Santa Fe",87507,null,203,"1519 Medina Drive",199,1.0020100000000001,"770 Juan Tabo Blvd. NE",null,null,204,"","",{"$f":"IFERROR(SEARCH(#REF!,S201)+ROW()/100000,\"\")","v":""},"505.293.5565"]
[200,"Sandia Valley Apartments","505.352.2170","8200 Bridge Blvd. SW","Albuquerque",87121,null,204,"1006 South Roselawn",200,1.0020199999999999,"1919 Ladera Drive NW",null,null,205,"","",{"$f":"IFERROR(SEARCH(#REF!,S202)+ROW()/100000,\"\")","v":""},"505.836.0902"]
[201,"Sandia Vista Apartments","505.298.4461","901 Tramway Blvd. NE","Albuquerque",87123,null,205,"1100 South Wyoming",201,1.00203,"6801 Glenrio Road NW",null,null,206,"","",{"$f":"IFERROR(SEARCH(#REF!,S203)+ROW()/100000,\"\")","v":""},"505.839.0600"]
[202,"Sangre De Cristo Apartments","505.984.1856","1801 Espinacitas St.","Santa Fe",87505,null,206,"1100 South Wyoming",202,1.00204,"1519 Medina Drive",null,null,207,"","",{"$f":"IFERROR(SEARCH(#REF!,S204)+ROW()/100000,\"\")","v":""},"575.556.9820"]
[203,"Santa Fe Apartments","505.983.2260","255 Camino Alire","Santa Fe",87501,null,207,"1101 West Fir St.",203,1.0020500000000001,"1519 Medina Drive",null,null,208,"","",{"$f":"IFERROR(SEARCH(#REF!,S205)+ROW()/100000,\"\")","v":""},"575.556.9820"]
[204,"Santa Maria El Mirador","505.852.4243","365 County Road 40","Alcalde",87511,null,208,"1901 South Sunset Ave.",204,1.00206,"1006 South Roselawn",null,null,209,"","",{"$f":"IFERROR(SEARCH(#REF!,S206)+ROW()/100000,\"\")","v":""},"575.736.1073"]
[205,"Santa Rosa Apartments","575.472.3275","155 Palm Ave.","Santa Rosa",88435,null,209,"110 Rudy Drive",205,1.00207,"1100 South Wyoming",null,null,210,"","",{"$f":"IFERROR(SEARCH(#REF!,S207)+ROW()/100000,\"\")","v":""},"575.622.4646"]
[206,"Santa Teresa Terrace","575.589.0123","105 Comerciantes Blvd.","Santa Teresa",88008,null,210,"650 Dani Drive",206,1.0020800000000001,"1100 South Wyoming",null,null,211,"","",{"$f":"IFERROR(SEARCH(#REF!,S208)+ROW()/100000,\"\")","v":""},"575.622.4646"]
[207,"Sawmill Lofts","505.842.6455","1801 Bellamah Ave. NW","Albuquerque",87104,null,211,"650 Dani Drive",207,1.0020899999999999,"1101 West Fir St.",null,null,212,"","",{"$f":"IFERROR(SEARCH(#REF!,S209)+ROW()/100000,\"\")","v":""},"575.356.6562"]
[208,"SD-Y2K","505.465.1003","#26 Highway 22 West","Santo Domingo",87502,null,212,"1750 Indian School Road NW",208,1.0021,"1901 South Sunset Ave.",null,null,213,"","",{"$f":"IFERROR(SEARCH(#REF!,S210)+ROW()/100000,\"\")","v":""},"575.622.3042"]
[209,"Sedona Village Apartments","575.762.3280","1500 Echols Ave.","Clovis",88101,null,213,"1750 Indian School Road NW",209,1.0021100000000001,"110 Rudy Drive",null,null,214,"","",{"$f":"IFERROR(SEARCH(#REF!,S211)+ROW()/100000,\"\")","v":""},"505.863.4111"]
[210,"Shiprock Houses and Apartments","505.368.4426","NM Highway 491 South","Shiprock",87420,null,214,"2614 East 20th St.",210,1.0021199999999999,"650 Dani Drive",null,null,215,"","",{"$f":"IFERROR(SEARCH(#REF!,S212)+ROW()/100000,\"\")","v":""},"505.722.7454"]
[211,"Sierra Vista Apartments","575.936.4286","878 North Iron St.","Deming",88030,null,215,"2710 Collins Drive",211,1.00213,"650 Dani Drive",null,null,216,"","",{"$f":"IFERROR(SEARCH(#REF!,S213)+ROW()/100000,\"\")","v":""},"505.722.7454"]
[212,"Silver Cliffs Village Apartments","575.538.9000","1414 Little Walnut Road","Silver City",88061,null,216,"3991 Camino Juliana",212,1.00214,"1750 Indian School Road NW",null,null,217,"","",{"$f":"IFERROR(SEARCH(#REF!,S214)+ROW()/100000,\"\")","v":""},"505.766.5619"]
[213,"Silver Gardens Apartments","505.246.8500","100 Silver Ave. SW","Albuquerque",87102,null,217,"8200 Bridge Blvd. SW",213,1.0021500000000001,"1750 Indian School Road NW",null,null,218,"","",{"$f":"IFERROR(SEARCH(#REF!,S215)+ROW()/100000,\"\")","v":""},"505.766.5619"]
[214,"Silver Moon Lodge","505.242.6134","901 Park Ave. SW","Albuquerque",87102,null,218,"901 Tramway Blvd. NE",214,1.0021599999999999,"2614 East 20th St.",null,null,219,"","",{"$f":"IFERROR(SEARCH(#REF!,S216)+ROW()/100000,\"\")","v":""},"505.325.8590"]
[215,"Socorro Village Apartments","575.835.0196","444 Eaton Ave. SW","Socorro",87801,null,219,"901 Tramway Blvd. NE",215,1.00217,"2710 Collins Drive",null,null,220,"","",{"$f":"IFERROR(SEARCH(#REF!,S217)+ROW()/100000,\"\")","v":""},"505.425.5060"]
[216,"Solar Villa Apartments","505.266.1976","1135 Texas St. NE","Albuquerque",87110,null,220,"1801 Espinacitas St.",216,1.0021800000000001,"3991 Camino Juliana",null,null,221,"","",{"$f":"IFERROR(SEARCH(#REF!,S218)+ROW()/100000,\"\")","v":""},"505.438.4944"]
[217,"Southview Place Apartments","575.396.7551","1300 West Brian Urlacher","Lovington",88260,null,221,"255 Camino Alire",217,1.0021899999999999,"8200 Bridge Blvd. SW",null,null,222,"","",{"$f":"IFERROR(SEARCH(#REF!,S219)+ROW()/100000,\"\")","v":""},"505.352.2170"]
[218,"Spicewood Canyon Villas","575.622.3636","1301 East Alameda","Roswell",88203,null,222,"365 County Road 40",218,1.0022,"901 Tramway Blvd. NE",null,null,223,"","",{"$f":"IFERROR(SEARCH(#REF!,S220)+ROW()/100000,\"\")","v":""},"505.298.4461"]
[219,"Stage Coach Apartment Homes","505.466.1560","3360 Cerrillos Road","Santa Fe",87507,null,223,{"$f":"IFERROR(VLOOKUP(H221,J221:L498,3,FALSE),\"\")","v":"155 Palm Ave."},219,1.00221,"901 Tramway Blvd. NE",null,null,224,{"$f":"IFERROR(VLOOKUP(O221,Q221:S499,3,FALSE),\"\")","v":""},"",{"$f":"IFERROR(SEARCH(#REF!,S221)+ROW()/100000,\"\")","v":""},"505.298.4461"]
[220,"Stone Mountain Place","575.525.8448","930 East Boutz Road","Las Cruces",88001,null,224,"105 Comerciantes Blvd.",220,1.0022200000000001,"1801 Espinacitas St.",null,null,225,"","",{"$f":"IFERROR(SEARCH(#REF!,S222)+ROW()/100000,\"\")","v":""},"505.984.1856"]
[221,"Sun Pointe Park Apartments","505.881.4644","4057 Montgomery Blvd. NW","Albuquerque",87109,null,225,"1801 Bellamah Ave. NW",221,1.00223,"255 Camino Alire",null,null,226,"","",{"$f":"IFERROR(SEARCH(#REF!,S223)+ROW()/100000,\"\")","v":""},"505.983.2260"]
[222,"Sun Valley Apartments","505.863.6726","105 East Montoya Blvd. #16","Gallup",87301,null,226,"#26 Highway 22 West",222,1.00224,"365 County Road 40",null,null,227,"","",{"$f":"IFERROR(SEARCH(#REF!,S224)+ROW()/100000,\"\")","v":""},"505.852.4243"]
[223,"Sundowner Apartments","505.266.7000","6101 Central Ave. NE","Albuquerque",87108,null,227,"1500 Echols Ave.",223,1.0022500000000001,"155 Palm Ave.",null,null,228,"","",{"$f":"IFERROR(SEARCH(#REF!,S225)+ROW()/100000,\"\")","v":""},"575.472.3275"]
[224,"Sunset 1600 Apartments","575.623.2494","1601 South Sunset Ave.","Roswell",88201,null,228,"NM Highway 491 South",224,1.0022599999999999,"105 Comerciantes Blvd.",null,null,229,"","",{"$f":"IFERROR(SEARCH(#REF!,S226)+ROW()/100000,\"\")","v":""},"575.589.0123"]
[225,"Sunset Hills Apartments","505.722.6908","200 Rudy Lane","Gallup",87301,null,229,"878 North Iron St.",225,1.00227,"1801 Bellamah Ave. NW",null,null,230,"","",{"$f":"IFERROR(SEARCH(#REF!,S227)+ROW()/100000,\"\")","v":""},"505.842.6455"]
[226,"Taos Haus Apartments","575.758.0471","635 Paseo del Pueblo Sur","Taos",87571,null,230,"1414 Little Walnut Road",226,1.0022800000000001,"#26 Highway 22 West",null,null,231,"","",{"$f":"IFERROR(SEARCH(#REF!,S228)+ROW()/100000,\"\")","v":""},"505.465.1003"]
[227,"The Artisan at Sawmill Village","505.554.3859","1751 Bellamah Ave. NW","Albuquerque",87104,null,231,"100 Silver Ave. SW",227,1.0022899999999999,"1500 Echols Ave.",null,null,232,"","",{"$f":"IFERROR(SEARCH(#REF!,S229)+ROW()/100000,\"\")","v":""},"575.762.3280"]
[228,"The Beach Apartments","505.243.4068","2525 Tingley Drive SW","Albuquerque",87104,null,232,"901 Park Ave. SW",228,1.0023,"NM Highway 491 South",null,null,233,"","",{"$f":"IFERROR(SEARCH(#REF!,S230)+ROW()/100000,\"\")","v":""},"505.368.4426"]
[229,"The Bluffs at Tierra Contenta","505.471.3100","6600 Jaguar Dr.","Santa Fe",87507,null,233,"444 Eaton Ave. SW",229,1.00231,"878 North Iron St.",null,null,234,"","",{"$f":"IFERROR(SEARCH(#REF!,S231)+ROW()/100000,\"\")","v":""},"575.936.4286"]
[230,"The Cedars","575.397.6338","501 West Alto Drive","Hobbs",88240,null,234,"444 Eaton Ave. SW",230,1.0023200000000001,"1414 Little Walnut Road",null,null,235,"","",{"$f":"IFERROR(SEARCH(#REF!,S232)+ROW()/100000,\"\")","v":""},"575.538.9000"]
[231,"The Village Sage Apartments","505.474.4226","5951 Larson Loop","Santa Fe",87507,null,235,"1135 Texas St. NE",231,1.0023299999999999,"100 Silver Ave. SW",null,null,236,"","",{"$f":"IFERROR(SEARCH(#REF!,S233)+ROW()/100000,\"\")","v":""},"505.246.8500"]
[232,"Tierra Encantada","575.882.3909","805 Clark Ave.","Anthony",88021,null,236,"1300 West Brian Urlacher",232,1.00234,"901 Park Ave. SW",null,null,237,"","",{"$f":"IFERROR(SEARCH(#REF!,S234)+ROW()/100000,\"\")","v":""},"505.242.6134"]
[233,"Tierra Montosa Apartments","575.758.0471","750 Gusdorf Road","Taos",87571,null,237,"1301 East Alameda",233,1.0023500000000001,"444 Eaton Ave. SW",null,null,238,"","",{"$f":"IFERROR(SEARCH(#REF!,S235)+ROW()/100000,\"\")","v":""},"575.835.0196"]
[234,"Tradewinds Carriage Apartments","575.894.2244","1301 North Pershing St.","T or C",87901,null,238,"3360 Cerrillos Road",234,1.0023599999999999,"444 Eaton Ave. SW",null,null,239,"","",{"$f":"IFERROR(SEARCH(#REF!,S236)+ROW()/100000,\"\")","v":""},"575.835.0196"]
[235,"Tres Santos Apartments","505.988.2846","1619 Pacheco St.","Santa Fe",87505,null,239,"930 East Boutz Road",235,1.00237,"1135 Texas St. NE",null,null,240,"","",{"$f":"IFERROR(SEARCH(#REF!,S237)+ROW()/100000,\"\")","v":""},"505.266.1976"]
[236,"Tsigo Bugeh Village","505.753.9419","100 Tsigo Bugeh Road","Ohkay Owingeh",87566,null,240,"4057 Montgomery Blvd. NW",236,1.00238,"1300 West Brian Urlacher",null,null,241,"","",{"$f":"IFERROR(SEARCH(#REF!,S238)+ROW()/100000,\"\")","v":""},"575.396.7551"]
[237,"Tucson Apartments","505.833.6000","5401 Tucson Ave. NW","Albuquerque",87120,null,241,"105 East Montoya Blvd. #16",237,1.0023899999999999,"1301 East Alameda",null,null,242,"","",{"$f":"IFERROR(SEARCH(#REF!,S239)+ROW()/100000,\"\")","v":""},"575.622.3636"]
[238,"Tuscany at St. Francis","505.983.6666","2218 Miguel Chavez Road","Santa Fe",87505,null,242,"6101 Central Ave. NE",238,1.0024,"3360 Cerrillos Road",null,null,243,"","",{"$f":"IFERROR(SEARCH(#REF!,S240)+ROW()/100000,\"\")","v":""},"505.466.1560"]
[239,"Valencia Court Apartments","505.265.3300","200 Valencia Drive SE","Albuquerque",87108,null,243,"1601 South Sunset Ave.",239,1.00241,"930 East Boutz Road",null,null,244,"","",{"$f":"IFERROR(SEARCH(#REF!,S241)+ROW()/100000,\"\")","v":""},"575.525.8448"]
[240,"Valle Del Sol Apartments","505.254.4726","370 Atrisco Drive SW","Albuquerque",87105,null,244,"200 Rudy Lane",240,1.0024200000000001,"4057 Montgomery Blvd. NW",null,null,245,"","",{"$f":"IFERROR(SEARCH(#REF!,S242)+ROW()/100000,\"\")","v":""},"505.881.4644"]
[241,"Valle Verde Apartments","575.267.0203","360 Bianes St.","Hatch",87937,null,245,"200 Rudy Lane",241,1.0024299999999999,"105 East Montoya Blvd. #16",null,null,246,"","",{"$f":"IFERROR(SEARCH(#REF!,S243)+ROW()/100000,\"\")","v":""},"505.863.6726"]
[242,"Valley View Apartments","575.538.9523","2080 Memory Lane","Silver City",88061,null,246,"635 Paseo del Pueblo Sur",242,1.00244,"6101 Central Ave. NE",null,null,247,"","",{"$f":"IFERROR(SEARCH(#REF!,S244)+ROW()/100000,\"\")","v":""},"505.266.7000"]
[243,"Ventana Cove Apartments","505.865.5858","450 Los Cerritos Road","Los Lunas",87031,null,247,"1751 Bellamah Ave. NW",243,1.0024500000000001,"1601 South Sunset Ave.",null,null,248,"","",{"$f":"IFERROR(SEARCH(#REF!,S245)+ROW()/100000,\"\")","v":""},"575.623.2494"]
[244,"Ventana De Vida","505.982.3200","1500 Pacheco St.","Santa Fe",87505,null,248,"2525 Tingley Drive SW",244,1.0024599999999999,"200 Rudy Lane",null,null,249,"","",{"$f":"IFERROR(SEARCH(#REF!,S246)+ROW()/100000,\"\")","v":""},"505.722.6908"]
[245,"Ventana Ranch Apartments","505.922.0092","10400 Universe Blvd. NW","Albuquerque",87114,null,249,"6600 Jaguar Dr.",245,1.00247,"200 Rudy Lane",null,null,250,"","",{"$f":"IFERROR(SEARCH(#REF!,S247)+ROW()/100000,\"\")","v":""},"505.722.6908"]
[246,"Villa Alegre Family Apartments","505.501.6011","244 Villa Alegre","Santa Fe",87501,null,250,"501 West Alto Drive",246,1.00248,"635 Paseo del Pueblo Sur",null,null,251,"","",{"$f":"IFERROR(SEARCH(#REF!,S248)+ROW()/100000,\"\")","v":""},"575.758.0471"]
[247,"Villa Alegre Senior Apartments","505.501.6008","144 Villa Alegre","Santa Fe",87501,null,251,"5951 Larson Loop",247,1.0024900000000001,"1751 Bellamah Ave. NW",null,null,252,"","",{"$f":"IFERROR(SEARCH(#REF!,S249)+ROW()/100000,\"\")","v":""},"505.554.3859"]
[248,"Villa Consuelo Apartments","505.471.0565","1200 Camino Consuelo","Santa Fe",87507,null,252,"805 Clark Ave.",248,1.0024999999999999,"2525 Tingley Drive SW",null,null,253,"","",{"$f":"IFERROR(SEARCH(#REF!,S250)+ROW()/100000,\"\")","v":""},"505.243.4068"]
[249,"Villa De Gallup","505.726.0804","325 Klagetoh St.","Gallup",87301,null,253,"750 Gusdorf Road",249,1.00251,"6600 Jaguar Dr.",null,null,254,"","",{"$f":"IFERROR(SEARCH(#REF!,S251)+ROW()/100000,\"\")","v":""},"505.471.3100"]
[250,"Villa de San Felipe","505.244.1500","601 Coal Ave. SW","Albuquerque",87102,null,254,"1301 North Pershing St.",250,1.0025200000000001,"501 West Alto Drive",null,null,255,"","",{"$f":"IFERROR(SEARCH(#REF!,S252)+ROW()/100000,\"\")","v":""},"575.397.6338"]
[251,"Villa De Tularosa Senior Housing","575.585.9848","1205 Monte Vista Ave.","Tularosa",88352,null,255,{"$f":"IFERROR(VLOOKUP(H253,J253:L530,3,FALSE),\"\")","v":"1619 Pacheco St."},251,1.0025299999999999,"5951 Larson Loop",null,null,256,{"$f":"IFERROR(VLOOKUP(O253,Q253:S531,3,FALSE),\"\")","v":""},"",{"$f":"IFERROR(SEARCH(#REF!,S253)+ROW()/100000,\"\")","v":""},"505.474.4226"]
[252,"Villa Del Norte","505.753.9611","710 La Joya St.","Espanola",87532,null,256,"100 Tsigo Bugeh Road",252,1.00254,"805 Clark Ave.",null,null,257,"","",{"$f":"IFERROR(SEARCH(#REF!,S254)+ROW()/100000,\"\")","v":""},"575.882.3909"]
[253,"Villa Hermosa","505.988.2859","1510 - 1520 Luisa","Santa Fe",87507,null,257,"5401 Tucson Ave. NW",253,1.0025500000000001,"750 Gusdorf Road",null,null,258,"","",{"$f":"IFERROR(SEARCH(#REF!,S255)+ROW()/100000,\"\")","v":""},"575.758.0471"]
[254,"Villa Hermosa Apartments","505.352.9594","2600 Americare Court NW","Albuquerque",87120,null,259,{"$f":"IFERROR(VLOOKUP(H256,J256:L534,3,FALSE),\"\")","v":"200 Valencia Drive SE"},254,{"$f":"IFERROR(SEARCH($D$1,L256)+ROW()/100000,\"\")","v":1.0025599999999999},"1301 North Pershing St.",null,null,260,{"$f":"IFERROR(VLOOKUP(O256,Q256:S535,3,FALSE),\"\")","v":""},"",{"$f":"IFERROR(SEARCH(#REF!,S256)+ROW()/100000,\"\")","v":""},"575.894.2244"]
[255,"Villa Las Vegas","505.425.6555","200 Mountain View Drive","Las Vegas",87701,null,260,"370 Atrisco Drive SW",255,1.00257,"1619 Pacheco St.",null,null,261,"","",{"$f":"IFERROR(SEARCH(#REF!,S257)+ROW()/100000,\"\")","v":""},"505.988.2846"]
[256,"Villa Mentmore","505.726.0804","3420 Sanostee Drive","Gallup",87301,null,261,"360 Bianes St.",256,1.00258,"100 Tsigo Bugeh Road",null,null,262,"","",{"$f":"IFERROR(SEARCH(#REF!,S258)+ROW()/100000,\"\")","v":""},"505.753.9419"]
[257,"Villa Nueva Apartments","505.508.5541","990 18th St. NW","Albuquerque",87104,null,262,"360 Bianes St.",{"$f":"IFERROR(RANK(K259,$K$3:$K$279,1),\"\")","v":257},1.0025900000000001,"5401 Tucson Ave. NW",null,null,263,"",{"$f":"IFERROR(RANK(R259,$R$3:$R$279,1),\"\")","v":""},{"$f":"IFERROR(SEARCH(#REF!,S259)+ROW()/100000,\"\")","v":""},"505.833.6000"]
[258,"Villa San Jose Apartments","575.885.1237","415 West Del Rio St.","Carlsbad",88220,null,263,"2080 Memory Lane",258,1.0025999999999999,"2218 Miguel Chavez Road",null,null,264,"","",{"$f":"IFERROR(SEARCH(#REF!,S260)+ROW()/100000,\"\")","v":""},"505.983.6666"]
[259,"Villas De San Ignacio","505.716.4579","4499 San Ignacio Road","Santa Fe",87507,null,264,"450 Los Cerritos Road",259,1.00261,"200 Valencia Drive SE",null,null,265,"","",{"$f":"IFERROR(SEARCH(#REF!,S261)+ROW()/100000,\"\")","v":""},"505.265.3300"]
[260,"Villas Esperanza","505.881.7991","3901 Lafayette Drive NE","Albuquerque",87107,null,265,"1500 Pacheco St.",260,1.0026200000000001,"370 Atrisco Drive SW",null,null,266,"","",{"$f":"IFERROR(SEARCH(#REF!,S262)+ROW()/100000,\"\")","v":""},"505.254.4726"]
[261,"Villas of Briar Ridge","575.623.7711","1 Briarwood Place","Roswell",88201,null,266,"10400 Universe Blvd. NW",261,1.0026299999999999,"360 Bianes St.",null,null,267,"","",{"$f":"IFERROR(SEARCH(#REF!,S263)+ROW()/100000,\"\")","v":""},"575.267.0203"]
[262,"Vista Del Rey Apartments","575.589.3948","855 Valle Vista Drive","Sunland Park",88063,null,267,"244 Villa Alegre",262,1.00264,"360 Bianes St.",null,null,268,"","",{"$f":"IFERROR(SEARCH(#REF!,S264)+ROW()/100000,\"\")","v":""},"575.267.0203"]
[263,"Vista Gallinas Apartments","505.454.1093","2525 Ridge Runner Road","Las Vegas",87701,null,268,"1200 Camino Consuelo",263,1.00265,"2080 Memory Lane",null,null,269,"","",{"$f":"IFERROR(SEARCH(#REF!,S265)+ROW()/100000,\"\")","v":""},"575.538.9523"]
[264,"Vista Grande Apartments","505.293.5300","12801 Copper NE","Albuquerque",87123,null,269,"1200 Camino Consuelo",264,1.0026600000000001,"450 Los Cerritos Road",null,null,270,"","",{"$f":"IFERROR(SEARCH(#REF!,S266)+ROW()/100000,\"\")","v":""},"505.865.5858"]
[265,"Vista Linda Apartments","505.424.7590","6332 Entrada De Milagro","Santa Fe",87507,null,270,"325 Klagetoh St.",265,1.00267,"1500 Pacheco St.",null,null,271,"","",{"$f":"IFERROR(SEARCH(#REF!,S267)+ROW()/100000,\"\")","v":""},"505.982.3200"]
[266,"Vista Mesa Villa Apartments","505.287.3191","1121 Mount Taylor Ave.","Grants",87020,null,271,"601 Coal Ave. SW",266,1.00268,"10400 Universe Blvd. NW",null,null,272,"","",{"$f":"IFERROR(SEARCH(#REF!,S268)+ROW()/100000,\"\")","v":""},"505.922.0092"]
[267,"Vista Montana","575.541.1900","316 Foster Road","Las Cruces",88005,null,272,"1205 Monte Vista Ave.",267,1.0026900000000001,"244 Villa Alegre",null,null,273,"","",{"$f":"IFERROR(SEARCH(#REF!,S269)+ROW()/100000,\"\")","v":""},"505.501.6011"]
[268,"Vista Montano","575.835.0500","301 South Otero Ave.","Socorro",87801,null,274,{"$f":"IFERROR(VLOOKUP(H270,J270:L549,3,FALSE),\"\")","v":"710 La Joya St."},268,1.0026999999999999,"1200 Camino Consuelo",null,null,275,{"$f":"IFERROR(VLOOKUP(O270,Q270:S550,3,FALSE),\"\")","v":""},"",{"$f":"IFERROR(SEARCH(#REF!,S270)+ROW()/100000,\"\")","v":""},"505.471.0565"]
[269,"Volcanes Commons","505.323.4139","6901 Glenrio Road NW","Albuquerque",87121,null,275,{"$f":"IFERROR(VLOOKUP(H271,J271:L550,3,FALSE),\"\")","v":"710 La Joya St."},269,1.00271,"1200 Camino Consuelo",null,null,276,"","",{"$f":"IFERROR(SEARCH(#REF!,S271)+ROW()/100000,\"\")","v":""},"505.471.0565"]
[270,"Walnut Street Courtyard Homes","575.374.6207","113 Walnut St.","Clayton",88415,null,276,"1510 - 1520 Luisa",270,1.0027200000000001,"325 Klagetoh St.",null,null,277,"","",{"$f":"IFERROR(SEARCH(#REF!,S272)+ROW()/100000,\"\")","v":""},"505.726.0804"]
[271,"Washington Place Apartments","575.397.4341","1405 East Marland St.","Hobbs",88240,null,277,"1510 to 1520 Luisa",271,1.0027299999999999,"601 Coal Ave. SW",null,null,278,"","",{"$f":"IFERROR(SEARCH(#REF!,S273)+ROW()/100000,\"\")","v":""},"505.244.1500"]
[272,"West Park Apartments","505.898.5940","9251 Eagle Ranch Road NW","Albuquerque",87114,null,278,"",272,1.00274,"1205 Monte Vista Ave.",null,null,279,"","",{"$f":"IFERROR(SEARCH(#REF!,S274)+ROW()/100000,\"\")","v":""},"575.585.9848"]
[273,"Westwood Village Apartments","505.831.1177","901 68th St. NW","Albuquerque",87121,null,279,"",273,1.00275,"1205 Monte Vista Ave.",null,null,280,"","",{"$f":"IFERROR(SEARCH(#REF!,S275)+ROW()/100000,\"\")","v":""},"575.585.9848"]
[274,"White Sands Village","505.455.3383","27 Tribal Works Road","Pojoaque",87501,null,280,"",274,1.0027600000000001,"710 La Joya St.",null,null,281,"","",{"$f":"IFERROR(SEARCH(#REF!,S276)+ROW()/100000,\"\")","v":""},"505.753.9611"]
[275,"Wildewood Apartments","575.623.9108","201 Sherrill Lane","Roswell",88201,null,281,"",275,1.0027699999999999,"710 La Joya St.",null,null,282,"","",{"$f":"IFERROR(SEARCH(#REF!,S277)+ROW()/100000,\"\")","v":""},"505.753.9611"]
[276,"Willow Bend Villas","575.397.0940","1000 North Marland Blvd.","Hobbs",88240,null,282,"",276,1.00278,"1510 - 1520 Luisa",null,null,283,"","",{"$f":"IFERROR(SEARCH(#REF!,S278)+ROW()/100000,\"\")","v":""},"505.988.2859"]
[277,"YSFS Transitional Living Program","505.983.0586","4435 Airport Road","Santa Fe",87507,null,283,"",277,1.0027900000000001,"1510 to 1520 Luisa",null,null,284,"","",{"$f":"IFERROR(SEARCH(#REF!,S279)+ROW()/100000,\"\")","v":""},"505.988.2859"]

{"sheet":"Lighting","index":6,"n_rows":316,"n_cols":58,"rows_kept":316,"cut":false,"hidden":false,"merged":[[37,3,37,4],[5,0,5,7],[6,10,6,11],[7,10,7,11],[34,3,34,4],[34,5,34,6],[34,7,34,8],[35,3,35,4],[35,5,35,6],[35,7,35,8],[26,11,26,12],[33,3,33,4],[33,5,33,6],[33,7,33,8],[137,0,138,13],[139,0,140,13],[107,0,107,12],[106,0,106,12],[71,0,71,6],[38,3,38,4],[38,5,38,6],[38,7,38,8],[117,12,117,13],[132,12,132,13],[132,0,132,11],[127,12,127,13],[135,0,136,13],[128,12,128,13],[129,12,129,13],[130,12,130,13],[131,12,131,13],[118,12,118,13],[119,12,119,13],[120,12,120,13],[121,12,121,13],[122,12,122,13],[123,12,123,13],[124,12,124,13],[54,7,54,8],[55,3,55,4],[62,0,62,12],[40,5,40,6],[40,7,40,8],[45,0,45,8],[46,3,46,4],[46,5,46,6],[46,7,46,8],[47,3,47,4],[47,5,47,6],[52,5,52,6],[52,7,52,8],[48,7,48,8],[49,3,49,4],[49,5,49,6],[49,7,49,8],[40,3,40,4],[43,5,43,6],[43,7,43,8],[41,7,41,8],[58,7,58,8],[0,12,0,13],[41,3,41,4],[41,5,41,6],[39,3,39,4],[39,5,39,6],[39,7,39,8],[8,2,8,7],[32,3,32,4],[32,5,32,6],[32,7,32,8],[30,3,30,4],[4,10,4,11],[30,5,30,6],[30,7,30,8],[25,11,25,12],[24,11,24,12],[23,11,23,12],[37,5,37,6],[37,7,37,8],[36,3,36,4],[36,5,36,6],[36,7,36,8],[9,10,9,11],[9,0,9,7],[2,0,2,1],[27,0,27,5],[6,0,6,8],[7,0,7,8],[26,9,26,10],[24,1,24,2],[25,1,25,2],[28,7,28,8],[28,5,28,6],[28,3,28,4],[10,10,10,11],[1,2,2,3],[1,4,2,12],[3,0,3,13],[4,0,4,8],[8,0,8,1],[12,8,12,12],[13,8,13,12],[21,9,22,10],[23,9,23,10],[24,9,24,10],[25,9,25,10],[26,1,26,8],[65,11,66,12],[61,3,61,4],[61,5,61,6],[61,7,61,8],[42,5,42,6],[42,7,42,8],[42,3,42,4],[47,7,47,8],[50,5,50,6],[53,3,53,4],[53,5,53,6],[53,7,53,8],[54,3,54,4],[54,5,54,6],[50,7,50,8],[51,3,51,4],[51,5,51,6],[51,7,51,8],[50,3,50,4],[55,7,55,8],[65,3,65,4],[65,5,65,6],[48,3,48,4],[48,5,48,6],[65,1,66,2],[44,0,44,12],[68,11,68,12],[69,1,69,2],[69,11,69,12],[70,1,70,8],[70,11,70,12],[72,3,72,4],[72,5,72,6],[72,7,72,8],[65,7,65,8],[65,9,66,10],[67,9,67,10],[68,9,68,10],[69,9,69,10],[70,9,70,10],[67,11,67,12],[59,3,59,4],[59,5,59,6],[59,7,59,8],[60,3,60,4],[60,5,60,6],[60,7,60,8],[55,5,55,6],[73,3,73,4],[73,5,73,6],[73,7,73,8],[74,3,74,4],[74,5,74,6],[74,7,74,8],[75,3,75,4],[75,5,75,6],[75,7,75,8],[76,3,76,4],[76,5,76,6],[76,7,76,8],[77,3,77,4],[77,5,77,6],[77,7,77,8],[78,3,78,4],[78,5,78,6],[78,7,78,8],[79,3,79,4],[79,5,79,6],[79,7,79,8],[80,3,80,4],[80,5,80,6],[80,7,80,8],[81,3,81,4],[81,5,81,6],[81,7,81,8],[82,3,82,4],[82,5,82,6],[82,7,82,8],[83,3,83,4],[83,5,83,6],[83,7,83,8],[84,3,84,4],[84,5,84,6],[84,7,84,8],[85,3,85,4],[85,5,85,6],[85,7,85,8],[86,3,86,4],[86,5,86,6],[86,7,86,8],[87,3,87,4],[87,5,87,6],[87,7,87,8],[93,7,93,8],[94,3,94,4],[94,5,94,6],[94,7,94,8],[88,0,88,12],[90,3,90,4],[90,5,90,6],[90,7,90,8],[91,3,91,4],[91,5,91,6],[91,7,91,8],[89,0,89,7],[92,3,92,4],[92,5,92,6],[92,7,92,8],[93,3,93,4],[93,5,93,6],[113,1,113,2],[113,7,113,8],[114,7,114,8],[109,1,110,2],[109,3,109,4],[109,7,110,8],[111,1,111,2],[111,7,111,8],[112,1,112,2],[112,7,112,8],[114,1,114,4],[109,5,110,6],[111,5,111,6],[112,5,112,6],[113,5,113,6],[114,5,114,6],[115,0,115,5],[117,3,117,4],[117,5,117,6],[117,7,117,8],[118,3,118,4],[118,5,118,6],[118,7,118,8],[119,3,119,4],[119,5,119,6],[119,7,119,8],[116,3,116,4],[116,5,116,6],[116,7,116,8],[121,5,121,6],[121,7,121,8],[122,3,122,4],[122,5,122,6],[122,7,122,8],[116,12,116,13],[129,3,129,4],[129,5,129,6],[129,7,129,8],[123,3,123,4],[123,5,123,6],[123,7,123,8],[124,3,124,4],[124,5,124,6],[125,5,125,6],[125,7,125,8],[120,3,120,4],[120,5,120,6],[120,7,120,8],[121,3,121,4],[125,12,125,13],[126,12,126,13],[124,7,124,8],[125,3,125,4],[130,3,130,4],[130,5,130,6],[130,7,130,8],[131,3,131,4],[131,5,131,6],[131,7,131,8],[126,3,126,4],[126,5,126,6],[126,7,126,8],[127,3,127,4],[127,5,127,6],[127,7,127,8],[128,3,128,4],[128,5,128,6],[128,7,128,8],[98,3,98,4],[98,5,98,6],[98,7,98,8],[99,3,99,4],[99,5,99,6],[99,7,99,8],[100,3,100,4],[100,5,100,6],[100,7,100,8],[95,3,95,4],[95,5,95,6],[95,7,95,8],[96,3,96,4],[96,5,96,6],[96,7,96,8],[97,3,97,4],[97,5,97,6],[97,7,97,8],[104,3,104,4],[104,5,104,6],[104,7,104,8],[105,3,105,4],[105,5,105,6],[105,7,105,8],[101,3,101,4],[101,5,101,6],[101,7,101,8],[102,3,102,4],[102,5,102,6],[102,7,102,8],[103,3,103,4],[103,7,103,8],[103,5,103,6],[5,23,5,24],[4,23,4,24],[6,23,6,24],[7,23,7,24],[13,23,13,24],[12,23,12,24],[11,23,11,24],[10,23,10,24],[9,23,9,24],[8,23,8,24],[32,17,32,18],[10,0,10,7],[21,3,21,4],[21,5,21,6],[21,7,21,8],[21,1,22,2],[21,11,22,12],[29,3,29,4],[29,5,29,6],[29,7,29,8],[31,3,31,4],[31,5,31,6],[31,7,31,8],[68,1,68,2],[22,20,24,20],[52,3,52,4],[43,3,43,4],[67,1,67,2],[23,1,23,2],[11,2,11,7],[0,2,0,9],[22,16,24,17],[5,16,7,17],[5,19,7,19],[8,19,10,19],[11,19,13,19],[0,0,0,1],[20,0,20,12],[63,0,63,12],[56,3,56,4],[56,5,56,6],[56,7,56,8],[57,3,57,4],[57,5,57,6],[57,7,57,8],[58,3,58,4],[58,5,58,6]]}
[null,null,"LIGHTING INCENTIVES FOR RETROFITS (Multifamily ONLY)"]
[null,null,"IMPORTANT NOTICE:",null,"Only qualified LED lighting is elegible for a rebate. No fluorescent replacements are eligible for rebates. Scope of work is REQUIRED for all lighting projects."]
["Applicant: fill in gray fields"]
["1. Interior Retrofits"]
["Equipment Type*",null,null,null,null,null,null,null,null,"Incentive","Unit",null,"# of Units","Incentive Subtotal",null,"Cost",null,null,null,{"$f":"1.191","v":1.1910000000000001},null,"Incentive","kWh","Cost/kWh",null,"Proposed","Delta","Incentive W","kWh W"]
["LED Lighting",null,null,null,null,null,null,null,null,null,null,null,null,null,null,null,"Recommend decreasing to these levels",null,null,"Fix to Fix","In",{"$f":"E68*#REF!","v":{"$error":"#REF!"}},{"$f":"E68*3564*T5/1000","v":0},9.4234631038437364E-2,null,{"$f":"V6/W6","v":{"$error":"#REF!"}},{"$f":"X6-Z6","v":{"$error":"#REF!"}},0.29539520823847143,0.28659167344273073]
["20W or less LED Lamp replacing Incandescent less than 75W: Ceiling Fans, Bath Vanity, Track Lights, Recessed Can, Pendants",null,null,null,null,null,null,null,null,2,"LED Lamp",null,null,{"$f":"J7*M7","v":0},null,2,null,null,null,null,"Ext",{"$f":"E69*#REF!","v":{"$error":"#REF!"}},{"$f":"E69*4192/1000","v":0},0.11927480916030533,null,{"$error":"#REF!"},{"$error":"#REF!"},0.22773923357591014,0.16414205732482676]
["20W or less LED Lamp replacing CFL Lamp less than 28W: Ceiling Fans, Vanity, Track Lights, Recessed Can, Pendants",null,null,null,null,null,null,null,null,1,"LED Lamp",null,null,{"$f":"J8*M8","v":0},null,1,null,null,null,null,24,{"$f":"E70*#REF!","v":{"$error":"#REF!"}},{"$f":"E70*8760/1000","v":0},6.8493150684931503E-2,null,{"$error":"#REF!"},{"$error":"#REF!"},6.0188263316320892E-2,5.9260126587693224E-2]
["Controls*                                                                                                                                  ",null,"Watts Controlled Calculator Required - DOWNLOAD HERE",null,null,null,null,null,null,null,null,null,null,null,null,null,null,null,null,"Fix to Retro","In",{"$f":"I68*#REF!","v":{"$error":"#REF!"}},{"$f":"I68*3564*T5/1000","v":0},4.7117315519218682E-2,null,{"$error":"#REF!"},{"$error":"#REF!"},4.1395029136537774E-2,5.8900140280927438E-2]
["Occupancy Sensors",null,null,null,null,null,null,null,null,0.15,"Watts Controlled",null,null,{"$f":"J10*M10","v":0},null,0.14234693528845399,null,null,null,null,"Ext",{"$f":"I69*#REF!","v":{"$error":"#REF!"}},{"$f":"I69*4192/1000","v":0},5.9637404580152667E-2,null,{"$error":"#REF!"},{"$error":"#REF!"},5.6339259638688542E-3,5.1853896193481634E-3]
["Daylighting Sensor Controls",null,null,null,null,null,null,null,null,0.09,"Watts Controlled",null,null,{"$f":"J11*M11","v":0},null,null,null,null,null,null,24,{"$f":"I70*#REF!","v":{"$error":"#REF!"}},{"$f":"I70*8760/1000","v":0},3.4246575342465752E-2,null,{"$error":"#REF!"},{"$error":"#REF!"},0.11641011339915397,0.17953448418384541]
[null,null,"NOTE: Individual apartment units DO NOT qualify for Interior Controls",null,null,null,null,null,null,null,null,null,null,null,null,null,null,null,null,"L to L","In",{"$f":"G68*#REF!","v":{"$error":"#REF!"}},{"$f":"G68*3564*T5/1000","v":0},3.533798663941401E-2,null,{"$error":"#REF!"},{"$error":"#REF!"},0.12487712779368208,0.16443819468929888]
[null,null,null,null,null,null,null,null,"Income Qualifier Bonus:",null,null,null,null,{"$f":"IF('Applicant Info'!P13=TRUE,SUM(Lighting!N7:N11)*0.1,0)","v":0},null,null,{"$f":"N14","v":0},null,null,null,"Ext",{"$f":"G69*#REF!","v":{"$error":"#REF!"}},{"$f":"G69*4192/1000","v":0},4.7709923664122134E-2,null,{"$error":"#REF!"},{"$error":"#REF!"},6.1865669302938655E-3,7.2256297647197388E-3]
[null,null,null,null,null,null,null,null,"Total Retrofit Lighting Incentives (Interior):",null,null,null,null,{"$f":"IF(N13=\"\",SUM(N7:N11),SUM(N7:N13))","v":0},null,null,null,null,null,null,24,{"$f":"G70*#REF!","v":{"$error":"#REF!"}},{"$f":"G70*8760/1000","v":0},2.8538812785388126E-2,null,{"$error":"#REF!"},{"$error":"#REF!"},2.8818520431191066E-2,5.3394108606867781E-2]
["*Please provide a description of the retrofit, including any lighting layouts, fixture counts or calculation spreadsheets."]
["** Interior controls for non apartment units (i.e. Leasing Office, Hall/Entry, Laundry Room, Gym, etc.)."]
["*** A dwelling unit is defined as an interior space that is residential in nature (i.e. Appartments,hotel rooms, dormitories, retirement and senior  living communities, etc.)."]
["****Watts Reduced = old connected wattage - new connected wattage"]
[]
[]
["2. LED Replacing HID (Lamps, Fixtures & Retrofit kits)"]
[null,"Type of Retrofit",null,"Fixture Replacing Fixture",null,"Lamp Replacing Lamp",null,"Fixture to Retrofit Kit",null,"Income Qualifier Bonus",null,"Total Incentive"]
[null,null,null,"Incentive","Watts Reduced","Incentive","Watts Reduced","Incentive","Watts Reduced",null,null,null,null,null,null,null,"Recommend increasing to these levels"]
[null,"Interior",null,0.4,{"$f":"SUMIFS($N$30:$N$44,$B$30:$B$44,$B24,$C$30:$C$44,D$22)-SUMIFS($N$48:$N$62,$B$48:$B$62,$B24,$C$48:$C$62,D$22)","v":0},0.2,{"$f":"SUMIFS($N$30:$N$44,$B$30:$B$44,$B24,$C$30:$C$44,F$22)-SUMIFS($N$48:$N$62,$B$48:$B$62,$B24,$C$48:$C$62,F$22)","v":0},0.3,{"$f":"SUMIFS($N$30:$N$44,$B$30:$B$44,$B24,$C$30:$C$44,H$22)-SUMIFS($N$48:$N$62,$B$48:$B$62,$B24,$C$48:$C$62,H$22)","v":0},{"$f":"ROUNDUP(IF('Applicant Info'!$P$13=TRUE,IF(OR(D24*E24+F24*G24+H24*I24<0,$N$63=\"\",$N$63=0), 0, (D24*E24+F24*G24+H24*I24)*0.1),0),2)","v":0},null,{"$f":"IF('Applicant Info'!$P$13=TRUE,IF(OR(D24*E24+F24*G24+H24*I24<0,$N$63=\"\",$N$63=0), 0, D24*E24+F24*G24+H24*I24)+Lighting!J24,IF(OR(D24*E24+F24*G24+H24*I24<0,$N$63=\"\",$N$63=0), 0, D24*E24+F24*G24+H24*I24))","v":0}]
[null,"Exterior/12 Hour",null,0.5,{"$f":"SUMIFS($N$30:$N$44,$B$30:$B$44,$B25,$C$30:$C$44,D$22)-SUMIFS($N$48:$N$62,$B$48:$B$62,$B25,$C$48:$C$62,D$22)","v":0},0.25,{"$f":"SUMIFS($N$30:$N$44,$B$30:$B$44,$B25,$C$30:$C$44,F$22)-SUMIFS($N$48:$N$62,$B$48:$B$62,$B25,$C$48:$C$62,F$22)","v":0},0.35,{"$f":"SUMIFS($N$30:$N$44,$B$30:$B$44,$B25,$C$30:$C$44,H$22)-SUMIFS($N$48:$N$62,$B$48:$B$62,$B25,$C$48:$C$62,H$22)","v":0},{"$f":"ROUNDUP(IF('Applicant Info'!$P$13=TRUE,IF(OR(D25*E25+F25*G25+H25*I25<0,$N$63=\"\",$N$63=0), 0, (D25*E25+F25*G25+H25*I25)*0.1),0),2)","v":0},null,{"$f":"IF('Applicant Info'!$P$13=TRUE,IF(OR(D25*E25+F25*G25+H25*I25<0,$N$63=\"\",$N$63=0), 0, D25*E25+F25*G25+H25*I25)+Lighting!J25,IF(OR(D25*E25+F25*G25+H25*I25<0,$N$63=\"\",$N$63=0), 0, D25*E25+F25*G25+H25*I25))","v":0}]
[null,"24 Hour/Garage/3-Shift",null,1.2,{"$f":"SUMIFS($N$30:$N$44,$B$30:$B$44,$B26,$C$30:$C$44,D$22)-SUMIFS($N$48:$N$62,$B$48:$B$62,$B26,$C$48:$C$62,D$22)","v":0},0.6,{"$f":"SUMIFS($N$30:$N$44,$B$30:$B$44,$B26,$C$30:$C$44,F$22)-SUMIFS($N$48:$N$62,$B$48:$B$62,$B26,$C$48:$C$62,F$22)","v":0},0.8,{"$f":"SUMIFS($N$30:$N$44,$B$30:$B$44,$B26,$C$30:$C$44,H$22)-SUMIFS($N$48:$N$62,$B$48:$B$62,$B26,$C$48:$C$62,H$22)","v":0},{"$f":"ROUNDUP(IF('Applicant Info'!$P$13=TRUE,IF(OR(D26*E26+F26*G26+H26*I26<0,$N$63=\"\",$N$63=0), 0, (D26*E26+F26*G26+H26*I26)*0.1),0),2)","v":0},null,{"$f":"IF('Applicant Info'!$P$13=TRUE,IF(OR(D26*E26+F26*G26+H26*I26<0,$N$63=\"\",$N$63=0), 0, D26*E26+F26*G26+H26*I26)+Lighting!J26,IF(OR(D26*E26+F26*G26+H26*I26<0,$N$63=\"\",$N$63=0), 0, D26*E26+F26*G26+H26*I26))","v":0},null,null,null,null,{"$f":"L27","v":0}]
[null,"TOTAL NEW High Efficiency LED fixture replacing HID Fixture",null,null,null,null,null,null,null,{"$f":"SUM(J24:K26)","v":0},null,{"$f":"SUM(L24:M26)","v":0}]
["Existing equipment: HID fixtures and/or lamps being removed"]
["#","Measure Type","Retrofit Type","Fixture Type",null,"Ballast Type",null,"Description",null,"Lamps/ Fixture","Lamp Wattage","Fixture Quantity","Fixture Wattage","Base Watts"]
[1,null,null,null,null,null,null,null,null,{"$f":"IF($H30=\"\",\"\",VLOOKUP($H30,$BB:$BF,3,FALSE))","v":""},{"$f":"IF($H30=\"\",\"\",VLOOKUP($H30,$BB:$BF,4,FALSE))","v":""},null,{"$f":"IF($H30=\"\",\"\",VLOOKUP($H30,$BB:$BF,5,FALSE))","v":""},{"$f":"IF((IF($H30=\"\",\"\",M30*L30))=0,\"Missing Value\",(IF($H30=\"\",\"\",M30*L30)))","v":""}]
[2,null,null,null,null,null,null,null,null,"","",null,"",""]
[3,null,null,null,null,null,null,null,null,"","",null,"",""]
[4,null,null,null,null,null,null,null,null,"","",null,"",""]
[5,null,null,null,null,null,null,null,null,"","",null,"",""]
[6,null,null,null,null,null,null,null,null,"","",null,"",""]
[7,null,null,null,null,null,null,null,null,"","",null,"",{"$f":"IF((IF($H36=\"\",\"\",M36*L36))=0,\"Missing Value\",(IF($H36=\"\",\"\",M36*L36)))","v":""}]
[8,null,null,null,null,null,null,null,null,"","",null,"",""]
[9,null,null,null,null,null,null,null,null,"","",null,"",""]
[10,null,null,null,null,null,null,null,null,"","",null,"",""]
[11,null,null,null,null,null,null,null,null,"","",null,"",""]
[12,null,null,null,null,null,null,null,null,"","",null,"",""]
[13,null,null,null,null,null,null,null,null,"","",null,"",""]
[14,null,null,null,null,null,null,null,null,"","",null,"",""]
[15,null,null,null,null,null,null,null,null,"","",null,"",""]
["Subtotal HID Base Case Wattage",null,null,null,null,null,null,null,null,null,null,null,null,{"$f":"IF(SUM(N30:N44)=0,\"\",SUM(N30:N44))","v":""}]
["Replacement equipment: New LED lamps, fixtures, or fixture retrofit kit being installed"]
["#","Measure Type","Retrofit Type","Fixture Type",null,"Fixture or Ballast   Sub Type",null,"Description (type in model number)",null,"Lamps/ Fixture","Lamp Wattage","Fixture Quantity","Fixture Wattage","Installed Watts"]
[1,null,null,null,null,null,null,null,null,null,null,null,{"$f":"IF($H48=\"\",\"\",J48*K48)","v":""},{"$f":"IF((IF($H48=\"\",\"\",M48*L48))=0,\"Missing Value\",(IF($H48=\"\",\"\",M48*L48)))","v":""}]
[2,null,null,null,null,null,null,null,null,null,null,null,"",""]
[3,null,null,null,null,null,null,null,null,null,null,null,"",""]
[4,null,null,null,null,null,null,null,null,null,null,null,"",""]
[5,null,null,null,null,null,null,null,null,null,null,null,"",""]
[6,null,null,null,null,null,null,null,null,null,null,null,"",""]
[7,null,null,null,null,null,null,null,null,null,null,null,"",""]
[8,null,null,null,null,null,null,null,null,null,null,null,"",""]
[9,null,null,null,null,null,null,null,null,null,null,null,{"$f":"IF($H56=\"\",\"\",J56*K56)","v":""},{"$f":"IF((IF($H56=\"\",\"\",M56*L56))=0,\"Missing Value\",(IF($H56=\"\",\"\",M56*L56)))","v":""}]
[10,null,null,null,null,null,null,null,null,null,null,null,"",""]
[11,null,null,null,null,null,null,null,null,null,null,null,"",""]
[12,null,null,null,null,null,null,null,null,null,null,null,"",""]
[13,null,null,null,null,null,null,null,null,null,null,null,"",""]
[14,null,null,null,null,null,null,null,null,null,null,null,"",""]
[15,null,null,null,null,null,null,null,null,null,null,null,"",""]
["Subtotal Installed T8, T5, or LED Wattage",null,null,null,null,null,null,null,null,null,null,null,null,{"$f":"IF(SUM(N48:N62)=0,\"\",SUM(N48:N62))","v":""},null,null,null,"Ranges and lookup values for calculated lighting tables. Use caution when editing ranges that are used for data validation lists"]
["3. LED Replacing T5, T8 or T12 (Lamps, Fixtures & Retrofit Kits)",null,null,null,null,null,null,null,null,null,null,null,null,null,null,null,null,"(tips: no symbols allowed, no spaces allowed unless removed with substitute function, any change to a range could delete it, so it must be re-created, use ctrl shift F3 to create a range, range name must begin and end with a letter and no spaces)"]
[null,null,null,null,null,null,null,null,null,null,null,null,null,null,null,null,null,"TABLE 1: EXISTING HID"]
[null,"Type of Retrofit",null,"Fixture Replacing Fixture",null,"Lamp Replacing Lamp",null,"Fixture to Retrofit Kit",null,"Income Qualifier Bonus",null,"Total Incentive",null,null,null,null,null,"Measure Type",null,"1. Retrofit Type",null,null,null,null,"2. Fixture Type",null,null,null,null,"3. Ballast Type",null,null,null,null,null,null,null,null,null,"4. Description",null,null,null,null,null,null,null,null,null,null,null,null,"5. Description lookup (all measures)"]
[null,null,null,"Incentive","Watts Reduced","Incentive","Watts Reduced","Incentive","Watts Reduced",null,null,null,null,null,null,null,null,null,null,null,null,null,null,null,"HIDFixturereplacingFixture","HIDLampreplacingLamp","HIDFixturetoRetrofitKit",null,null,"CFL","HPS","I/H","MV","MH",null,null,null,null,null,null,null,null,null,null,null,null,null,null,null,null,null,null,"TYPE","DESCRIPTION","Ballast Type","LAMP / FIXTURE","WATT / LAMP","WATT / FIXTURE"]
[null,"Interior",null,0.4,{"$f":"SUMIFS($N$74:$N$88,$B$74:$B$88,$B68,$C$74:$C$88,D$66)-SUMIFS($N$92:$N$106,$B$92:$B$106,$B68,$C$92:$C$106,D$66)","v":0},0.2,{"$f":"SUMIFS($N$74:$N$88,$B$74:$B$88,$B68,$C$74:$C$88,F$66)-SUMIFS($N$92:$N$106,$B$92:$B$106,$B68,$C$92:$C$106,F$66)","v":0},0.3,{"$f":"SUMIFS($N$74:$N$88,$B$74:$B$88,$B68,$C$74:$C$88,H$66)-SUMIFS($N$92:$N$106,$B$92:$B$106,$B68,$C$92:$C$106,H$66)","v":0},{"$f":"ROUNDUP(IF('Applicant Info'!$P$13=TRUE,IF(OR(D68*E68+F68*G68+H68*I68<0,$N$63=\"\",$N$63=0), 0, (D68*E68+F68*G68+H68*I68)*0.1),0),2)","v":0},null,{"$f":"IF('Applicant Info'!$P$13=TRUE,IF(OR(D68*E68+F68*G68+H68*I68<0,$N$107=\"\",$N$107=0), 0, D68*E68+F68*G68+H68*I68)+Lighting!J68,IF(OR(D68*E68+F68*G68+H68*I68<0,$N$107=\"\",$N$107=0), 0, D68*E68+F68*G68+H68*I68))","v":0},null,null,null,null,null,"MeasureType",null,"1. Retrofit Type",null,null,null,null,"CFL","CFL","CFL",null,null,"HIDCFL","HIDHighPressureSodium","HIDIncanorHalogen","HIDMercuryVapor","HIDMetalHalide",null,null,null,null,null,"HighPressureSodiumMagnetic","IncanorHalogenNone",null,"MercuryVaporMagnetic","MetalHalideElectronic","MetalHalideMagnetic","FixturetoRetrofitKitFixturetoRetrofitKit","CFLNone",null,null,null,null,null,"CFL","25 Watt Compact Fluorescent","None",1,25,25]
[null,"Exterior/12 Hour",null,0.5,{"$f":"SUMIFS($N$74:$N$88,$B$74:$B$88,$B69,$C$74:$C$88,D$66)-SUMIFS($N$92:$N$106,$B$92:$B$106,$B69,$C$92:$C$106,D$66)","v":0},0.25,{"$f":"SUMIFS($N$74:$N$88,$B$74:$B$88,$B69,$C$74:$C$88,F$66)-SUMIFS($N$92:$N$106,$B$92:$B$106,$B69,$C$92:$C$106,F$66)","v":0},0.35,{"$f":"SUMIFS($N$74:$N$88,$B$74:$B$88,$B69,$C$74:$C$88,H$66)-SUMIFS($N$92:$N$106,$B$92:$B$106,$B69,$C$92:$C$106,H$66)","v":0},{"$f":"ROUNDUP(IF('Applicant Info'!$P$13=TRUE,IF(OR(D69*E69+F69*G69+H69*I69<0,$N$63=\"\",$N$63=0), 0, (D69*E69+F69*G69+H69*I69)*0.1),0),2)","v":0},null,{"$f":"IF('Applicant Info'!$P$13=TRUE,IF(OR(D69*E69+F69*G69+H69*I69<0,$N$107=\"\",$N$107=0), 0, D69*E69+F69*G69+H69*I69)+Lighting!J69,IF(OR(D69*E69+F69*G69+H69*I69<0,$N$107=\"\",$N$107=0), 0, D69*E69+F69*G69+H69*I69))","v":0},null,null,null,null,null,"Interior",null,"Fixture replacing Fixture",null,null,null,null,"High Pressure Sodium","High Pressure Sodium","High Pressure Sodium",null,null,"None","Magnetic","None","Magnetic","Magnetic",null,null,null,null,null,"35 Watt HPS Lamp, Magnetic ballast","110 Watt Incandescent or Halogen Lamp",null,"40 Watt MV Lamp","20 Watt MH Lamp, Electronic Ballast","32 Watt MH Lamp, Magnetic ballast","Fixture to Retrofit Kit","25 Watt Compact Fluorescent",null,null,null,null,null,"CFL","30 Watt Compact Fluorescent","None",1,30,30]
[null,"24 Hour/Garage/3-Shift",null,1.2,{"$f":"SUMIFS($N$74:$N$88,$B$74:$B$88,$B70,$C$74:$C$88,D$66)-SUMIFS($N$92:$N$106,$B$92:$B$106,$B70,$C$92:$C$106,D$66)","v":0},0.6,{"$f":"SUMIFS($N$74:$N$88,$B$74:$B$88,$B70,$C$74:$C$88,F$66)-SUMIFS($N$92:$N$106,$B$92:$B$106,$B70,$C$92:$C$106,F$66)","v":0},0.8,{"$f":"SUMIFS($N$74:$N$88,$B$74:$B$88,$B70,$C$74:$C$88,H$66)-SUMIFS($N$92:$N$106,$B$92:$B$106,$B70,$C$92:$C$106,H$66)","v":0},{"$f":"ROUNDUP(IF('Applicant Info'!$P$13=TRUE,IF(OR(D70*E70+F70*G70+H70*I70<0,$N$63=\"\",$N$63=0), 0, (D70*E70+F70*G70+H70*I70)*0.1),0),2)","v":0},null,{"$f":"IF('Applicant Info'!$P$13=TRUE,IF(OR(D70*E70+F70*G70+H70*I70<0,$N$107=\"\",$N$107=0), 0, D70*E70+F70*G70+H70*I70)+Lighting!J70,IF(OR(D70*E70+F70*G70+H70*I70<0,$N$107=\"\",$N$107=0), 0, D70*E70+F70*G70+H70*I70))","v":0},null,null,null,null,{"$f":"L71","v":0},"Exterior/12 Hour",null,"Lamp replacing Lamp",null,null,null,null,"Incan or Halogen","Incan or Halogen","Incan or Halogen",null,null,null,null,null,null,"Electronic",null,null,null,null,null,"50 Watt HPS Lamp, Magnetic ballast","116 Watt Incandescent or Halogen Lamp",null,"50 Watt MV Lamp","22 Watt MH Lamp, Electronic Ballast","39 Watt MH Lamp, Magnetic ballast",null,"30 Watt Compact Fluorescent",null,null,null,null,null,"CFL","35 Watt Compact Fluorescent","None",1,35,35]
[null,"TOTAL NEW LED replacing T5, T8, or T12 Fixture",null,null,null,null,null,null,null,{"$f":"SUM(J68:K70)","v":0},null,{"$f":"SUM(L68:M70)","v":0},null,null,null,null,null,"24 Hour/Garage/3-Shift",null,"Fixture to Retrofit Kit",null,null,null,null,"Mercury Vapor","Mercury Vapor","Mercury Vapor",null,null,null,null,null,null,null,null,null,null,null,null,"70 Watt HPS Lamp, Magnetic ballast","120 Watt Incandescent or Halogen Lamp",null,"75 Watt MV Lamp","39 Watt MH Lamp, Electronic Ballast","50 Watt MH Lamp, Magnetic ballast",null,"35 Watt Compact Fluorescent",null,null,null,null,null,"CFL","40 Watt Compact Fluorescent","None",1,40,40]
["Existing equipment: T5, T8 or T12 fixtures and/or lamps being removed",null,null,null,null,null,null,null,null,null,null,null,null,null,null,null,null,null,null,null,null,null,null,null,"Metal Halide","Metal Halide","Metal Halide",null,null,null,null,null,null,null,null,null,null,null,null,"100 Watt HPS Lamp, Magnetic ballast","125 Watt Incandescent or Halogen Lamp",null,"100 Watt MV Lamp","50 Watt MH Lamp, Electronic Ballast","70 Watt MH Lamp, Magnetic ballast",null,"40 Watt Compact Fluorescent",null,null,null,null,null,"CFL","45 Watt Compact Fluorescent","None",1,45,45]
["#","Measure Type","Retrofit Type","Fixture Type",null,"Ballast Type",null,"Description",null,"Lamps/ Fixture","Lamp Wattage","Fixture Quantity","Fixture Wattage","Base Watts",null,null,null,null,null,null,null,null,null,null,null,null,null,null,null,null,null,null,null,null,null,null,null,null,null,"150 Watt HPS Lamp, Magnetic ballast","130 Watt Incandescent or Halogen Lamp",null,"160 Watt MV self-ballasted Lamp","70 Watt MH Lamp, Electronic Ballast","100 Watt MH Lamp, Magnetic ballast",null,"45 Watt Compact Fluorescent",null,null,null,null,null,"CFL","50 Watt Compact Fluorescent","None",1,50,50]
[1,null,null,null,null,null,null,null,null,{"$f":"IF($H74=\"\",\"\",VLOOKUP($H74,$BB:$BF,3,FALSE))","v":""},{"$f":"IF($H74=\"\",\"\",VLOOKUP($H74,$BB:$BF,4,FALSE))","v":""},null,{"$f":"IF($H74=\"\",\"\",VLOOKUP($H74,$BB:$BF,5,FALSE))","v":""},{"$f":"IF((IF($H74=\"\",\"\",M74*L74))=0,\"Missing Value\",(IF($H74=\"\",\"\",M74*L74)))","v":""},null,null,null,null,null,null,null,null,null,null,null,null,null,null,null,null,null,null,null,null,null,null,null,null,null,"200 Watt HPS Lamp, Magnetic ballast","135 Watt Incandescent or Halogen Lamp",null,"175 Watt MV Lamp","100 Watt MH Lamp, Electronic Ballast","125 Watt MH Lamp, Magnetic ballast",null,"50 Watt Compact Fluorescent",null,null,null,null,null,"CFL","55 Watt Compact Fluorescent","None",1,55,55]
[2,null,null,null,null,null,null,null,null,"","",null,"","",null,null,null,null,null,null,null,null,null,null,null,null,null,null,null,null,null,null,null,null,null,null,null,null,null,"250 Watt HPS Lamp, Magnetic ballast","150 Watt Incandescent or Halogen Lamp",null,"250 Watt MV Lamp","150 Watt MH Lamp, Electronic Ballast","150 Watt MH Lamp, Magnetic Ballast",null,"55 Watt Compact Fluorescent",null,null,null,null,null,"CFL","60 Watt Compact Fluorescent","None",1,60,60]
[3,null,null,null,null,null,null,null,null,"","",null,"","",null,null,null,null,null,null,null,null,null,null,null,null,null,null,null,null,null,null,null,null,null,null,null,null,null,"310 Watt HPS Lamp, Magnetic ballast","160 Watt Incandescent or Halogen Lamp",null,"400 Watt MV Lamp","175 Watt MH Lamp, Electronic Ballast","175 Watt MH Lamp, Magnetic ballast",null,"60 Watt Compact Fluorescent",null,null,null,null,null,"CFL","65 Watt Compact Fluorescent","None",1,65,65]
[4,null,null,null,null,null,null,null,null,"","",null,"","",null,null,null,null,null,null,null,null,null,null,null,null,null,null,null,null,null,null,null,null,null,null,null,null,null,"360 Watt HPS Lamp, Magnetic ballast","170 Watt Incandescent or Halogen Lamp",null,"700 Watt MV Lamp","200 Watt MH Lamp, Electronic Ballast","200 Watt MH Lamp, Magnetic ballast",null,"65 Watt Compact Fluorescent",null,null,null,null,null,"CFL","70 Watt Compact Fluorescent","None",1,70,70]
[5,null,null,null,null,null,null,null,null,"","",null,"","",null,null,null,null,null,null,null,null,null,null,null,null,null,null,null,null,null,null,null,null,null,null,null,null,null,"400 Watt HPS Lamp, Magnetic ballast","200 Watt Incandescent or Halogen Lamp",null,"1000 Watt MV Lamp","250 Watt MH Lamp, Electronic Ballast","250 Watt MH Lamp, Magnetic ballast",null,"70 Watt Compact Fluorescent",null,null,null,null,null,"CFL","75 Watt Compact Fluorescent","None",1,75,75]
[6,null,null,null,null,null,null,null,null,"","",null,"","",null,null,null,null,null,null,null,null,null,null,null,null,null,null,null,null,null,null,null,null,null,null,null,null,null,"1000 Watt HPS Lamp, Magnetic ballast","250 Watt Incandescent or Halogen Lamp",null,null,"320 Watt MH Lamp, Electronic Ballast","320 Watt MH Lamp, Magnetic ballast",null,"75 Watt Compact Fluorescent",null,null,null,null,null,"CFL","80 Watt Compact Fluorescent","None",1,80,80]
[7,null,null,null,null,null,null,null,null,"","",null,"","",null,null,null,null,null,null,null,null,null,null,null,null,null,null,null,null,null,null,null,null,null,null,null,null,null,null,"300 Watt Incandescent or Halogen Lamp",null,null,"350 Watt MH Lamp, Electronic Ballast","350 Watt MH Lamp, Magnetic ballast",null,"80 Watt Compact Fluorescent",null,null,null,null,null,"CFL","85 Watt Compact Fluorescent","None",1,85,85]
[8,null,null,null,null,null,null,null,null,"","",null,"","",null,null,null,null,null,null,null,null,null,null,null,null,null,null,null,null,null,null,null,null,null,null,null,null,null,null,"400 Watt Incandescent or Halogen Lamp",null,null,"400 Watt MH Lamp, Electronic Ballast","360 Watt MH Lamp, Magnetic ballast",null,"85 Watt Compact Fluorescent",null,null,null,null,null,"CFL","90 Watt Compact Fluorescent","None",1,90,90]
[9,null,null,null,null,null,null,null,null,"","",null,"","",null,null,null,null,null,null,null,null,null,null,null,null,null,null,null,null,null,null,null,null,null,null,null,null,null,null,"448 Watt Incandescent or Halogen Lamp",null,null,"450 Watt MH Lamp, Electronic Ballast","400 Watt MH Lamp, Magnetic ballast",null,"90 Watt Compact Fluorescent",null,null,null,null,null,"CFL","95 Watt Compact Fluorescent","None",1,95,95]
[10,null,null,null,null,null,null,null,null,"","",null,"","",null,null,null,null,null,null,null,null,null,null,null,null,null,null,null,null,null,null,null,null,null,null,null,null,null,null,"500 Watt Incandescent or Halogen Lamp",null,null,null,"450 Watt MH Lamp, Magnetic ballast",null,"95 Watt Compact Fluorescent",null,null,null,null,null,"CFL","100 Watt Compact Fluorescent","None",1,100,100]
[11,null,null,null,null,null,null,null,null,"","",null,"","",null,null,null,null,null,null,null,null,null,null,null,null,null,null,null,null,null,null,null,null,null,null,null,null,null,null,"750 Watt Incandescent or Halogen Lamp",null,null,null,"750 Watt MH Lamp, Magnetic ballast",null,"100 Watt Compact Fluorescent",null,null,null,null,null,"CFL","105 Watt Compact Fluorescent","None",1,105,105]
[12,null,null,null,null,null,null,null,null,"","",null,"","",null,null,null,"TABLE 2: REPLACEMENT FROM HID",null,null,null,null,null,null,"2. Fixture Type",null,null,null,null,"3. Ballast Type",null,null,null,null,null,null,null,null,null,null,"1000 Watt Incandescent or Halogen Lamp",null,null,null,"1000 Watt MH Lamp, Magnetic ballast",null,"105 Watt Compact Fluorescent",null,null,null,null,null,"CFL","110 Watt Compact Fluorescent","None",1,110,110]
[13,null,null,null,null,null,null,null,null,"","",null,"","",null,null,null,null,null,null,null,null,null,null,"RFixturereplacingFixture","RLampreplacingLamp","RFixturetoRetrofitKit",null,null,"RT5R","RT8R","RFUTT8R","RLEDR","RRetrofitKitR",null,null,null,null,null,null,"1500 Watt Incandescent or Halogen Lamp",null,null,null,"1500 Watt MH Lamp, Magnetic ballast",null,"110 Watt Compact Fluorescent",null,null,null,null,null,"High Pressure Sodium","35 Watt HPS Lamp, Magnetic ballast","Magnetic",1,35,46]
[14,null,null,null,null,null,null,null,null,"","",null,"","",null,null,null,null,null,null,null,null,null,null,"LED","LED","Retrofit Kit",null,null,"PRS Elec","Electronic HO","Electronic","LEDs Over 20W","LED Retrofit Kit",null,null,null,null,null,null,"2000 Watt Incandescent or Halogen Lamp",null,null,null,null,null,null,null,null,null,null,null,"High Pressure Sodium","50 Watt HPS Lamp, Magnetic ballast","Magnetic",1,50,66]
[15,null,null,null,null,null,null,null,null,"","",null,"","",null,null,null,null,null,null,null,null,null,null,null,null,null,null,null,null,"Electronic Std","Electronic HO","Downlight Can Over 20W",null,null,null,null,null,null,null,null,null,null,null,null,null,null,null,null,null,null,null,"High Pressure Sodium","70 Watt HPS Lamp, Magnetic ballast","Magnetic",1,70,95]
["Subtotal HID Base Case Wattage",null,null,null,null,null,null,null,null,null,null,null,null,{"$f":"IF(SUM(N74:N88)=0,\"\",SUM(N74:N88))","v":""},null,null,null,null,null,null,null,null,null,null,null,null,null,null,null,null,null,null,"Outdoor Pole-Mounted LEDs",null,null,null,null,null,null,null,null,null,null,null,null,null,null,null,null,null,null,null,"High Pressure Sodium","100 Watt HPS Lamp, Magnetic ballast","Magnetic",1,100,138]
["Replacement equipment: LED lamps, fixtures, or fixture retrofit kits being installed",null,null,null,null,null,null,null,null,null,null,null,null,null,null,null,null,null,null,null,null,null,null,null,null,null,null,null,null,null,null,null,"Outdoor Wall-Mounted LEDs",null,null,null,null,null,null,null,null,null,null,null,null,null,null,null,null,null,null,null,"High Pressure Sodium","150 Watt HPS Lamp, Magnetic ballast","Magnetic",1,150,188]
["#","Measure Type","Retrofit Type","Fixture Type",null,"LED Fixture Sub Type",null,"Description (type in model number)",null,"Lamps/ Fixture","Lamp Wattage","Fixture Quantity","Fixture Wattage","Installed Watts",null,null,null,null,null,null,null,null,null,null,null,null,null,null,null,null,null,null,"Parking Garage LEDs",null,null,null,null,null,null,null,null,null,null,null,null,null,null,null,null,null,null,null,"High Pressure Sodium","200 Watt HPS Lamp, Magnetic ballast","Magnetic",1,200,250]
[1,null,null,null,null,null,null,null,null,null,null,null,{"$f":"IF($H92=\"\",\"\",J92*K92)","v":""},{"$f":"IF((IF($H92=\"\",\"\",M92*L92))=0,\"Missing Value\",(IF($H92=\"\",\"\",M92*L92)))","v":""},null,null,null,null,null,null,null,null,null,null,null,null,null,null,null,null,null,null,"High-Bay LEDs ",null,null,null,null,null,null,null,null,null,null,null,null,null,null,null,null,null,null,null,"High Pressure Sodium","250 Watt HPS Lamp, Magnetic ballast","Magnetic",1,250,295]
[2,null,null,null,null,null,null,null,null,null,null,null,"","",null,null,null,null,null,null,null,null,null,null,null,null,null,null,null,null,null,null,"Low-Bay LEDs ",null,null,null,null,null,null,null,null,null,null,null,null,null,null,null,null,null,null,null,"High Pressure Sodium","310 Watt HPS Lamp, Magnetic ballast","Magnetic",1,310,365]
[3,null,null,null,null,null,null,null,null,null,null,null,"","",null,null,null,null,null,null,null,null,null,null,null,null,null,null,null,null,null,null,"Stairway / Passageway LEDs",null,null,null,null,null,null,null,null,null,null,null,null,null,null,null,null,null,null,null,"High Pressure Sodium","360 Watt HPS Lamp, Magnetic ballast","Magnetic",1,360,414]
[4,null,null,null,null,null,null,null,null,null,null,null,"","",null,null,null,null,null,null,null,null,null,null,null,null,null,null,null,null,null,null,"Outdoor Signage",null,null,null,null,null,null,null,null,null,null,null,null,null,null,null,null,null,null,null,"High Pressure Sodium","400 Watt HPS Lamp, Magnetic ballast","Magnetic",1,400,465]
[5,null,null,null,null,null,null,null,null,null,null,null,"","",null,null,null,null,null,null,null,null,null,null,null,null,null,null,null,null,null,null,"Bollards",null,null,null,null,null,null,null,null,null,null,null,null,null,null,null,null,null,null,null,"High Pressure Sodium","1000 Watt HPS Lamp, Magnetic ballast","Magnetic",1,1000,1100]
[6,null,null,null,null,null,null,null,null,null,null,null,"","",null,null,null,null,null,null,null,null,null,null,null,null,null,null,null,null,null,null,"1x2 Luminaires",null,null,null,null,null,null,null,null,null,null,null,null,null,null,null,null,null,null,null,"Incan or Halogen","110 Watt Incandescent or Halogen Lamp","None",1,110,110]
[7,null,null,null,null,null,null,null,null,null,null,null,"","",null,null,null,null,null,null,null,null,null,null,null,null,null,null,null,null,null,null,"1x4 Luminaires",null,null,null,null,null,null,null,null,null,null,null,null,null,null,null,null,null,null,null,"Incan or Halogen","116 Watt Incandescent or Halogen Lamp","None",1,116,116]
[8,null,null,null,null,null,null,null,null,null,null,null,"","",null,null,null,null,null,null,null,null,null,null,null,null,null,null,null,null,null,null,"2x2 Luminaires",null,null,null,null,null,null,null,null,null,null,null,null,null,null,null,null,null,null,null,"Incan or Halogen","120 Watt Incandescent or Halogen Lamp","None",1,120,120]
[9,null,null,null,null,null,null,null,null,null,null,null,"","",null,null,null,null,null,null,null,null,null,null,null,null,null,null,null,null,null,null,"2x4 Luminaires",null,null,null,null,null,null,null,null,null,null,null,null,null,null,null,null,null,null,null,"Incan or Halogen","125 Watt Incandescent or Halogen Lamp","None",1,125,125]
[10,null,null,null,null,null,null,null,null,null,null,null,"","",null,null,null,null,null,null,null,null,null,null,null,null,null,null,null,null,null,null,"1x8 Luminaires",null,null,null,null,null,null,null,null,null,null,null,null,null,null,null,null,null,null,null,"Incan or Halogen","130 Watt Incandescent or Halogen Lamp","None",1,130,130]
[11,null,null,null,null,null,null,null,null,null,null,null,"","",null,null,null,null,null,null,null,null,null,null,null,null,null,null,null,null,null,null,null,null,null,null,null,null,null,null,null,null,null,null,null,null,null,null,null,null,null,null,"Incan or Halogen","135 Watt Incandescent or Halogen Lamp","None",1,135,135]
[12,null,null,null,null,null,null,null,null,null,null,null,"","",null,null,null,null,null,null,null,null,null,null,null,null,null,null,null,null,null,null,null,null,null,null,null,null,null,null,null,null,null,null,null,null,null,null,null,null,null,null,"Incan or Halogen","150 Watt Incandescent or Halogen Lamp","None",1,150,150]
[13,null,null,null,null,null,null,null,null,null,null,null,"","",null,null,null,null,null,null,null,null,null,null,null,null,null,null,null,null,null,null,null,null,null,null,null,null,null,null,null,null,null,null,null,null,null,null,null,null,null,null,"Incan or Halogen","160 Watt Incandescent or Halogen Lamp","None",1,160,160]
[14,null,null,null,null,null,null,null,null,null,null,null,"","",null,null,null,null,null,null,null,null,null,null,null,null,null,null,null,null,null,null,null,null,null,null,null,null,null,null,null,null,null,null,null,null,null,null,null,null,null,null,"Incan or Halogen","170 Watt Incandescent or Halogen Lamp","None",1,170,170]
[15,null,null,null,null,null,null,null,null,null,null,null,"","",null,null,null,null,null,null,null,null,null,null,null,null,null,null,null,null,null,null,null,null,null,null,null,null,null,null,null,null,null,null,null,null,null,null,null,null,null,null,"Incan or Halogen","200 Watt Incandescent or Halogen Lamp","None",1,200,200]
["Subtotal Installed LED Wattage",null,null,null,null,null,null,null,null,null,null,null,null,{"$f":"IF(SUM(N92:N106)=0,\"\",SUM(N92:N106))","v":""},null,null,null,null,null,null,null,null,null,null,null,null,null,null,null,null,null,null,null,null,null,null,null,null,null,null,null,null,null,null,null,null,null,null,null,null,null,null,"Incan or Halogen","250 Watt Incandescent or Halogen Lamp","None",1,250,250]
["4. Controls for Existing LED Fixtures (Refer to Section 1 for Interior Controls)",null,null,null,null,null,null,null,null,null,null,null,null,null,null,null,null,null,null,null,null,null,null,null,null,null,null,null,null,null,null,null,null,null,null,null,null,null,null,null,null,null,null,null,null,null,null,null,null,null,null,null,"Incan or Halogen","300 Watt Incandescent or Halogen Lamp","None",1,300,300]
[null,null,null,null,null,null,null,null,null,null,null,null,null,null,null,null,null,null,null,null,null,null,null,null,null,null,null,null,null,null,null,null,null,null,null,null,null,null,null,null,null,null,null,null,null,null,null,null,null,null,null,null,"Incan or Halogen","400 Watt Incandescent or Halogen Lamp","None",1,400,400]
[null,"Type of Retrofit",null,"Controlled Fixture",null,"Income Qualifier Bonus",null,"Total Incentive",null,null,null,null,null,null,null,null,null,null,null,null,null,null,null,null,"2. Fixture Type",null,null,null,null,"3. Ballast Type",null,null,null,null,null,null,null,null,null,null,null,null,null,null,null,null,null,null,null,null,null,null,"Incan or Halogen","448 Watt Incandescent or Halogen Lamp","None",1,448,448]
[null,null,null,"Incentive","Watts Reduced",null,null,null,null,null,null,null,null,null,null,null,null,"TMeasureType",null,"TRetrofitType",null,null,null,null,"TFixturereplacingFixture","TLampreplacingLamp","TFixturetoRetrofitKit",null,null,"FUT12","FUT8","T12","T8","F2RK","T5",null,null,null,null,null,null,null,null,null,null,null,null,null,null,null,null,null,"Incan or Halogen","500 Watt Incandescent or Halogen Lamp","None",1,500,500]
[null,"Interior",null,"NA","NA","NA",null,"NA",null,null,null,null,null,null,null,null,null,"Interior",null,"Fixture replacing Fixture",null,null,null,null,"T5","T5","T5",null,null,"TFUT12T","TFUT8T","TT12T","TT8T","TFixturetoRetrofitKitT","TT5T",null,null,null,null,"FUT12Magnetic","FUT8Electronic","FUT8ElectronicHO","T12Magnetic","T8ElectronicHO","T8ElectronicStd","T5PRSElec",null,null,null,null,null,null,"Incan or Halogen","750 Watt Incandescent or Halogen Lamp","None",1,750,750]
[null,"Exterior/12 Hour",null,0.4,{"$f":"SUMIFS($M$118:$M$132,$B$118:$B$132,$B113,$D$118:$D$132,D$110)","v":0},{"$f":"IF('Applicant Info'!$P$13=TRUE,D113*E113*0.1,0)","v":0},null,{"$f":"D113*E113+F113","v":0},null,null,null,null,null,null,null,null,null,"Exterior/12 Hour",null,"Lamp replacing Lamp",null,null,null,null,"T8","T8","T8",null,null,"Magnetic","Electronic","Magnetic","Electronic HO","Fixture to Retrofit Kit","PRS Elec",null,null,null,null,"(1) U-Tube, T12 STD Lamp, STD Mag Ballast, 34 Watt Lamps","(1) U-Tube, T8 Standard ballast, 32 Watt Lamp","(1) U-Tube, T8 High Output Ballast, 32 Watt Lamp","(1) 24\" T12, STD Lamps, 20 Watt Lamps","(1) 24\", T8, High Output Ballast, 17 Watt Lamps","(1) 24\", T8, Std Elec Ballast, 17 Watt Lamps","(1) 22\" T-5 14W Lamp (1) Prog Start or PRS Ballast, HLO (.95<BF<1.1)",null,null,null,null,null,null,"Incan or Halogen","1000 Watt Incandescent or Halogen Lamp","None",1,1000,1000]
[null,"24 Hour/Garage/3-Shift",null,0.5,{"$f":"SUMIFS($M$118:$M$132,$B$118:$B$132,$B114,$D$118:$D$132,D$110)","v":0},{"$f":"IF('Applicant Info'!$P$13=TRUE,D114*E114*0.1,0)","v":0},null,{"$f":"D114*E114+F114","v":0},null,null,null,null,null,null,null,null,null,"24 Hour/Garage/3-Shift",null,"Fixture to Retrofit Kit",null,null,null,null,"T12","T12","T12",null,null,null,"Electronic HO",null,"Electronic Std",null,null,null,null,null,null,"(1) U-Tube, T12 STD Lamp, STD Mag Ballast, 40 Watt Lamps","(2) U-Tube, T8 Standard ballast, 32 Watt Lamp","(2) U-Tube, T8 High Output Ballast, 32 Watt Lamp","(1) 36\" T12, STD  Lamps Mag-STD, 30 Watt Lamps","(1) 36\", T8, High Output Ballast, 25 Watt Lamps","(1) 36\", T8, Std Elec Ballast, 25 Watt Lamps","(1) 22\" T-5 24W HO Lamp (1) Prog Start or PRS Ballast, HLO (.95<BF<1)",null,null,null,null,null,null,"Incan or Halogen","1500 Watt Incandescent or Halogen Lamp","None",1,1500,1500]
[null,"Controls on Existing LED Fixtures",null,null,null,{"$f":"SUM(F112:G114)","v":0},null,{"$f":"SUM(H112:I114)","v":0},null,null,null,null,null,null,null,null,{"$f":"+H115","v":0},null,null,null,null,null,null,null,"FUT8","FUT8","FUT8",null,null,null,null,null,null,null,null,null,null,null,null,"(2) U-Tube, T12 STD Lamp, STD Mag Ballast, 34 Watt Lamps",null,null,"(1) 48\" T12, ES Lamp, Magnetic Ballast-STD, 34 Watt Lamps","(1) 48\", T8,  High Output Ballast, 28 Watt Lamps","(1) 48\", T8, Std Ballast, 25 Watt Lamps","(1) 34\" T-5 21W Lamp (1) Prog Start or PRS Ballast, HLO (.95<BF<1.1)",null,null,null,null,null,null,"Incan or Halogen","2000 Watt Incandescent or Halogen Lamp","None",1,2000,2000]
["Controlled Existing LED Fixture with High and Low Settings",null,null,null,null,null,null,null,null,null,null,null,null,null,null,null,null,null,null,null,null,null,null,null,"FUT12","FUT12","FUT12",null,null,null,null,null,null,null,null,null,null,null,null,"(2) U-Tube, T12 STD Lamp, STD Mag Ballast, 40 Watt Lamps",null,null,"(1) 48\" T12, STD Lamp, Magnetic Ballast-STD, 40 Watt Lamps","(1) 48\", T8, High Output Ballast, 25 Watt Lamps","(1) 48\", T8, Std Ballast, 28 Watt Lamps","(1) 34\" T-5 39W HO Lamp (1) Prog Start or PRS Ballast, HLO (.95<BF<1.1)",null,null,null,null,null,null,"Mercury Vapor","40 Watt MV Lamp","Magnetic",1,40,50]
["#","Measure Type","Retrofit Type","Fixture Type",null,"Sub Type",null,"Description (type in)",null,"Fixture Quantity","High Setting Wattage","Low Setting Wattage","Weighted Average Watts Reduced",null,null,null,null,null,null,null,null,null,null,null,null,null,null,null,null,null,null,null,null,null,null,null,null,null,null,null,null,null,"(1) 48\" T12, STD Lamp, Magnetic Ballast-STD, 40 Watt Lamps","(1) 48\", T8, High Output Ballast, 32 Watt Lamps","(1) 48\", T8, Std Ballast, 32 Watt Lamps","(1) 45.8\" T-5 28W Lamp (1) Prog Start or PRS Ballast, HLO (.95<BF<1.1)",null,null,null,null,null,null,"Mercury Vapor","50 Watt MV Lamp","Magnetic",1,50,74]
[1,null,{"$f":"IFERROR(VLOOKUP($B118,$R$166:$U$168,3,FALSE),\"\")","v":""},{"$f":"IFERROR(VLOOKUP($B118,$R$166:$U$168,4,FALSE),\"\")","v":""},{"$f":"VLOOKUP($B118,$R$166:$U$168,3,FALSE)","v":{"$error":"#N/A"}},null,null,null,null,null,null,null,{"$f":"IF((IF($H118=\"\",\"\",(ROUND(((K118-L118)*0.85*J118),0))))=0,\"Missing Value\",(IF($H118=\"\",\"\",(ROUND(((K118-L118)*0.85*J118),0)))))","v":""},null,null,null,null,null,null,null,null,null,null,null,null,null,null,null,null,null,null,null,null,null,null,null,null,null,null,null,null,null,"(1) 48\" T12, HO Lamps, 60 Watt Lamps","(1) 96\", T8, High Output Ballast, 57 Watt Lamps","(1) 96\", T8 Std Ballast, 57 Watt Lamps","(1) 45.8\" T-5 54W HO Lamps (1) Prog RS Ballast, HLO(.95<BF<1.1)",null,null,null,null,null,null,"Mercury Vapor","75 Watt MV Lamp","Magnetic",1,75,93]
[2,null,"","",{"$error":"#N/A"},null,null,null,null,null,null,null,{"$f":"IF((IF($H119=\"\",\"\",(ROUND(((K119-L119)*0.85*J119),0))))=0,\"Missing Value\",(IF($H119=\"\",\"\",(ROUND(((K119-L119)*0.85*J119),0)))))","v":""},null,null,null,null,null,null,null,null,null,null,null,null,null,null,null,null,null,null,null,null,null,null,null,null,null,null,null,null,null,"(1) 72\" T12, HO Lamps, 85 Watt Lamps","(1) 96\", T8, High Output Ballast, 59 Watt Lamps","(1) 96\", T8 Std Ballast, 59 Watt Lamps","(1) 57.6\" T-5 35W Lamp (1) Prog Start or PRS Ballast, HLO (.95<BF<1.1)",null,null,null,null,null,null,"Mercury Vapor","100 Watt MV Lamp","Magnetic",1,100,125]
[3,null,"","",{"$error":"#N/A"},null,null,null,null,null,null,null,"",null,null,null,null,null,null,null,null,null,null,null,null,null,null,null,null,null,null,null,null,null,null,null,null,null,null,null,null,null,"(1) 96\" T12, ES HO Lamps Mag-STD, 95 Watt Lamps","(1) 96\", T8, High Output Ballast, 86 Watt Lamps","(1) 96\", T8 Std Ballast, 86 Watt Lamps","(1) 57.6\" T-5 80W HO Lamp (1) Prog Start or PRS Ballast, HLO (.95<BF<1.1)",null,null,null,null,null,null,"Mercury Vapor","160 Watt MV self-ballasted Lamp","Magnetic",1,160,160]
[4,null,"","",{"$error":"#N/A"},null,null,null,null,null,null,null,"",null,null,null,null,null,null,null,null,null,null,null,null,null,null,null,null,null,null,null,null,null,null,null,null,null,null,null,null,null,"(1) 96\" T12, ES Lamps Mag-STD, 60 Watt Lamps","(2) 24\", T8, High Output Ballast, 17 Watt Lamps","(2) 24\", T8, Std Elec Ballast, 17 Watt Lamps","(2) 22\" T-5 14W Lamps (1) Prog Start or PRS Ballast, HLO (.95<BF<1.1)",null,null,null,null,null,null,"Mercury Vapor","175 Watt MV Lamp","Magnetic",1,175,205]
[5,null,"","",{"$error":"#N/A"},null,null,null,null,null,null,null,"",null,null,null,null,null,null,null,null,null,null,null,null,null,null,null,null,null,null,null,null,null,null,null,null,null,null,null,null,null,"(1) 96\" T12, STD HO Lamps Mag-STD, 110 Watt Lamps","(2) 36\", T8, High Output Ballast, 25 Watt Lamps","(2) 36\", T8, Std Elec Ballast, 25 Watt Lamps","(2) 22\" T-5 24W HO Lamps (1) Prog Start or PRS Ballast, HLO (.95<BF<1)",null,null,null,null,null,null,"Mercury Vapor","250 Watt MV Lamp","Magnetic",1,250,290]
[6,null,"","",{"$error":"#N/A"},null,null,null,null,null,null,null,"",null,null,null,null,null,null,null,null,null,null,null,null,null,null,null,null,null,null,null,null,null,null,null,null,null,null,null,null,null,"(1) 108\" T12 F108, HO Lamps, 124 Watt Lamps","(2) 48\", T8,  High Output Ballast, 28 Watt Lamps","(2) 48\", T8, Std Ballast, 25 Watt Lamps","(2) 34\" T-5 21W Lamps (1) Prog.Start or PRS Ballast HLO (.95<BF<1.1)",null,null,null,null,null,null,"Mercury Vapor","400 Watt MV Lamp","Magnetic",1,400,455]
[7,null,"","",{"$error":"#N/A"},null,null,null,null,null,null,null,"",null,null,null,null,null,null,null,null,null,null,null,null,null,null,null,null,null,null,null,null,null,null,null,null,null,null,null,null,null,"(1) 114\" T12 F117, HO Lamps, 132 Watt Lamps","(2) 48\", T8, High Output Ballast, 25 Watt Lamps","(2) 48\", T8, Std Ballast, 28 Watt Lamps","(2) 34\" T-5 39W HO Lamps (1) Prog Start or PRS Ballast, HLO (.95<BF<1.1)",null,null,null,null,null,null,"Mercury Vapor","700 Watt MV Lamp","Magnetic",1,700,780]
[8,null,"","",{"$error":"#N/A"},null,null,null,null,null,null,null,"",null,null,null,null,null,null,null,null,null,null,null,null,null,null,null,null,null,null,null,null,null,null,null,null,null,null,null,null,null,"(2) 24\" T12, STD Lamps, 20 Watt Lamps","(2) 48\", T8, High Output Ballast, 32 Watt Lamps","(2) 48\", T8, Std Ballast, 32 Watt Lamps","(2) 45.8\" T-5 28W Lamps (1) Prog Start or PRS Ballast, HLO (.95<BF<1.1)",null,null,null,null,null,null,"Mercury Vapor","1000 Watt MV Lamp","Magnetic",1,1000,1075]
[9,null,"","",{"$error":"#N/A"},null,null,null,null,null,null,null,"",null,null,null,null,null,null,null,null,null,null,null,null,null,null,null,null,null,null,null,null,null,null,null,null,null,null,null,null,null,"(2) 36\" T12, STD  Lamps Mag-STD, 30 Watt Lamps","(2) 96\", T8, High Output Ballast, 57 Watt Lamps","(2) 96\", T8 Std Ballast, 57 Watt Lamps","(2) 45.8\" T-5 49W HO Lamps, (1) Prog Start or RS Ballast, HLO (.95<BF<1.1)",null,null,null,null,null,null,"Metal Halide","20 Watt MH Lamp, Electronic Ballast","Electronic",1,20,24]
[10,null,"","",{"$error":"#N/A"},null,null,null,null,null,null,null,"",null,null,null,null,null,null,null,null,null,null,null,null,null,null,null,null,null,null,null,null,null,null,null,null,null,null,null,null,null,"(2) 40\" T12 F42, HO Lamps, 55 Watt Lamps","(2) 96\", T8, High Output Ballast, 59 Watt Lamps","(2) 96\", T8 Std Ballast, 59 Watt Lamps","(2) 45.8\" T-5 54W HO Lamps (1) Prog RS Ballast, HLO (.95<BF<1.1)",null,null,null,null,null,null,"Metal Halide","22 Watt MH Lamp, Electronic Ballast","Electronic",1,22,26]
[11,null,"","",{"$error":"#N/A"},null,null,null,null,null,null,null,"",null,null,null,null,null,null,null,null,null,null,null,null,null,null,null,null,null,null,null,null,null,null,null,null,null,null,null,null,null,"(2) 48\" T12, ES Lamp, Magnetic Ballast-STD, 34 Watt Lamps","(2) 96\", T8, High Output Ballast, 86 Watt Lamps","(2) 96\", T8 Std Ballast, 86 Watt Lamps","(2) 57.6\" T-5 35W Lamps (1) Prog Start or PRS Ballast, HLO (.95<BF<1.1)",null,null,null,null,null,null,"Metal Halide","39 Watt MH Lamp, Electronic Ballast","Electronic",1,39,44]
[12,null,"","",{"$error":"#N/A"},null,null,null,null,null,null,null,"",null,null,null,null,null,null,null,null,null,null,null,null,null,null,null,null,null,null,null,null,null,null,null,null,null,null,null,null,null,"(2) 48\" T12, HO Lamps, 60 Watt Lamps","(3) 24\", T8, High Output Ballast, 17 Watt Lamps","(3) 24\", T8, Std Elec Ballast, 17 Watt Lamps","(2) 57.6\" T-5 80W HO Lamps (1) Prog Start or PRS Ballast, HLO (.95<BF<1.1)",null,null,null,null,null,null,"Metal Halide","50 Watt MH Lamp, Electronic Ballast","Electronic",1,50,56]
[13,null,"","",{"$error":"#N/A"},null,null,null,null,null,null,null,"",null,null,null,null,null,null,null,null,null,null,null,null,null,null,null,null,null,null,null,null,null,null,null,null,null,null,null,null,null,"(2) 48\" T12, STD Lamp, Magnetic Ballast-STD, 40 Watt Lamps","(3) 36\", T8, High Output Ballast, 25 Watt Lamps","(3) 36\", T8, Std Elec Ballast, 25 Watt Lamps","(3) 22\" T-5 14W Lamps (2) Prog Start or PRS Ballasts, HLO (.95<BF<1.1)",null,null,null,null,null,null,"Metal Halide","70 Watt MH Lamp, Electronic Ballast","Electronic",1,70,78]
[14,null,"","",{"$error":"#N/A"},null,null,null,null,null,null,null,"",null,null,null,null,null,null,null,null,null,null,null,"2. Fixture Type",null,null,null,null,"3. Ballast Type",null,null,null,null,null,null,null,null,null,null,null,null,"(2) 72\" T12, HO Lamps, 85 Watt Lamps","(3) 48\", T8,  High Output Ballast, 28 Watt Lamps","(3) 48\", T8, Std Ballast, 25 Watt Lamps","(3) 22\" T-5 24W HO Lamps (2) Prog Start or PRS Ballasts, HLO (.95<BF<1.1)",null,null,null,null,null,null,"Metal Halide","100 Watt MH Lamp, Electronic Ballast","Electronic",1,100,109]
[15,null,"","",{"$error":"#N/A"},null,null,null,null,null,null,null,"",null,null,null,null,null,null,null,null,null,null,null,"RTFixturereplacingFixture","RTLampreplacingLamp","RTFixturetoRetrofitKit",null,null,"RTLEDR","RTRetrofitKitR",null,null,null,null,null,null,null,null,null,null,null,"(2) 96\" T12, ES HO Lamps Mag-STD, 95 Watt Lamps","(3) 48\", T8, High Output Ballast, 25 Watt Lamps","(3) 48\", T8, Std Ballast, 28 Watt Lamps","(3) 34\" T-5 21W Lamps (2) Prog Start or PRS Ballasts, HLO (.95<BF<1.1)",null,null,null,null,null,null,"Metal Halide","150 Watt MH Lamp, Electronic Ballast","Electronic",1,150,163]
["Subtotal Controls on LED Fixtures",null,null,null,null,null,null,null,null,null,null,null,{"$f":"IF(SUM(M118:N132)=0,\"\",SUM(M118:N132))","v":""},null,null,null,null,null,null,null,null,null,null,null,"LED","LED","Retrofit Kit",null,null,"Flood and Spot LEDs Over 20W","LED Retrofit Kit",null,null,null,null,null,null,null,null,null,null,null,"(2) 96\" T12, ES Lamps Mag-STD, 60 Watt Lamps","(3) 48\", T8, High Output Ballast, 32 Watt Lamps","(3) 48\", T8, Std Ballast, 32 Watt Lamps","(3) 34\" T-5 39W HO Lamps (2) Prog Start or PRS Ballasts, HLO (.95<BF<1.1)",null,null,null,null,null,null,"Metal Halide","175 Watt MH Lamp, Electronic Ballast","Electronic",1,175,191]
[null,null,null,null,null,null,null,null,null,null,null,null,null,null,null,null,null,null,null,null,null,null,null,null,null,null,null,null,null,"Downlight Can Fixture Over 20W",null,null,null,null,null,null,null,null,null,null,null,null,"(2) 96\" T12, STD HO Lamps Mag-STD, 110 Watt Lamps","(3) 96\", T8, High Output Ballast, 57 Watt Lamps","(3) 96\", T8 Std Ballast, 57 Watt Lamps","(3) 45.8\" T-5 28W Lamps (2) Prog Start or PRS Ballasts, HLO(.95<BF<1.1)",null,null,null,null,null,null,"Metal Halide","200 Watt MH Lamp, Electronic Ballast","Electronic",1,200,216]
[null,null,null,null,null,null,null,null,null,null,null,null,null,null,null,null,null,null,null,null,null,null,null,null,null,null,null,null,null,"Parking Garage LEDs",null,null,null,null,null,null,null,null,null,null,null,null,"(2) 108\" T12 F108, HO Lamps, 124 Watt Lamps","(3) 96\", T8, High Output Ballast, 59 Watt Lamps","(3) 96\", T8 Std Ballast, 59 Watt Lamps","(3) 45.8\" T-5 49W HO Lamps, (1) Prog Start or RS Ballast, HLO (.95<BF<1.1)",null,null,null,null,null,null,"Metal Halide","250 Watt MH Lamp, Electronic Ballast","Electronic",1,250,266]
["IMPORTANT NOTICE: Only qualified LED lighting is elegible for a rebate. No fluorescent replacements are eligible for rebates.",null,null,null,null,null,null,null,null,null,null,null,null,null,null,null,null,null,null,null,null,null,null,null,null,null,null,null,null,"High-Bay LEDs ",null,null,null,null,null,null,null,null,null,null,null,null,"(2) 114\" T12 F117, HO Lamps, 132 Watt Lamps","(3) 96\", T8, High Output Ballast, 86 Watt Lamps","(3) 96\", T8 Std Ballast, 86 Watt Lamps","(3) 45.8\" T-5 54W HO Lamps, Prog RS (2) Ballast, HLO (.95<BF<1.1)",null,null,null,null,null,null,"Metal Halide","400 Watt MH Lamp, Electronic Ballast","Electronic",1,400,424]
[null,null,null,null,null,null,null,null,null,null,null,null,null,null,null,null,null,null,null,null,null,null,null,null,null,null,null,null,null,"Low-Bay LEDs ",null,null,null,null,null,null,null,null,null,null,null,null,"(3) 24\" T12, STD Lamps, 20 Watt Lamps","(4) 24\", T8, High Output Ballast, 17 Watt Lamps","(4) 24\", T8, Std Elec Ballast, 17 Watt Lamps","(3) 57.6\" T-5 35W Lamps (2) Prog Start or PRS Ballasts, HLO (.95<BF<1.1)",null,null,null,null,null,null,"Metal Halide","450 Watt MH Lamp, Electronic Ballast","Electronic",1,450,465]
["Lighting Scope of Work is REQUIRED for all lighting measures.",null,null,null,null,null,null,null,null,null,null,null,null,null,null,null,null,null,null,null,null,null,null,null,null,null,null,null,null,"Indoor Wall-Mounted Area LEDs",null,null,null,null,null,null,null,null,null,null,null,null,"(3) 36\" T12, STD  Lamps Mag-STD, 30 Watt Lamps","(4) 36\", T8, High Output Ballast, 25 Watt Lamps","(4) 36\", T8, Std Elec Ballast, 25 Watt Lamps","(4) 22\" T-5 14W Lamps (2) Prog Start or PRS Ballasts, HLO (.95<BF<1.1)",null,null,null,null,null,null,"Metal Halide","32 Watt MH Lamp, Magnetic ballast","Magnetic",1,32,42]
[null,null,null,null,null,null,null,null,null,null,null,null,null,null,null,null,null,null,null,null,null,null,null,null,null,null,null,null,null,"Stairwell and Passageway LEDs",null,null,null,null,null,null,null,null,null,null,null,null,"(3) 48\" T12, ES Lamp, Magnetic Ballast-STD, 34 Watt Lamps","(4) 48\", T8,  High Output Ballast, 28 Watt Lamps","(4) 48\", T8, Std Ballast, 25 Watt Lamps","(4) 22\" T-5 24W HO Lamps (2) Prog Start or PRS Ballasts, HLO (.95<BF<1.1)",null,null,null,null,null,null,"Metal Halide","39 Watt MH Lamp, Magnetic ballast","Magnetic",1,39,56]
["In no case will the program pay a rebate for lamps and retrofit kits that have been installed in fixtures with cracked, broken or yellowed lenses.",null,null,null,null,null,null,null,null,null,null,null,null,null,null,null,null,null,null,null,null,null,null,null,null,null,null,null,null,"Bollards",null,null,null,null,null,null,null,null,null,null,null,null,"(3) 48\" T12, STD Lamp, Magnetic Ballast-STD, 40 Watt Lamps","(4) 48\", T8, High Output Ballast, 25 Watt Lamps","(4) 48\", T8, Std Ballast, 28 Watt Lamps","(4) 34\" T-5 39W HO Lamps (2 )Prog.Start or PRS Ballasts, HLO (.95<BF<1.1)",null,null,null,null,null,null,"Metal Halide","50 Watt MH Lamp, Magnetic ballast","Magnetic",1,50,67]
[null,null,null,null,null,null,null,null,null,null,null,null,null,null,null,null,null,null,null,null,null,null,null,null,null,null,null,null,null,"Display Case LEDs",null,null,null,null,null,null,null,null,null,null,null,null,"(3) 96\" T12, ES HO Lamps Mag-STD, 95 Watt Lamps","(4) 48\", T8, High Output Ballast, 32 Watt Lamps","(4) 48\", T8, Std Ballast, 32 Watt Lamps","(4) 34\" T-5 39W Lamps (2) Prog Start or PRS Ballasts, HLO (.95<BF<1.1)",null,null,null,null,null,null,"Metal Halide","70 Watt MH Lamp, Magnetic ballast","Magnetic",1,70,94]
[null,null,null,null,null,null,null,null,null,null,null,null,null,null,null,null,null,null,null,null,null,null,null,null,null,null,null,null,null,"1x4 Luminaires",null,null,null,null,null,null,null,null,null,null,null,null,"(3) 96\" T12, ES Lamps Mag-STD, 60 Watt Lamps","(4) 96\", T8, High Output Ballast, 57 Watt Lamps","(4) 96\", T8 Std Ballast, 25 Watt Lamps","(4) 45.8\" T-5 28W Lamps (2) Prog Start or PRS Ballasts, HLO (.95<BF<1.1)",null,null,null,null,null,null,"Metal Halide","100 Watt MH Lamp, Magnetic ballast","Magnetic",1,100,127]
[null,null,null,null,null,null,null,null,null,null,null,null,null,null,null,null,null,null,null,null,null,null,null,null,null,null,null,null,null,"2x2 Luminaires",null,null,null,null,null,null,null,null,null,null,null,null,"(3) 96\" T12, STD HO Lamps Mag-STD, 110 Watt Lamps","(4) 96\", T8, High Output Ballast, 59 Watt Lamps","(4) 96\", T8 Std Ballast, 57 Watt Lamps","(4) 45.8\" T-5 49W HO Lamps, (2) Prog Start or RS Ballast, HLO (.95<BF<1.1)",null,null,null,null,null,null,"Metal Halide","125 Watt MH Lamp, Magnetic ballast","Magnetic",1,125,150]
[null,null,null,null,null,null,null,null,null,null,null,null,null,null,null,null,null,null,null,null,null,null,null,null,null,null,null,null,null,"2x4 Luminaires",null,null,null,null,null,null,null,null,null,null,null,null,"(4) 24\" T12, STD Lamps, 20 Watt Lamps","(4) 96\", T8, High Output Ballast, 86 Watt Lamps","(4) 96\", T8 Std Ballast, 59 Watt Lamps","(4) 45.8\" T-5 54W HO Lamps, (2) Prog RS Ballast, HLO (.95<BF<1.1)",null,null,null,null,null,null,"Metal Halide","150 Watt MH Lamp, Magnetic Ballast","Magnetic",1,150,184]
[null,null,null,null,null,null,null,null,null,null,null,null,null,null,null,null,null,null,null,null,null,null,null,null,null,null,null,null,null,"1x8 Luminaires",null,null,null,null,null,null,null,null,null,null,null,null,"(4) 36\" T12, STD  Lamps Mag-STD, 30 Watt Lamps","(6) 48\", T8,  High Output Ballast, 28 Watt Lamps","(4) 96\", T8 Std Ballast, 86 Watt Lamps","(4) 45.8\" T-5 54W HO Lamps, (2) Prog RS Ballast, HLO (.95<BF<1.1), alt 1",null,null,null,null,null,null,"Metal Halide","175 Watt MH Lamp, Magnetic ballast","Magnetic",1,175,209]
[null,null,null,null,null,null,null,null,null,null,null,null,null,null,null,null,null,null,null,null,null,null,null,null,null,null,null,null,null,null,null,null,null,null,null,null,null,null,null,null,null,null,"(4) 48\" T12, ES Lamp, Magnetic Ballast-STD, 34 Watt Lamps","(6) 48\", T8, High Output Ballast, 32 Watt Lamps","(6) 48\", T8, Std Ballast, 28 Watt Lamps","(5) 45.9\" T-5 54W Lamps (2) Prog.Start or PRS Ballasts, HLO (.95<BF<1.1)",null,null,null,null,null,null,"Metal Halide","200 Watt MH Lamp, Magnetic ballast","Magnetic",1,200,232]
[null,null,null,null,null,null,null,null,null,null,null,null,null,null,null,null,null,null,null,null,null,null,null,null,null,null,null,null,null,null,null,null,null,null,null,null,null,null,null,null,null,null,"(4) 48\" T12, STD Lamp, Magnetic Ballast-STD, 40 Watt Lamps","(6) 96\", T8, High Output Ballast, 57 Watt Lamps","(6) 48\", T8, Std Ballast, 32 Watt Lamps","(6) 45.8\" T-5 54W HO Lamps (3) Prog RS Ballast, HLO(.95<BF<1.1)",null,null,null,null,null,null,"Metal Halide","250 Watt MH Lamp, Magnetic ballast","Magnetic",1,250,291]
[null,null,null,null,null,null,null,null,null,null,null,null,null,null,null,null,null,null,null,null,null,null,null,null,null,null,null,null,null,null,null,null,null,null,null,null,null,null,null,null,null,null,"(4) 96\" T12, ES HO Lamps Mag-STD, 95 Watt Lamps","(6) 96\", T8, High Output Ballast, 59 Watt Lamps","(6) 96\", T8 Std Ballast, 57 Watt Lamps","(6) 45.8\" T-5 54W HO Lamps (3) Prog RS Ballast, HLO(.95<BF<1.1), alt 1",null,null,null,null,null,null,"Metal Halide","320 Watt MH Lamp, Magnetic ballast","Magnetic",1,320,367]
[null,null,null,null,null,null,null,null,null,null,null,null,null,null,null,null,null,null,null,null,null,null,null,null,null,null,null,null,null,null,null,null,null,null,null,null,null,null,null,null,null,null,"(4) 96\" T12, ES Lamps Mag-STD, 60 Watt Lamps","(6) 96\", T8, High Output Ballast, 86 Watt Lamps","(6) 96\", T8 Std Ballast, 59 Watt Lamps","(6) 45.9\" T-5 49W HO Lamps, (3) Prog Start or RS Ballast, HLO (.95<BF<1.1)",null,null,null,null,null,null,"Metal Halide","350 Watt MH Lamp, Magnetic ballast","Magnetic",1,350,395]
[null,null,null,null,null,null,null,null,null,null,null,null,null,null,null,null,null,null,null,null,null,null,null,null,null,null,null,null,null,null,null,null,null,null,null,null,null,null,null,null,null,null,"(4) 96\" T12, STD HO Lamps Mag-STD, 110 Watt Lamps",null,"(6) 96\", T8 Std Ballast, 86 Watt Lamps","(8) 45.8\" T-5 49W HO Lamps, (4) Prog Start or RS Ballast, HLO(.95<BF<1.1)",null,null,null,null,null,null,"Metal Halide","360 Watt MH Lamp, Magnetic ballast","Magnetic",1,360,418]
[null,null,null,null,null,null,null,null,null,null,null,null,null,null,null,null,null,null,null,null,null,null,null,null,null,null,null,null,null,null,null,null,null,null,null,null,null,null,null,null,null,null,null,null,null,"(10) 45.8\" T-5 54W HO Lamps (5) Prog RS Ballast, HLO (.95<BF<1.1)",null,null,null,null,null,null,"Metal Halide","400 Watt MH Lamp, Magnetic ballast","Magnetic",1,400,456]
[null,null,null,null,null,null,null,null,null,null,null,null,null,null,null,null,null,null,null,null,null,null,null,null,null,null,null,null,null,null,null,null,null,null,null,null,null,null,null,null,null,null,null,null,null,"(12) 45.8\" T-5 54W HO Lamps (6) Prog RS Ballast, HLO (.95<BF<1.1)",null,null,null,null,null,null,"Metal Halide","450 Watt MH Lamp, Magnetic ballast","Magnetic",1,450,507]
[null,null,null,null,null,null,null,null,null,null,null,null,null,null,null,null,null,null,null,null,null,null,null,null,null,null,null,null,null,null,null,null,null,null,null,null,null,null,null,null,null,null,null,null,null,null,null,null,null,null,null,null,"Metal Halide","750 Watt MH Lamp, Magnetic ballast","Magnetic",1,750,814]
[null,null,null,null,null,null,null,null,null,null,null,null,null,null,null,null,null,null,null,null,null,null,null,null,null,null,null,null,null,null,null,null,null,null,null,null,null,null,null,null,null,null,null,null,null,null,null,null,null,null,null,null,"Metal Halide","1000 Watt MH Lamp, Magnetic ballast","Magnetic",1,1000,1077]
[null,null,null,null,null,null,null,null,null,null,null,null,null,null,null,null,null,null,null,null,null,null,null,null,null,null,null,null,null,null,null,null,null,null,null,null,null,null,null,null,null,null,null,null,null,null,null,null,null,null,null,null,"Metal Halide","1500 Watt MH Lamp, Magnetic ballast","Magnetic",1,1500,1608]
[null,null,null,null,null,null,null,null,null,null,null,null,null,null,null,null,null,null,null,null,null,null,null,null,null,null,null,null,null,null,null,null,null,null,null,null,null,null,null,null,null,null,null,null,null,null,null,null,null,null,null,null,"T8","(1) 24\", T8, Std Elec Ballast, 17 Watt Lamps","Electronic Std",1,17,16]
[null,null,null,null,null,null,null,null,null,null,null,null,null,null,null,null,null,null,null,null,null,null,null,null,null,null,null,null,null,null,null,null,null,null,null,null,null,null,null,null,null,null,null,null,null,null,null,null,null,null,null,null,"T8","(1) 24\", T8, High Output Ballast, 17 Watt Lamps","Electronic HO",1,17,20]
[null,null,null,null,null,null,null,null,null,null,null,null,null,null,null,null,null,null,null,null,null,null,null,null,null,null,null,null,null,null,null,null,null,null,null,null,null,null,null,null,null,null,null,null,null,null,null,null,null,null,null,null,"T8","(1) 36\", T8, Std Elec Ballast, 25 Watt Lamps","Electronic Std",1,25,23]
[null,null,null,null,null,null,null,null,null,null,null,null,null,null,null,null,null,null,null,null,null,null,null,null,null,null,null,null,null,null,null,null,null,null,null,null,null,null,null,null,null,null,null,null,null,null,null,null,null,null,null,null,"T8","(1) 36\", T8, High Output Ballast, 25 Watt Lamps","Electronic HO",1,25,28]
[null,null,null,null,null,null,null,null,null,null,null,null,null,null,null,null,null,null,null,null,null,null,null,null,null,null,null,null,null,null,null,null,null,null,null,null,null,null,null,null,null,null,null,null,null,null,null,null,null,null,null,null,"T8","(1) 48\", T8, Std Ballast, 25 Watt Lamps","Electronic Std",1,25,23]
[null,null,null,null,null,null,null,null,null,null,null,null,null,null,null,null,null,null,null,null,null,null,null,null,null,null,null,null,null,null,null,null,null,null,null,null,null,null,null,null,null,null,null,null,null,null,null,null,null,null,null,null,"T8","(1) 48\", T8, High Output Ballast, 25 Watt Lamps","Electronic HO",1,25,28]
[null,null,null,null,null,null,null,null,null,null,null,null,null,null,null,null,null,null,null,null,null,null,null,null,null,null,null,null,null,null,null,null,null,null,null,null,null,null,null,null,null,null,null,null,null,null,null,null,null,null,null,null,"T8","(1) 48\", T8, Std Ballast, 28 Watt Lamps","Electronic Std",1,28,25]
[null,null,null,null,null,null,null,null,null,null,null,null,null,null,null,null,null,null,null,null,null,null,null,null,null,null,null,null,null,null,null,null,null,null,null,null,null,null,null,null,null,null,null,null,null,null,null,null,null,null,null,null,"T8","(1) 48\", T8,  High Output Ballast, 28 Watt Lamps","Electronic HO",1,28,32]
[null,null,null,null,null,null,null,null,null,null,null,null,null,null,null,null,null,null,null,null,null,null,null,null,null,null,null,null,null,null,null,null,null,null,null,null,null,null,null,null,null,null,null,null,null,null,null,null,null,null,null,null,"T8","(1) 48\", T8, Std Ballast, 32 Watt Lamps","Electronic Std",1,32,30]
[null,null,null,null,null,null,null,null,null,null,null,null,null,null,null,null,null,null,"2. Fixture Type",null,null,null,null,null,null,null,null,null,null,null,null,null,null,null,null,null,null,null,null,null,null,null,null,null,null,null,null,null,null,null,null,null,"T8","(1) 48\", T8, High Output Ballast, 32 Watt Lamps","Electronic HO",1,32,36]
[null,null,null,null,null,null,null,null,null,null,null,null,null,null,null,null,null,"CMeasureType",null,"Retrofit Type","Fixture Type",null,null,null,null,null,null,null,null,null,null,null,null,null,null,null,null,null,null,null,null,null,null,null,null,null,null,null,null,null,null,null,"T8","(1) 96\", T8 Std Ballast, 57 Watt Lamps","Electronic Std",1,57,52]
[null,null,null,null,null,null,null,null,null,null,null,null,null,null,null,null,null,"Exterior/12 Hour",null,"LED","Controlled Fixture",null,null,null,null,null,null,null,null,null,null,null,null,null,null,null,null,null,null,null,null,null,null,null,null,null,null,null,null,null,null,null,"T8","(1) 96\", T8, High Output Ballast, 57 Watt Lamps","Electronic HO",1,57,59]
[null,null,null,null,null,null,null,null,null,null,null,null,null,null,null,null,null,"24 Hour/Garage/3-Shift",null,"LED","Controlled Fixture",null,null,null,null,null,null,null,null,null,null,null,null,null,null,null,null,null,null,null,null,null,null,null,null,null,null,null,null,null,null,null,"T8","(1) 96\", T8 Std Ballast, 59 Watt Lamps","Electronic Std",1,59,55]
[null,null,null,null,null,null,null,null,null,null,null,null,null,null,null,null,null,null,null,null,null,null,null,null,null,null,null,null,null,null,null,null,null,null,null,null,null,null,null,null,null,null,null,null,null,null,null,null,null,null,null,null,"T8","(1) 96\", T8, High Output Ballast, 59 Watt Lamps","Electronic HO",1,59,62]
[null,null,null,null,null,null,null,null,null,null,null,null,null,null,null,null,null,null,null,null,null,null,null,null,null,null,null,null,null,null,null,null,null,null,null,null,null,null,null,null,null,null,null,null,null,null,null,null,null,null,null,null,"T8","(1) 96\", T8 Std Ballast, 86 Watt Lamps","Electronic Std",1,86,82]
[null,null,null,null,null,null,null,null,null,null,null,null,null,null,null,null,null,null,null,null,null,null,null,null,null,null,null,null,null,null,null,null,null,null,null,null,null,null,null,null,null,null,null,null,null,null,null,null,null,null,null,null,"T8","(1) 96\", T8, High Output Ballast, 86 Watt Lamps","Electronic HO",1,86,90]
[null,null,null,null,null,null,null,null,null,null,null,null,null,null,null,null,null,null,null,null,null,null,null,null,null,null,null,null,null,null,null,null,null,null,null,null,null,null,null,null,null,null,null,null,null,null,null,null,null,null,null,null,"T8","(2) 24\", T8, Std Elec Ballast, 17 Watt Lamps","Electronic Std",2,17,32]
[null,null,null,null,null,null,null,null,null,null,null,null,null,null,null,null,null,null,null,null,null,null,null,null,null,null,null,null,null,null,null,null,null,null,null,null,null,null,null,null,null,null,null,null,null,null,null,null,null,null,null,null,"T8","(2) 24\", T8, High Output Ballast, 17 Watt Lamps","Electronic HO",2,17,40]
[null,null,null,null,null,null,null,null,null,null,null,null,null,null,null,null,null,null,null,null,null,null,null,null,null,null,null,null,null,null,null,null,null,null,null,null,null,null,null,null,null,null,null,null,null,null,null,null,null,null,null,null,"T8","(2) 36\", T8, Std Elec Ballast, 25 Watt Lamps","Electronic Std",2,25,46]
[null,null,null,null,null,null,null,null,null,null,null,null,null,null,null,null,null,null,null,null,null,null,null,null,null,null,null,null,null,null,null,null,null,null,null,null,null,null,null,null,null,null,null,null,null,null,null,null,null,null,null,null,"T8","(2) 36\", T8, High Output Ballast, 25 Watt Lamps","Electronic HO",2,25,56]
[null,null,null,null,null,null,null,null,null,null,null,null,null,null,null,null,null,null,null,null,null,null,null,null,null,null,null,null,null,null,null,null,null,null,null,null,null,null,null,null,null,null,null,null,null,null,null,null,null,null,null,null,"T8","(2) 48\", T8, Std Ballast, 25 Watt Lamps","Electronic Std",2,25,46]
[null,null,null,null,null,null,null,null,null,null,null,null,null,null,null,null,null,null,null,null,null,null,null,null,null,null,null,null,null,null,null,null,null,null,null,null,null,null,null,null,null,null,null,null,null,null,null,null,null,null,null,null,"T8","(2) 48\", T8, High Output Ballast, 25 Watt Lamps","Electronic HO",2,25,56]
[null,null,null,null,null,null,null,null,null,null,null,null,null,null,null,null,null,null,null,null,null,null,null,null,null,null,null,null,null,null,null,null,null,null,null,null,null,null,null,null,null,null,null,null,null,null,null,null,null,null,null,null,"T8","(2) 48\", T8, Std Ballast, 28 Watt Lamps","Electronic Std",2,28,50]
[null,null,null,null,null,null,null,null,null,null,null,null,null,null,null,null,null,null,null,null,null,null,null,null,null,null,null,null,null,null,null,null,null,null,null,null,null,null,null,null,null,null,null,null,null,null,null,null,null,null,null,null,"T8","(2) 48\", T8,  High Output Ballast, 28 Watt Lamps","Electronic HO",2,28,64]
[null,null,null,null,null,null,null,null,null,null,null,null,null,null,null,null,null,null,null,null,null,null,null,null,null,null,null,null,null,null,null,null,null,null,null,null,null,null,null,null,null,null,null,null,null,null,null,null,null,null,null,null,"T8","(2) 48\", T8, Std Ballast, 32 Watt Lamps","Electronic Std",2,32,60]
[null,null,null,null,null,null,null,null,null,null,null,null,null,null,null,null,null,null,null,null,null,null,null,null,null,null,null,null,null,null,null,null,null,null,null,null,null,null,null,null,null,null,null,null,null,null,null,null,null,null,null,null,"T8","(2) 48\", T8, High Output Ballast, 32 Watt Lamps","Electronic HO",2,32,72]
[null,null,null,null,null,null,null,null,null,null,null,null,null,null,null,null,null,null,null,null,null,null,null,null,null,null,null,null,null,null,null,null,null,null,null,null,null,null,null,null,null,null,null,null,null,null,null,null,null,null,null,null,"T8","(2) 96\", T8 Std Ballast, 57 Watt Lamps","Electronic Std",2,57,100]
[null,null,null,null,null,null,null,null,null,null,null,null,null,null,null,null,null,null,null,null,null,null,null,null,null,null,null,null,null,null,null,null,null,null,null,null,null,null,null,null,null,null,null,null,null,null,null,null,null,null,null,null,"T8","(2) 96\", T8, High Output Ballast, 57 Watt Lamps","Electronic HO",2,57,105]
[null,null,null,null,null,null,null,null,null,null,null,null,null,null,null,null,null,null,null,null,null,null,null,null,null,null,null,null,null,null,null,null,null,null,null,null,null,null,null,null,null,null,null,null,null,null,null,null,null,null,null,null,"T8","(2) 96\", T8 Std Ballast, 59 Watt Lamps","Electronic Std",2,59,109]
[null,null,null,null,null,null,null,null,null,null,null,null,null,null,null,null,null,null,null,null,null,null,null,null,null,null,null,null,null,null,null,null,null,null,null,null,null,null,null,null,null,null,null,null,null,null,null,null,null,null,null,null,"T8","(2) 96\", T8, High Output Ballast, 59 Watt Lamps","Electronic HO",2,59,160]
[null,null,null,null,null,null,null,null,null,null,null,null,null,null,null,null,null,null,null,null,null,null,null,null,null,null,null,null,null,null,null,null,null,null,null,null,null,null,null,null,null,null,null,null,null,null,null,null,null,null,null,null,"T8","(2) 96\", T8 Std Ballast, 86 Watt Lamps","Electronic Std",2,86,164]
[null,null,null,null,null,null,null,null,null,null,null,null,null,null,null,null,null,null,null,null,null,null,null,null,null,null,null,null,null,null,null,null,null,null,null,null,null,null,null,null,null,null,null,null,null,null,null,null,null,null,null,null,"T8","(2) 96\", T8, High Output Ballast, 86 Watt Lamps","Electronic HO",2,86,180]
[null,null,null,null,null,null,null,null,null,null,null,null,null,null,null,null,null,null,null,null,null,null,null,null,null,null,null,null,null,null,null,null,null,null,null,null,null,null,null,null,null,null,null,null,null,null,null,null,null,null,null,null,"T8","(3) 24\", T8, Std Elec Ballast, 17 Watt Lamps","Electronic Std",3,17,48]
[null,null,null,null,null,null,null,null,null,null,null,null,null,null,null,null,null,null,null,null,null,null,null,null,null,null,null,null,null,null,null,null,null,null,null,null,null,null,null,null,null,null,null,null,null,null,null,null,null,null,null,null,"T8","(3) 24\", T8, High Output Ballast, 17 Watt Lamps","Electronic HO",3,17,60]
[null,null,null,null,null,null,null,null,null,null,null,null,null,null,null,null,null,null,null,null,null,null,null,null,null,null,null,null,null,null,null,null,null,null,null,null,null,null,null,null,null,null,null,null,null,null,null,null,null,null,null,null,"T8","(3) 36\", T8, Std Elec Ballast, 25 Watt Lamps","Electronic Std",3,25,69]
[null,null,null,null,null,null,null,null,null,null,null,null,null,null,null,null,null,null,null,null,null,null,null,null,null,null,null,null,null,null,null,null,null,null,null,null,null,null,null,null,null,null,null,null,null,null,null,null,null,null,null,null,"T8","(3) 36\", T8, High Output Ballast, 25 Watt Lamps","Electronic HO",3,25,84]
[null,null,null,null,null,null,null,null,null,null,null,null,null,null,null,null,null,null,null,null,null,null,null,null,null,null,null,null,null,null,null,null,null,null,null,null,null,null,null,null,null,null,null,null,null,null,null,null,null,null,null,null,"T8","(3) 48\", T8, Std Ballast, 25 Watt Lamps","Electronic Std",3,25,69]
[null,null,null,null,null,null,null,null,null,null,null,null,null,null,null,null,null,null,null,null,null,null,null,null,null,null,null,null,null,null,null,null,null,null,null,null,null,null,null,null,null,null,null,null,null,null,null,null,null,null,null,null,"T8","(3) 48\", T8, High Output Ballast, 25 Watt Lamps","Electronic HO",3,25,84]
[null,null,null,null,null,null,null,null,null,null,null,null,null,null,null,null,null,null,null,null,null,null,null,null,null,null,null,null,null,null,null,null,null,null,null,null,null,null,null,null,null,null,null,null,null,null,null,null,null,null,null,null,"T8","(3) 48\", T8, Std Ballast, 28 Watt Lamps","Electronic Std",3,28,75]
[null,null,null,null,null,null,null,null,null,null,null,null,null,null,null,null,null,null,null,null,null,null,null,null,null,null,null,null,null,null,null,null,null,null,null,null,null,null,null,null,null,null,null,null,null,null,null,null,null,null,null,null,"T8","(3) 48\", T8,  High Output Ballast, 28 Watt Lamps","Electronic HO",3,28,96]
[null,null,null,null,null,null,null,null,null,null,null,null,null,null,null,null,null,null,null,null,null,null,null,null,null,null,null,null,null,null,null,null,null,null,null,null,null,null,null,null,null,null,null,null,null,null,null,null,null,null,null,null,"T8","(3) 48\", T8, Std Ballast, 32 Watt Lamps","Electronic Std",3,32,90]
[null,null,null,null,null,null,null,null,null,null,null,null,null,null,null,null,null,null,null,null,null,null,null,null,null,null,null,null,null,null,null,null,null,null,null,null,null,null,null,null,null,null,null,null,null,null,null,null,null,null,null,null,"T8","(3) 48\", T8, High Output Ballast, 32 Watt Lamps","Electronic HO",3,32,108]
[null,null,null,null,null,null,null,null,null,null,null,null,null,null,null,null,null,null,null,null,null,null,null,null,null,null,null,null,null,null,null,null,null,null,null,null,null,null,null,null,null,null,null,null,null,null,null,null,null,null,null,null,"T8","(3) 96\", T8 Std Ballast, 57 Watt Lamps","Electronic Std",3,57,156]
[null,null,null,null,null,null,null,null,null,null,null,null,null,null,null,null,null,null,null,null,null,null,null,null,null,null,null,null,null,null,null,null,null,null,null,null,null,null,null,null,null,null,null,null,null,null,null,null,null,null,null,null,"T8","(3) 96\", T8, High Output Ballast, 57 Watt Lamps","Electronic HO",3,57,177]
[null,null,null,null,null,null,null,null,null,null,null,null,null,null,null,null,null,null,null,null,null,null,null,null,null,null,null,null,null,null,null,null,null,null,null,null,null,null,null,null,null,null,null,null,null,null,null,null,null,null,null,null,"T8","(3) 96\", T8 Std Ballast, 59 Watt Lamps","Electronic Std",3,59,165]
[null,null,null,null,null,null,null,null,null,null,null,null,null,null,null,null,null,null,null,null,null,null,null,null,null,null,null,null,null,null,null,null,null,null,null,null,null,null,null,null,null,null,null,null,null,null,null,null,null,null,null,null,"T8","(3) 96\", T8, High Output Ballast, 59 Watt Lamps","Electronic HO",3,59,186]
[null,null,null,null,null,null,null,null,null,null,null,null,null,null,null,null,null,null,null,null,null,null,null,null,null,null,null,null,null,null,null,null,null,null,null,null,null,null,null,null,null,null,null,null,null,null,null,null,null,null,null,null,"T8","(3) 96\", T8 Std Ballast, 86 Watt Lamps","Electronic Std",3,86,246]
[null,null,null,null,null,null,null,null,null,null,null,null,null,null,null,null,null,null,null,null,null,null,null,null,null,null,null,null,null,null,null,null,null,null,null,null,null,null,null,null,null,null,null,null,null,null,null,null,null,null,null,null,"T8","(3) 96\", T8, High Output Ballast, 86 Watt Lamps","Electronic HO",3,86,270]
[null,null,null,null,null,null,null,null,null,null,null,null,null,null,null,null,null,null,null,null,null,null,null,null,null,null,null,null,null,null,null,null,null,null,null,null,null,null,null,null,null,null,null,null,null,null,null,null,null,null,null,null,"T8","(4) 24\", T8, Std Elec Ballast, 17 Watt Lamps","Electronic Std",4,17,64]
[null,null,null,null,null,null,null,null,null,null,null,null,null,null,null,null,null,null,null,null,null,null,null,null,null,null,null,null,null,null,null,null,null,null,null,null,null,null,null,null,null,null,null,null,null,null,null,null,null,null,null,null,"T8","(4) 24\", T8, High Output Ballast, 17 Watt Lamps","Electronic HO",4,17,80]
[null,null,null,null,null,null,null,null,null,null,null,null,null,null,null,null,null,null,null,null,null,null,null,null,null,null,null,null,null,null,null,null,null,null,null,null,null,null,null,null,null,null,null,null,null,null,null,null,null,null,null,null,"T8","(4) 36\", T8, Std Elec Ballast, 25 Watt Lamps","Electronic Std",4,25,92]
[null,null,null,null,null,null,null,null,null,null,null,null,null,null,null,null,null,null,null,null,null,null,null,null,null,null,null,null,null,null,null,null,null,null,null,null,null,null,null,null,null,null,null,null,null,null,null,null,null,null,null,null,"T8","(4) 36\", T8, High Output Ballast, 25 Watt Lamps","Electronic HO",4,25,112]
[null,null,null,null,null,null,null,null,null,null,null,null,null,null,null,null,null,null,null,null,null,null,null,null,null,null,null,null,null,null,null,null,null,null,null,null,null,null,null,null,null,null,null,null,null,null,null,null,null,null,null,null,"T8","(4) 48\", T8, Std Ballast, 25 Watt Lamps","Electronic Std",4,25,138]
[null,null,null,null,null,null,null,null,null,null,null,null,null,null,null,null,null,null,null,null,null,null,null,null,null,null,null,null,null,null,null,null,null,null,null,null,null,null,null,null,null,null,null,null,null,null,null,null,null,null,null,null,"T8","(4) 48\", T8, High Output Ballast, 25 Watt Lamps","Electronic HO",4,25,112]
[null,null,null,null,null,null,null,null,null,null,null,null,null,null,null,null,null,null,null,null,null,null,null,null,null,null,null,null,null,null,null,null,null,null,null,null,null,null,null,null,null,null,null,null,null,null,null,null,null,null,null,null,"T8","(4) 48\", T8, Std Ballast, 28 Watt Lamps","Electronic Std",4,28,100]
[null,null,null,null,null,null,null,null,null,null,null,null,null,null,null,null,null,null,null,null,null,null,null,null,null,null,null,null,null,null,null,null,null,null,null,null,null,null,null,null,null,null,null,null,null,null,null,null,null,null,null,null,"T8","(4) 48\", T8,  High Output Ballast, 28 Watt Lamps","Electronic HO",4,28,128]
[null,null,null,null,null,null,null,null,null,null,null,null,null,null,null,null,null,null,null,null,null,null,null,null,null,null,null,null,null,null,null,null,null,null,null,null,null,null,null,null,null,null,null,null,null,null,null,null,null,null,null,null,"T8","(4) 48\", T8, Std Ballast, 32 Watt Lamps","Electronic Std",4,32,120]
[null,null,null,null,null,null,null,null,null,null,null,null,null,null,null,null,null,null,null,null,null,null,null,null,null,null,null,null,null,null,null,null,null,null,null,null,null,null,null,null,null,null,null,null,null,null,null,null,null,null,null,null,"T8","(4) 48\", T8, High Output Ballast, 32 Watt Lamps","Electronic HO",4,32,144]
[null,null,null,null,null,null,null,null,null,null,null,null,null,null,null,null,null,null,null,null,null,null,null,null,null,null,null,null,null,null,null,null,null,null,null,null,null,null,null,null,null,null,null,null,null,null,null,null,null,null,null,null,"T8","(4) 96\", T8 Std Ballast, 25 Watt Lamps","Electronic Std",4,25,138]
[null,null,null,null,null,null,null,null,null,null,null,null,null,null,null,null,null,null,null,null,null,null,null,null,null,null,null,null,null,null,null,null,null,null,null,null,null,null,null,null,null,null,null,null,null,null,null,null,null,null,null,null,"T8","(4) 96\", T8 Std Ballast, 57 Watt Lamps","Electronic Std",4,57,208]
[null,null,null,null,null,null,null,null,null,null,null,null,null,null,null,null,null,null,null,null,null,null,null,null,null,null,null,null,null,null,null,null,null,null,null,null,null,null,null,null,null,null,null,null,null,null,null,null,null,null,null,null,"T8","(4) 96\", T8, High Output Ballast, 57 Watt Lamps","Electronic HO",4,57,236]
[null,null,null,null,null,null,null,null,null,null,null,null,null,null,null,null,null,null,null,null,null,null,null,null,null,null,null,null,null,null,null,null,null,null,null,null,null,null,null,null,null,null,null,null,null,null,null,null,null,null,null,null,"T8","(4) 96\", T8 Std Ballast, 59 Watt Lamps","Electronic Std",4,59,220]
[null,null,null,null,null,null,null,null,null,null,null,null,null,null,null,null,null,null,null,null,null,null,null,null,null,null,null,null,null,null,null,null,null,null,null,null,null,null,null,null,null,null,null,null,null,null,null,null,null,null,null,null,"T8","(4) 96\", T8, High Output Ballast, 59 Watt Lamps","Electronic HO",4,59,248]
[null,null,null,null,null,null,null,null,null,null,null,null,null,null,null,null,null,null,null,null,null,null,null,null,null,null,null,null,null,null,null,null,null,null,null,null,null,null,null,null,null,null,null,null,null,null,null,null,null,null,null,null,"T8","(4) 96\", T8 Std Ballast, 86 Watt Lamps","Electronic Std",4,86,328]
[null,null,null,null,null,null,null,null,null,null,null,null,null,null,null,null,null,null,null,null,null,null,null,null,null,null,null,null,null,null,null,null,null,null,null,null,null,null,null,null,null,null,null,null,null,null,null,null,null,null,null,null,"T8","(4) 96\", T8, High Output Ballast, 86 Watt Lamps","Electronic HO",4,86,360]
[null,null,null,null,null,null,null,null,null,null,null,null,null,null,null,null,null,null,null,null,null,null,null,null,null,null,null,null,null,null,null,null,null,null,null,null,null,null,null,null,null,null,null,null,null,null,null,null,null,null,null,null,"T8","(6) 48\", T8, Std Ballast, 28 Watt Lamps","Electronic Std",6,28,150]
[null,null,null,null,null,null,null,null,null,null,null,null,null,null,null,null,null,null,null,null,null,null,null,null,null,null,null,null,null,null,null,null,null,null,null,null,null,null,null,null,null,null,null,null,null,null,null,null,null,null,null,null,"T8","(6) 48\", T8,  High Output Ballast, 28 Watt Lamps","Electronic HO",6,28,192]
[null,null,null,null,null,null,null,null,null,null,null,null,null,null,null,null,null,null,null,null,null,null,null,null,null,null,null,null,null,null,null,null,null,null,null,null,null,null,null,null,null,null,null,null,null,null,null,null,null,null,null,null,"T8","(6) 48\", T8, Std Ballast, 32 Watt Lamps","Electronic Std",6,32,180]
[null,null,null,null,null,null,null,null,null,null,null,null,null,null,null,null,null,null,null,null,null,null,null,null,null,null,null,null,null,null,null,null,null,null,null,null,null,null,null,null,null,null,null,null,null,null,null,null,null,null,null,null,"T8","(6) 48\", T8, High Output Ballast, 32 Watt Lamps","Electronic HO",6,32,216]
[null,null,null,null,null,null,null,null,null,null,null,null,null,null,null,null,null,null,null,null,null,null,null,null,null,null,null,null,null,null,null,null,null,null,null,null,null,null,null,null,null,null,null,null,null,null,null,null,null,null,null,null,"T8","(6) 96\", T8 Std Ballast, 57 Watt Lamps","Electronic Std",6,57,312]
[null,null,null,null,null,null,null,null,null,null,null,null,null,null,null,null,null,null,null,null,null,null,null,null,null,null,null,null,null,null,null,null,null,null,null,null,null,null,null,null,null,null,null,null,null,null,null,null,null,null,null,null,"T8","(6) 96\", T8, High Output Ballast, 57 Watt Lamps","Electronic HO",6,57,354]
[null,null,null,null,null,null,null,null,null,null,null,null,null,null,null,null,null,null,null,null,null,null,null,null,null,null,null,null,null,null,null,null,null,null,null,null,null,null,null,null,null,null,null,null,null,null,null,null,null,null,null,null,"T8","(6) 96\", T8 Std Ballast, 59 Watt Lamps","Electronic Std",6,59,330]
[null,null,null,null,null,null,null,null,null,null,null,null,null,null,null,null,null,null,null,null,null,null,null,null,null,null,null,null,null,null,null,null,null,null,null,null,null,null,null,null,null,null,null,null,null,null,null,null,null,null,null,null,"T8","(6) 96\", T8, High Output Ballast, 59 Watt Lamps","Electronic HO",6,59,372]
[null,null,null,null,null,null,null,null,null,null,null,null,null,null,null,null,null,null,null,null,null,null,null,null,null,null,null,null,null,null,null,null,null,null,null,null,null,null,null,null,null,null,null,null,null,null,null,null,null,null,null,null,"T8","(6) 96\", T8 Std Ballast, 86 Watt Lamps","Electronic Std",6,86,492]
[null,null,null,null,null,null,null,null,null,null,null,null,null,null,null,null,null,null,null,null,null,null,null,null,null,null,null,null,null,null,null,null,null,null,null,null,null,null,null,null,null,null,null,null,null,null,null,null,null,null,null,null,"T8","(6) 96\", T8, High Output Ballast, 86 Watt Lamps","Electronic HO",6,86,540]
[null,null,null,null,null,null,null,null,null,null,null,null,null,null,null,null,null,null,null,null,null,null,null,null,null,null,null,null,null,null,null,null,null,null,null,null,null,null,null,null,null,null,null,null,null,null,null,null,null,null,null,null,"FUT8","(1) U-Tube, T8 Standard ballast, 32 Watt Lamp","Electronic",1,32,30]
[null,null,null,null,null,null,null,null,null,null,null,null,null,null,null,null,null,null,null,null,null,null,null,null,null,null,null,null,null,null,null,null,null,null,null,null,null,null,null,null,null,null,null,null,null,null,null,null,null,null,null,null,"FUT8","(1) U-Tube, T8 High Output Ballast, 32 Watt Lamp","Electronic HO",1,32,36]
[null,null,null,null,null,null,null,null,null,null,null,null,null,null,null,null,null,null,null,null,null,null,null,null,null,null,null,null,null,null,null,null,null,null,null,null,null,null,null,null,null,null,null,null,null,null,null,null,null,null,null,null,"FUT8","(2) U-Tube, T8 Standard ballast, 32 Watt Lamp","Electronic",2,32,60]
[null,null,null,null,null,null,null,null,null,null,null,null,null,null,null,null,null,null,null,null,null,null,null,null,null,null,null,null,null,null,null,null,null,null,null,null,null,null,null,null,null,null,null,null,null,null,null,null,null,null,null,null,"FUT8","(2) U-Tube, T8 High Output Ballast, 32 Watt Lamp","Electronic HO",2,32,72]
[null,null,null,null,null,null,null,null,null,null,null,null,null,null,null,null,null,null,null,null,null,null,null,null,null,null,null,null,null,null,null,null,null,null,null,null,null,null,null,null,null,null,null,null,null,null,null,null,null,null,null,null,"T12","(1) 24\" T12, STD Lamps, 20 Watt Lamps","Magnetic",1,20,25]
[null,null,null,null,null,null,null,null,null,null,null,null,null,null,null,null,null,null,null,null,null,null,null,null,null,null,null,null,null,null,null,null,null,null,null,null,null,null,null,null,null,null,null,null,null,null,null,null,null,null,null,null,"T12","(1) 36\" T12, STD  Lamps Mag-STD, 30 Watt Lamps","Magnetic",1,30,38]
[null,null,null,null,null,null,null,null,null,null,null,null,null,null,null,null,null,null,null,null,null,null,null,null,null,null,null,null,null,null,null,null,null,null,null,null,null,null,null,null,null,null,null,null,null,null,null,null,null,null,null,null,"T12","(1) 40\" T12 F42, HO Lamps, 55 Watt Lamps","Magnetic",1,55,63]
[null,null,null,null,null,null,null,null,null,null,null,null,null,null,null,null,null,null,null,null,null,null,null,null,null,null,null,null,null,null,null,null,null,null,null,null,null,null,null,null,null,null,null,null,null,null,null,null,null,null,null,null,"T12","(1) 48\" T12, ES Lamp, Magnetic Ballast-STD, 34 Watt Lamps","Magnetic",1,34,42]
[null,null,null,null,null,null,null,null,null,null,null,null,null,null,null,null,null,null,null,null,null,null,null,null,null,null,null,null,null,null,null,null,null,null,null,null,null,null,null,null,null,null,null,null,null,null,null,null,null,null,null,null,"T12","(1) 48\" T12, STD Lamp, Magnetic Ballast-STD, 40 Watt Lamps","Magnetic",1,40,48]
[null,null,null,null,null,null,null,null,null,null,null,null,null,null,null,null,null,null,null,null,null,null,null,null,null,null,null,null,null,null,null,null,null,null,null,null,null,null,null,null,null,null,null,null,null,null,null,null,null,null,null,null,"T12","(1) 48\" T12, HO Lamps, 60 Watt Lamps","Magnetic",1,60,68]
[null,null,null,null,null,null,null,null,null,null,null,null,null,null,null,null,null,null,null,null,null,null,null,null,null,null,null,null,null,null,null,null,null,null,null,null,null,null,null,null,null,null,null,null,null,null,null,null,null,null,null,null,"T12","(1) 72\" T12, HO Lamps, 85 Watt Lamps","Magnetic",1,85,102]
[null,null,null,null,null,null,null,null,null,null,null,null,null,null,null,null,null,null,null,null,null,null,null,null,null,null,null,null,null,null,null,null,null,null,null,null,null,null,null,null,null,null,null,null,null,null,null,null,null,null,null,null,"T12","(1) 96\" T12, ES Lamps Mag-STD, 60 Watt Lamps","Magnetic",1,60,75]
[null,null,null,null,null,null,null,null,null,null,null,null,null,null,null,null,null,null,null,null,null,null,null,null,null,null,null,null,null,null,null,null,null,null,null,null,null,null,null,null,null,null,null,null,null,null,null,null,null,null,null,null,"T12","(1) 96\" T12, ES HO Lamps Mag-STD, 95 Watt Lamps","Magnetic",1,95,120]
[null,null,null,null,null,null,null,null,null,null,null,null,null,null,null,null,null,null,null,null,null,null,null,null,null,null,null,null,null,null,null,null,null,null,null,null,null,null,null,null,null,null,null,null,null,null,null,null,null,null,null,null,"T12","(1) 96\" T12, STD HO Lamps Mag-STD, 110 Watt Lamps","Magnetic",1,110,138]
[null,null,null,null,null,null,null,null,null,null,null,null,null,null,null,null,null,null,null,null,null,null,null,null,null,null,null,null,null,null,null,null,null,null,null,null,null,null,null,null,null,null,null,null,null,null,null,null,null,null,null,null,"T12","(1) 108\" T12 F108, HO Lamps, 124 Watt Lamps","Magnetic",1,124,132]
[null,null,null,null,null,null,null,null,null,null,null,null,null,null,null,null,null,null,null,null,null,null,null,null,null,null,null,null,null,null,null,null,null,null,null,null,null,null,null,null,null,null,null,null,null,null,null,null,null,null,null,null,"T12","(1) 114\" T12 F117, HO Lamps, 132 Watt Lamps","Magnetic",1,132,140]
[null,null,null,null,null,null,null,null,null,null,null,null,null,null,null,null,null,null,null,null,null,null,null,null,null,null,null,null,null,null,null,null,null,null,null,null,null,null,null,null,null,null,null,null,null,null,null,null,null,null,null,null,"FUT12","(1) U-Tube, T12 STD Lamp, STD Mag Ballast, 34 Watt Lamps","Magnetic",1,34,42]
[null,null,null,null,null,null,null,null,null,null,null,null,null,null,null,null,null,null,null,null,null,null,null,null,null,null,null,null,null,null,null,null,null,null,null,null,null,null,null,null,null,null,null,null,null,null,null,null,null,null,null,null,"FUT12","(1) U-Tube, T12 STD Lamp, STD Mag Ballast, 40 Watt Lamps","Magnetic",1,40,48]
[null,null,null,null,null,null,null,null,null,null,null,null,null,null,null,null,null,null,null,null,null,null,null,null,null,null,null,null,null,null,null,null,null,null,null,null,null,null,null,null,null,null,null,null,null,null,null,null,null,null,null,null,"T12","(2) 24\" T12, STD Lamps, 20 Watt Lamps","Magnetic",2,20,50]
[null,null,null,null,null,null,null,null,null,null,null,null,null,null,null,null,null,null,null,null,null,null,null,null,null,null,null,null,null,null,null,null,null,null,null,null,null,null,null,null,null,null,null,null,null,null,null,null,null,null,null,null,"T12","(2) 36\" T12, STD  Lamps Mag-STD, 30 Watt Lamps","Magnetic",2,30,76]
[null,null,null,null,null,null,null,null,null,null,null,null,null,null,null,null,null,null,null,null,null,null,null,null,null,null,null,null,null,null,null,null,null,null,null,null,null,null,null,null,null,null,null,null,null,null,null,null,null,null,null,null,"T12","(2) 40\" T12 F42, HO Lamps, 55 Watt Lamps","Magnetic",1,55,126]
[null,null,null,null,null,null,null,null,null,null,null,null,null,null,null,null,null,null,null,null,null,null,null,null,null,null,null,null,null,null,null,null,null,null,null,null,null,null,null,null,null,null,null,null,null,null,null,null,null,null,null,null,"T12","(2) 48\" T12, ES Lamp, Magnetic Ballast-STD, 34 Watt Lamps","Magnetic",2,34,84]
[null,null,null,null,null,null,null,null,null,null,null,null,null,null,null,null,null,null,null,null,null,null,null,null,null,null,null,null,null,null,null,null,null,null,null,null,null,null,null,null,null,null,null,null,null,null,null,null,null,null,null,null,"T12","(2) 48\" T12, STD Lamp, Magnetic Ballast-STD, 40 Watt Lamps","Magnetic",2,40,96]
[null,null,null,null,null,null,null,null,null,null,null,null,null,null,null,null,null,null,null,null,null,null,null,null,null,null,null,null,null,null,null,null,null,null,null,null,null,null,null,null,null,null,null,null,null,null,null,null,null,null,null,null,"T12","(2) 48\" T12, HO Lamps, 60 Watt Lamps",null,2,60,136]
[null,null,null,null,null,null,null,null,null,null,null,null,null,null,null,null,null,null,null,null,null,null,null,null,null,null,null,null,null,null,null,null,null,null,null,null,null,null,null,null,null,null,null,null,null,null,null,null,null,null,null,null,"T12","(2) 72\" T12, HO Lamps, 85 Watt Lamps","Magnetic",2,85,204]
[null,null,null,null,null,null,null,null,null,null,null,null,null,null,null,null,null,null,null,null,null,null,null,null,null,null,null,null,null,null,null,null,null,null,null,null,null,null,null,null,null,null,null,null,null,null,null,null,null,null,null,null,"T12","(2) 96\" T12, ES Lamps Mag-STD, 60 Watt Lamps","Magnetic",2,60,150]
[null,null,null,null,null,null,null,null,null,null,null,null,null,null,null,null,null,null,null,null,null,null,null,null,null,null,null,null,null,null,null,null,null,null,null,null,null,null,null,null,null,null,null,null,null,null,null,null,null,null,null,null,"T12","(2) 96\" T12, ES HO Lamps Mag-STD, 95 Watt Lamps","Magnetic",2,95,240]
[null,null,null,null,null,null,null,null,null,null,null,null,null,null,null,null,null,null,null,null,null,null,null,null,null,null,null,null,null,null,null,null,null,null,null,null,null,null,null,null,null,null,null,null,null,null,null,null,null,null,null,null,"T12","(2) 96\" T12, STD HO Lamps Mag-STD, 110 Watt Lamps","Magnetic",2,110,276]
[null,null,null,null,null,null,null,null,null,null,null,null,null,null,null,null,null,null,null,null,null,null,null,null,null,null,null,null,null,null,null,null,null,null,null,null,null,null,null,null,null,null,null,null,null,null,null,null,null,null,null,null,"T12","(2) 108\" T12 F108, HO Lamps, 124 Watt Lamps","Magnetic",2,124,264]
[null,null,null,null,null,null,null,null,null,null,null,null,null,null,null,null,null,null,null,null,null,null,null,null,null,null,null,null,null,null,null,null,null,null,null,null,null,null,null,null,null,null,null,null,null,null,null,null,null,null,null,null,"T12","(2) 114\" T12 F117, HO Lamps, 132 Watt Lamps","Magnetic",2,132,280]
[null,null,null,null,null,null,null,null,null,null,null,null,null,null,null,null,null,null,null,null,null,null,null,null,null,null,null,null,null,null,null,null,null,null,null,null,null,null,null,null,null,null,null,null,null,null,null,null,null,null,null,null,"FUT12","(2) U-Tube, T12 STD Lamp, STD Mag Ballast, 34 Watt Lamps","Magnetic",2,34,84]
[null,null,null,null,null,null,null,null,null,null,null,null,null,null,null,null,null,null,null,null,null,null,null,null,null,null,null,null,null,null,null,null,null,null,null,null,null,null,null,null,null,null,null,null,null,null,null,null,null,null,null,null,"FUT12","(2) U-Tube, T12 STD Lamp, STD Mag Ballast, 40 Watt Lamps","Magnetic",2,40,96]
[null,null,null,null,null,null,null,null,null,null,null,null,null,null,null,null,null,null,null,null,null,null,null,null,null,null,null,null,null,null,null,null,null,null,null,null,null,null,null,null,null,null,null,null,null,null,null,null,null,null,null,null,"T12","(3) 24\" T12, STD Lamps, 20 Watt Lamps","Magnetic",3,20,75]
[null,null,null,null,null,null,null,null,null,null,null,null,null,null,null,null,null,null,null,null,null,null,null,null,null,null,null,null,null,null,null,null,null,null,null,null,null,null,null,null,null,null,null,null,null,null,null,null,null,null,null,null,"T12","(3) 36\" T12, STD  Lamps Mag-STD, 30 Watt Lamps","Magnetic",3,30,114]
[null,null,null,null,null,null,null,null,null,null,null,null,null,null,null,null,null,null,null,null,null,null,null,null,null,null,null,null,null,null,null,null,null,null,null,null,null,null,null,null,null,null,null,null,null,null,null,null,null,null,null,null,"T12","(3) 48\" T12, ES Lamp, Magnetic Ballast-STD, 34 Watt Lamps","Magnetic",3,34,126]
[null,null,null,null,null,null,null,null,null,null,null,null,null,null,null,null,null,null,null,null,null,null,null,null,null,null,null,null,null,null,null,null,null,null,null,null,null,null,null,null,null,null,null,null,null,null,null,null,null,null,null,null,"T12","(3) 48\" T12, STD Lamp, Magnetic Ballast-STD, 40 Watt Lamps","Magnetic",3,40,144]
[null,null,null,null,null,null,null,null,null,null,null,null,null,null,null,null,null,null,null,null,null,null,null,null,null,null,null,null,null,null,null,null,null,null,null,null,null,null,null,null,null,null,null,null,null,null,null,null,null,null,null,null,"T12","(3) 96\" T12, ES Lamps Mag-STD, 60 Watt Lamps","Magnetic",3,60,225]
[null,null,null,null,null,null,null,null,null,null,null,null,null,null,null,null,null,null,null,null,null,null,null,null,null,null,null,null,null,null,null,null,null,null,null,null,null,null,null,null,null,null,null,null,null,null,null,null,null,null,null,null,"T12","(3) 96\" T12, ES HO Lamps Mag-STD, 95 Watt Lamps","Magnetic",3,95,360]
[null,null,null,null,null,null,null,null,null,null,null,null,null,null,null,null,null,null,null,null,null,null,null,null,null,null,null,null,null,null,null,null,null,null,null,null,null,null,null,null,null,null,null,null,null,null,null,null,null,null,null,null,"T12","(3) 96\" T12, STD HO Lamps Mag-STD, 110 Watt Lamps","Magnetic",3,110,414]
[null,null,null,null,null,null,null,null,null,null,null,null,null,null,null,null,null,null,null,null,null,null,null,null,null,null,null,null,null,null,null,null,null,null,null,null,null,null,null,null,null,null,null,null,null,null,null,null,null,null,null,null,"T12","(4) 24\" T12, STD Lamps, 20 Watt Lamps","Magnetic",4,20,100]
[null,null,null,null,null,null,null,null,null,null,null,null,null,null,null,null,null,null,null,null,null,null,null,null,null,null,null,null,null,null,null,null,null,null,null,null,null,null,null,null,null,null,null,null,null,null,null,null,null,null,null,null,"T12","(4) 36\" T12, STD  Lamps Mag-STD, 30 Watt Lamps","Magnetic",4,30,152]
[null,null,null,null,null,null,null,null,null,null,null,null,null,null,null,null,null,null,null,null,null,null,null,null,null,null,null,null,null,null,null,null,null,null,null,null,null,null,null,null,null,null,null,null,null,null,null,null,null,null,null,null,"T12","(4) 48\" T12, ES Lamp, Magnetic Ballast-STD, 34 Watt Lamps","Magnetic",4,34,168]
[null,null,null,null,null,null,null,null,null,null,null,null,null,null,null,null,null,null,null,null,null,null,null,null,null,null,null,null,null,null,null,null,null,null,null,null,null,null,null,null,null,null,null,null,null,null,null,null,null,null,null,null,"T12","(4) 48\" T12, STD Lamp, Magnetic Ballast-STD, 40 Watt Lamps","Magnetic",4,40,192]
[null,null,null,null,null,null,null,null,null,null,null,null,null,null,null,null,null,null,null,null,null,null,null,null,null,null,null,null,null,null,null,null,null,null,null,null,null,null,null,null,null,null,null,null,null,null,null,null,null,null,null,null,"T12","(4) 96\" T12, ES Lamps Mag-STD, 60 Watt Lamps","Magnetic",4,60,300]
[null,null,null,null,null,null,null,null,null,null,null,null,null,null,null,null,null,null,null,null,null,null,null,null,null,null,null,null,null,null,null,null,null,null,null,null,null,null,null,null,null,null,null,null,null,null,null,null,null,null,null,null,"T12","(4) 96\" T12, ES HO Lamps Mag-STD, 95 Watt Lamps","Magnetic",4,95,480]
[null,null,null,null,null,null,null,null,null,null,null,null,null,null,null,null,null,null,null,null,null,null,null,null,null,null,null,null,null,null,null,null,null,null,null,null,null,null,null,null,null,null,null,null,null,null,null,null,null,null,null,null,"T12","(4) 96\" T12, STD HO Lamps Mag-STD, 110 Watt Lamps","PRS Elec",4,110,552]
[null,null,null,null,null,null,null,null,null,null,null,null,null,null,null,null,null,null,null,null,null,null,null,null,null,null,null,null,null,null,null,null,null,null,null,null,null,null,null,null,null,null,null,null,null,null,null,null,null,null,null,null,"T5","(1) 22\" T-5 14W Lamp (1) Prog Start or PRS Ballast, HLO (.95<BF<1.1)","PRS Elec",1,14,18]
[null,null,null,null,null,null,null,null,null,null,null,null,null,null,null,null,null,null,null,null,null,null,null,null,null,null,null,null,null,null,null,null,null,null,null,null,null,null,null,null,null,null,null,null,null,null,null,null,null,null,null,null,"T5","(1) 22\" T-5 24W HO Lamp (1) Prog Start or PRS Ballast, HLO (.95<BF<1)","PRS Elec",1,24,27]
[null,null,null,null,null,null,null,null,null,null,null,null,null,null,null,null,null,null,null,null,null,null,null,null,null,null,null,null,null,null,null,null,null,null,null,null,null,null,null,null,null,null,null,null,null,null,null,null,null,null,null,null,"T5","(1) 34\" T-5 21W Lamp (1) Prog Start or PRS Ballast, HLO (.95<BF<1.1)","PRS Elec",1,21,25]
[null,null,null,null,null,null,null,null,null,null,null,null,null,null,null,null,null,null,null,null,null,null,null,null,null,null,null,null,null,null,null,null,null,null,null,null,null,null,null,null,null,null,null,null,null,null,null,null,null,null,null,null,"T5","(1) 34\" T-5 39W HO Lamp (1) Prog Start or PRS Ballast, HLO (.95<BF<1.1)","PRS Elec",1,39,44]
[null,null,null,null,null,null,null,null,null,null,null,null,null,null,null,null,null,null,null,null,null,null,null,null,null,null,null,null,null,null,null,null,null,null,null,null,null,null,null,null,null,null,null,null,null,null,null,null,null,null,null,null,"T5","(1) 45.8\" T-5 28W Lamp (1) Prog Start or PRS Ballast, HLO (.95<BF<1.1)","PRS Elec",1,28,33]
[null,null,null,null,null,null,null,null,null,null,null,null,null,null,null,null,null,null,null,null,null,null,null,null,null,null,null,null,null,null,null,null,null,null,null,null,null,null,null,null,null,null,null,null,null,null,null,null,null,null,null,null,"T5","(1) 45.8\" T-5 54W HO Lamps (1) Prog RS Ballast, HLO(.95<BF<1.1)","PRS Elec",1,54,62]
[null,null,null,null,null,null,null,null,null,null,null,null,null,null,null,null,null,null,null,null,null,null,null,null,null,null,null,null,null,null,null,null,null,null,null,null,null,null,null,null,null,null,null,null,null,null,null,null,null,null,null,null,"T5","(1) 57.6\" T-5 35W Lamp (1) Prog Start or PRS Ballast, HLO (.95<BF<1.1)","PRS Elec",1,35,40]
[null,null,null,null,null,null,null,null,null,null,null,null,null,null,null,null,null,null,null,null,null,null,null,null,null,null,null,null,null,null,null,null,null,null,null,null,null,null,null,null,null,null,null,null,null,null,null,null,null,null,null,null,"T5","(1) 57.6\" T-5 80W HO Lamp (1) Prog Start or PRS Ballast, HLO (.95<BF<1.1)","PRS Elec",1,80,90]
[null,null,null,null,null,null,null,null,null,null,null,null,null,null,null,null,null,null,null,null,null,null,null,null,null,null,null,null,null,null,null,null,null,null,null,null,null,null,null,null,null,null,null,null,null,null,null,null,null,null,null,null,"T5","(2) 22\" T-5 14W Lamps (1) Prog Start or PRS Ballast, HLO (.95<BF<1.1)","PRS Elec",2,14,33]
[null,null,null,null,null,null,null,null,null,null,null,null,null,null,null,null,null,null,null,null,null,null,null,null,null,null,null,null,null,null,null,null,null,null,null,null,null,null,null,null,null,null,null,null,null,null,null,null,null,null,null,null,"T5","(2) 22\" T-5 24W HO Lamps (1) Prog Start or PRS Ballast, HLO (.95<BF<1)","PRS Elec",2,24,52]
[null,null,null,null,null,null,null,null,null,null,null,null,null,null,null,null,null,null,null,null,null,null,null,null,null,null,null,null,null,null,null,null,null,null,null,null,null,null,null,null,null,null,null,null,null,null,null,null,null,null,null,null,"T5","(2) 34\" T-5 21W Lamps (1) Prog.Start or PRS Ballast HLO (.95<BF<1.1)","PRS Elec",2,21,48]
[null,null,null,null,null,null,null,null,null,null,null,null,null,null,null,null,null,null,null,null,null,null,null,null,null,null,null,null,null,null,null,null,null,null,null,null,null,null,null,null,null,null,null,null,null,null,null,null,null,null,null,null,"T5","(2) 34\" T-5 39W HO Lamps (1) Prog Start or PRS Ballast, HLO (.95<BF<1.1)","PRS Elec",2,39,86]
[null,null,null,null,null,null,null,null,null,null,null,null,null,null,null,null,null,null,null,null,null,null,null,null,null,null,null,null,null,null,null,null,null,null,null,null,null,null,null,null,null,null,null,null,null,null,null,null,null,null,null,null,"T5","(2) 45.8\" T-5 28W Lamps (1) Prog Start or PRS Ballast, HLO (.95<BF<1.1)","PRS Elec",2,28,63]
[null,null,null,null,null,null,null,null,null,null,null,null,null,null,null,null,null,null,null,null,null,null,null,null,null,null,null,null,null,null,null,null,null,null,null,null,null,null,null,null,null,null,null,null,null,null,null,null,null,null,null,null,"T5","(2) 45.8\" T-5 49W HO Lamps, (1) Prog Start or RS Ballast, HLO (.95<BF<1.1)","PRS Elec",2,49,98]
[null,null,null,null,null,null,null,null,null,null,null,null,null,null,null,null,null,null,null,null,null,null,null,null,null,null,null,null,null,null,null,null,null,null,null,null,null,null,null,null,null,null,null,null,null,null,null,null,null,null,null,null,"T5","(2) 45.8\" T-5 54W HO Lamps (1) Prog RS Ballast, HLO (.95<BF<1.1)","PRS Elec",2,54,117]
[null,null,null,null,null,null,null,null,null,null,null,null,null,null,null,null,null,null,null,null,null,null,null,null,null,null,null,null,null,null,null,null,null,null,null,null,null,null,null,null,null,null,null,null,null,null,null,null,null,null,null,null,"T5","(2) 57.6\" T-5 35W Lamps (1) Prog Start or PRS Ballast, HLO (.95<BF<1.1)","PRS Elec",2,35,78]
[null,null,null,null,null,null,null,null,null,null,null,null,null,null,null,null,null,null,null,null,null,null,null,null,null,null,null,null,null,null,null,null,null,null,null,null,null,null,null,null,null,null,null,null,null,null,null,null,null,null,null,null,"T5","(2) 57.6\" T-5 80W HO Lamps (1) Prog Start or PRS Ballast, HLO (.95<BF<1.1)","PRS Elec",2,80,180]
[null,null,null,null,null,null,null,null,null,null,null,null,null,null,null,null,null,null,null,null,null,null,null,null,null,null,null,null,null,null,null,null,null,null,null,null,null,null,null,null,null,null,null,null,null,null,null,null,null,null,null,null,"T5","(3) 22\" T-5 14W Lamps (2) Prog Start or PRS Ballasts, HLO (.95<BF<1.1)","PRS Elec",3,14,51]
[null,null,null,null,null,null,null,null,null,null,null,null,null,null,null,null,null,null,null,null,null,null,null,null,null,null,null,null,null,null,null,null,null,null,null,null,null,null,null,null,null,null,null,null,null,null,null,null,null,null,null,null,"T5","(3) 22\" T-5 24W HO Lamps (2) Prog Start or PRS Ballasts, HLO (.95<BF<1.1)","PRS Elec",3,24,79]
[null,null,null,null,null,null,null,null,null,null,null,null,null,null,null,null,null,null,null,null,null,null,null,null,null,null,null,null,null,null,null,null,null,null,null,null,null,null,null,null,null,null,null,null,null,null,null,null,null,null,null,null,"T5","(3) 34\" T-5 21W Lamps (2) Prog Start or PRS Ballasts, HLO (.95<BF<1.1)","PRS Elec",3,21,73]
[null,null,null,null,null,null,null,null,null,null,null,null,null,null,null,null,null,null,null,null,null,null,null,null,null,null,null,null,null,null,null,null,null,null,null,null,null,null,null,null,null,null,null,null,null,null,null,null,null,null,null,null,"T5","(3) 34\" T-5 39W HO Lamps (2) Prog Start or PRS Ballasts, HLO (.95<BF<1.1)","PRS Elec",3,39,130]
[null,null,null,null,null,null,null,null,null,null,null,null,null,null,null,null,null,null,null,null,null,null,null,null,null,null,null,null,null,null,null,null,null,null,null,null,null,null,null,null,null,null,null,null,null,null,null,null,null,null,null,null,"T5","(3) 45.8\" T-5 28W Lamps (2) Prog Start or PRS Ballasts, HLO(.95<BF<1.1)","PRS Elec",3,28,96]
[null,null,null,null,null,null,null,null,null,null,null,null,null,null,null,null,null,null,null,null,null,null,null,null,null,null,null,null,null,null,null,null,null,null,null,null,null,null,null,null,null,null,null,null,null,null,null,null,null,null,null,null,"T5","(3) 45.8\" T-5 49W HO Lamps, (1) Prog Start or RS Ballast, HLO (.95<BF<1.1)","PRS Elec",3,49,147]
[null,null,null,null,null,null,null,null,null,null,null,null,null,null,null,null,null,null,null,null,null,null,null,null,null,null,null,null,null,null,null,null,null,null,null,null,null,null,null,null,null,null,null,null,null,null,null,null,null,null,null,null,"T5","(3) 45.8\" T-5 54W HO Lamps, Prog RS (2) Ballast, HLO (.95<BF<1.1)","PRS Elec",3,54,179]
[null,null,null,null,null,null,null,null,null,null,null,null,null,null,null,null,null,null,null,null,null,null,null,null,null,null,null,null,null,null,null,null,null,null,null,null,null,null,null,null,null,null,null,null,null,null,null,null,null,null,null,null,"T5","(3) 57.6\" T-5 35W Lamps (2) Prog Start or PRS Ballasts, HLO (.95<BF<1.1)","PRS Elec",3,35,118]
[null,null,null,null,null,null,null,null,null,null,null,null,null,null,null,null,null,null,null,null,null,null,null,null,null,null,null,null,null,null,null,null,null,null,null,null,null,null,null,null,null,null,null,null,null,null,null,null,null,null,null,null,"T5","(4) 22\" T-5 14W Lamps (2) Prog Start or PRS Ballasts, HLO (.95<BF<1.1)","PRS Elec",4,14,66]
[null,null,null,null,null,null,null,null,null,null,null,null,null,null,null,null,null,null,null,null,null,null,null,null,null,null,null,null,null,null,null,null,null,null,null,null,null,null,null,null,null,null,null,null,null,null,null,null,null,null,null,null,"T5","(4) 22\" T-5 24W HO Lamps (2) Prog Start or PRS Ballasts, HLO (.95<BF<1.1)","PRS Elec",4,24,104]
[null,null,null,null,null,null,null,null,null,null,null,null,null,null,null,null,null,null,null,null,null,null,null,null,null,null,null,null,null,null,null,null,null,null,null,null,null,null,null,null,null,null,null,null,null,null,null,null,null,null,null,null,"T5","(4) 34\" T-5 39W HO Lamps (2 )Prog.Start or PRS Ballasts, HLO (.95<BF<1.1)","PRS Elec",4,39,172]
[null,null,null,null,null,null,null,null,null,null,null,null,null,null,null,null,null,null,null,null,null,null,null,null,null,null,null,null,null,null,null,null,null,null,null,null,null,null,null,null,null,null,null,null,null,null,null,null,null,null,null,null,"T5","(4) 34\" T-5 39W Lamps (2) Prog Start or PRS Ballasts, HLO (.95<BF<1.1)","PRS Elec",4,21,96]
[null,null,null,null,null,null,null,null,null,null,null,null,null,null,null,null,null,null,null,null,null,null,null,null,null,null,null,null,null,null,null,null,null,null,null,null,null,null,null,null,null,null,null,null,null,null,null,null,null,null,null,null,"T5","(4) 45.8\" T-5 28W Lamps (2) Prog Start or PRS Ballasts, HLO (.95<BF<1.1)","PRS Elec",4,28,126]
[null,null,null,null,null,null,null,null,null,null,null,null,null,null,null,null,null,null,null,null,null,null,null,null,null,null,null,null,null,null,null,null,null,null,null,null,null,null,null,null,null,null,null,null,null,null,null,null,null,null,null,null,"T5","(4) 45.8\" T-5 49W HO Lamps, (2) Prog Start or RS Ballast, HLO (.95<BF<1.1)","PRS Elec",4,49,196]
[null,null,null,null,null,null,null,null,null,null,null,null,null,null,null,null,null,null,null,null,null,null,null,null,null,null,null,null,null,null,null,null,null,null,null,null,null,null,null,null,null,null,null,null,null,null,null,null,null,null,null,null,"T5","(4) 45.8\" T-5 54W HO Lamps, (2) Prog RS Ballast, HLO (.95<BF<1.1)","PRS Elec",4,54,234]
[null,null,null,null,null,null,null,null,null,null,null,null,null,null,null,null,null,null,null,null,null,null,null,null,null,null,null,null,null,null,null,null,null,null,null,null,null,null,null,null,null,null,null,null,null,null,null,null,null,null,null,null,"T5","(4) 45.8\" T-5 54W HO Lamps, (2) Prog RS Ballast, HLO (.95<BF<1.1), alt 1","PRS Elec",4,54,220]
[null,null,null,null,null,null,null,null,null,null,null,null,null,null,null,null,null,null,null,null,null,null,null,null,null,null,null,null,null,null,null,null,null,null,null,null,null,null,null,null,null,null,null,null,null,null,null,null,null,null,null,null,"T5","(5) 45.9\" T-5 54W Lamps (2) Prog.Start or PRS Ballasts, HLO (.95<BF<1.1)","PRS Elec",5,54,296]
[null,null,null,null,null,null,null,null,null,null,null,null,null,null,null,null,null,null,null,null,null,null,null,null,null,null,null,null,null,null,null,null,null,null,null,null,null,null,null,null,null,null,null,null,null,null,null,null,null,null,null,null,"T5","(6) 45.8\" T-5 54W HO Lamps (3) Prog RS Ballast, HLO(.95<BF<1.1)","PRS Elec",6,54,351]
[null,null,null,null,null,null,null,null,null,null,null,null,null,null,null,null,null,null,null,null,null,null,null,null,null,null,null,null,null,null,null,null,null,null,null,null,null,null,null,null,null,null,null,null,null,null,null,null,null,null,null,null,"T5","(6) 45.8\" T-5 54W HO Lamps (3) Prog RS Ballast, HLO(.95<BF<1.1), alt 1","PRS Elec",6,54,354]
[null,null,null,null,null,null,null,null,null,null,null,null,null,null,null,null,null,null,null,null,null,null,null,null,null,null,null,null,null,null,null,null,null,null,null,null,null,null,null,null,null,null,null,null,null,null,null,null,null,null,null,null,"T5","(6) 45.9\" T-5 49W HO Lamps, (3) Prog Start or RS Ballast, HLO (.95<BF<1.1)","PRS Elec",6,49,294]
[null,null,null,null,null,null,null,null,null,null,null,null,null,null,null,null,null,null,null,null,null,null,null,null,null,null,null,null,null,null,null,null,null,null,null,null,null,null,null,null,null,null,null,null,null,null,null,null,null,null,null,null,"T5","(8) 45.8\" T-5 49W HO Lamps, (4) Prog Start or RS Ballast, HLO(.95<BF<1.1)","PRS Elec",8,49,392]
[null,null,null,null,null,null,null,null,null,null,null,null,null,null,null,null,null,null,null,null,null,null,null,null,null,null,null,null,null,null,null,null,null,null,null,null,null,null,null,null,null,null,null,null,null,null,null,null,null,null,null,null,"T5","(10) 45.8\" T-5 54W HO Lamps (5) Prog RS Ballast, HLO (.95<BF<1.1)","PRS Elec",10,54,585]
[null,null,null,null,null,null,null,null,null,null,null,null,null,null,null,null,null,null,null,null,null,null,null,null,null,null,null,null,null,null,null,null,null,null,null,null,null,null,null,null,null,null,null,null,null,null,null,null,null,null,null,null,"T5","(12) 45.8\" T-5 54W HO Lamps (6) Prog RS Ballast, HLO (.95<BF<1.1)",null,12,54,702]

{"sheet":"Lighting SOW","index":7,"n_rows":178,"n_cols":21,"rows_kept":178,"cut":false,"hidden":false,"merged":[[1,0,1,1],[2,0,2,1],[0,3,0,6],[1,2,1,5],[1,7,1,9],[2,2,2,5],[2,7,2,9],[3,0,3,1],[4,0,4,8],[5,19,5,20],[3,2,3,5],[3,7,3,9],[5,10,5,18],[4,19,4,20],[5,0,5,9]]}
["App # (office use only):",null,{"$f":"IF('Applicant Info'!J3=\"\",\"\",'Applicant Info'!J3)","v":""},"Please complete all info in the white spaces below:"]
["Business Name:",null,{"$f":"IF('Applicant Info'!A22=\"\",\"\",'Applicant Info'!A22)","v":""},null,null,null,"Date:",{"$f":"IF('Applicant Info'!K6=\"\", IF('Applicant Info'!K8=\"\",\"\",'Applicant Info'!K8),'Applicant Info'!K6)","v":""}]
["Prepared by:",null,null,null,null,null,"Phone:",{"$f":"IF('Applicant Info'!D27=\"\",\"\",'Applicant Info'!D27)","v":""}]
["Address:",null,{"$f":"IF('Applicant Info'!E29=\"\",\"\",'Applicant Info'!E29 &\" \"&'Applicant Info'!E30 &\" \" &'Applicant Info'!I30 &\" \"&'Applicant Info'!K30)","v":""},null,null,null,"Email:",{"$f":"IF('Applicant Info'!$E$28=\"\",\"\",'Applicant Info'!$E$28)","v":""}]
["Lighting Scope of Work / Building Audit Form",null,null,null,null,null,null,null,null,null,null,null,null,null,null,null,null,null,null,"Annual Savings*"]
["Existing Lighting ",null,null,null,null,null,null,null,null,null,"Proposed Lighting",null,null,null,null,null,null,null,null,"*calculated per figures entered on this form; savings are NOT guaranteed"]
["LOCATION","LOCATION (Description)","Fixture Type ","Lamp or fixture type","Ballast","Lamps per Fixture","Watts per Fixture","Fixture Qty","Total W","Operating Hours per Week","New or Retrofit","Fixture Type ","DLC or Energy Star Qualified?","Fixture or Lamp Model Number","Lamps per Fixture","Watts per Fixture","Fixture Qty","Total W","Occupancy Control?\n(Y / N)","Savings (W)","Savings (kWh)"]
[null,null,null,null,null,null,null,null,{"$f":"IF(B8=\"\",\"\",H8*G8)","v":""},null,null,null,null,null,null,null,null,{"$f":"IF(ISBLANK(M8), \"\",P8*Q8)","v":""},null,null,{"$f":"IF(OR(J8=\"\",T8=\"\"),\"\",J8*T8*52/1000)","v":""}]
[null,null,null,null,null,null,null,null,"",null,null,null,null,null,null,null,null,"",null,null,""]
[null,null,null,null,null,null,null,null,"",null,null,null,null,null,null,null,null,"",null,{"$f":"IF(OR(I10=\"\",R10=\"\"),\"\",I10-R10)","v":""},""]
[null,null,null,null,null,null,null,null,"",null,null,null,null,null,null,null,null,"",null,"",""]
[null,null,null,null,null,null,null,null,"",null,null,null,null,null,null,null,null,"",null,"",""]
[null,null,null,null,null,null,null,null,"",null,null,null,null,null,null,null,null,"",null,"",""]
[null,null,null,null,null,null,null,null,"",null,null,null,null,null,null,null,null,"",null,"",""]
[null,null,null,null,null,null,null,null,"",null,null,null,null,null,null,null,null,"",null,"",""]
[null,null,null,null,null,null,null,null,"",null,null,null,null,null,null,null,null,"",null,"",""]
[null,null,null,null,null,null,null,null,"",null,null,null,null,null,null,null,null,"",null,"",""]
[null,null,null,null,null,null,null,null,"",null,null,null,null,null,null,null,null,"",null,"",""]
[null,null,null,null,null,null,null,null,"",null,null,null,null,null,null,null,null,"",null,"",""]
[null,null,null,null,null,null,null,null,"",null,null,null,null,null,null,null,null,"",null,"",""]
[null,null,null,null,null,null,null,null,"",null,null,null,null,null,null,null,null,"",null,"",""]
[null,null,null,null,null,null,null,null,"",null,null,null,null,null,null,null,null,"",null,"",""]
[null,null,null,null,null,null,null,null,"",null,null,null,null,null,null,null,null,"",null,"",""]
[null,null,null,null,null,null,null,null,"",null,null,null,null,null,null,null,null,"",null,"",""]
[null,null,null,null,null,null,null,null,"",null,null,null,null,null,null,null,null,"",null,"",""]
[null,null,null,null,null,null,null,null,"",null,null,null,null,null,null,null,null,"",null,"",""]
[null,null,null,null,null,null,null,null,"",null,null,null,null,null,null,null,null,"",null,"",""]
[null,null,null,null,null,null,null,null,"",null,null,null,null,null,null,null,null,"",null,"",""]
[null,null,null,null,null,null,null,null,"",null,null,null,null,null,null,null,null,"",null,"",""]
[null,null,null,null,null,null,null,null,"",null,null,null,null,null,null,null,null,"",null,"",""]
[null,null,null,null,null,null,null,null,"",null,null,null,null,null,null,null,null,"",null,"",""]
[null,null,null,null,null,null,null,null,"",null,null,null,null,null,null,null,null,"",null,"",""]
[null,null,null,null,null,null,null,null,"",null,null,null,null,null,null,null,null,"",null,"",""]
[null,null,null,null,null,null,null,null,"",null,null,null,null,null,null,null,null,"",null,"",""]
[null,null,null,null,null,null,null,null,"",null,null,null,null,null,null,null,null,"",null,"",""]
[null,null,null,null,null,null,null,null,"",null,null,null,null,null,null,null,null,"",null,"",""]
[null,null,null,null,null,null,null,null,"",null,null,null,null,null,null,null,null,"",null,"",""]
[null,null,null,null,null,null,null,null,"",null,null,null,null,null,null,null,null,"",null,"",""]
[null,null,null,null,null,null,null,null,"",null,null,null,null,null,null,null,null,"",null,"",""]
[null,null,null,null,null,null,null,null,"",null,null,null,null,null,null,null,null,"",null,"",""]
[null,null,null,null,null,null,null,null,"",null,null,null,null,null,null,null,null,"",null,"",""]
[null,null,null,null,null,null,null,null,"",null,null,null,null,null,null,null,null,"",null,"",""]
[null,null,null,null,null,null,null,null,"",null,null,null,null,null,null,null,null,"",null,"",""]
[null,null,null,null,null,null,null,null,"",null,null,null,null,null,null,null,null,"",null,"",""]
[null,null,null,null,null,null,null,null,"",null,null,null,null,null,null,null,null,"",null,"",""]
[null,null,null,null,null,null,null,null,"",null,null,null,null,null,null,null,null,"",null,"",""]
[null,null,null,null,null,null,null,null,"",null,null,null,null,null,null,null,null,"",null,"",""]
[null,null,null,null,null,null,null,null,"",null,null,null,null,null,null,null,null,"",null,"",""]
[null,null,null,null,null,null,null,null,"",null,null,null,null,null,null,null,null,"",null,"",""]
[null,null,null,null,null,null,null,null,"",null,null,null,null,null,null,null,null,"",null,"",""]
[null,null,null,null,null,null,null,null,"",null,null,null,null,null,null,null,null,"",null,"",""]
[null,null,null,null,null,null,null,null,"",null,null,null,null,null,null,null,null,"",null,"",""]
[null,null,null,null,null,null,null,null,"",null,null,null,null,null,null,null,null,"",null,"",""]
[null,null,null,null,null,null,null,null,"",null,null,null,null,null,null,null,null,"",null,"",""]
[null,null,null,null,null,null,null,null,"",null,null,null,null,null,null,null,null,"",null,"",""]
[null,null,null,null,null,null,null,null,"",null,null,null,null,null,null,null,null,"",null,"",""]
[null,null,null,null,null,null,null,null,"",null,null,null,null,null,null,null,null,"",null,"",""]
[null,null,null,null,null,null,null,null,"",null,null,null,null,null,null,null,null,"",null,"",""]
[null,null,null,null,null,null,null,null,"",null,null,null,null,null,null,null,null,"",null,"",""]
[null,null,null,null,null,null,null,null,"",null,null,null,null,null,null,null,null,"",null,"",""]
[null,null,null,null,null,null,null,null,"",null,null,null,null,null,null,null,null,"",null,"",""]
[null,null,null,null,null,null,null,null,"",null,null,null,null,null,null,null,null,"",null,"",""]
[null,null,null,null,null,null,null,null,"",null,null,null,null,null,null,null,null,"",null,"",""]
[null,null,null,null,null,null,null,null,"",null,null,null,null,null,null,null,null,"",null,"",""]
[null,null,null,null,null,null,null,null,"",null,null,null,null,null,null,null,null,"",null,"",""]
[null,null,null,null,null,null,null,null,"",null,null,null,null,null,null,null,null,"",null,"",""]
[null,null,null,null,null,null,null,null,"",null,null,null,null,null,null,null,null,"",null,"",""]
[null,null,null,null,null,null,null,null,"",null,null,null,null,null,null,null,null,"",null,"",""]
[null,null,null,null,null,null,null,null,"",null,null,null,null,null,null,null,null,"",null,"",""]
[null,null,null,null,null,null,null,null,"",null,null,null,null,null,null,null,null,"",null,"",""]
[null,null,null,null,null,null,null,null,"",null,null,null,null,null,null,null,null,"",null,"",""]
[null,null,null,null,null,null,null,null,"",null,null,null,null,null,null,null,null,"",null,"",""]
[null,null,null,null,null,null,null,null,{"$f":"IF(B73=\"\",\"\",H73*G73)","v":""},null,null,null,null,null,null,null,null,{"$f":"IF(ISBLANK(M73), \"\",P73*Q73)","v":""},null,{"$f":"IF(OR(I73=\"\",R73=\"\"),\"\",I73-R73)","v":""},{"$f":"IF(OR(J73=\"\",T73=\"\"),\"\",J73*T73*52/1000)","v":""}]
[null,null,null,null,null,null,null,null,"",null,null,null,null,null,null,null,null,"",null,"",""]
[null,null,null,null,null,null,null,null,"",null,null,null,null,null,null,null,null,"",null,"",""]
[null,null,null,null,null,null,null,null,"",null,null,null,null,null,null,null,null,"",null,"",""]
[null,null,null,null,null,null,null,null,"",null,null,null,null,null,null,null,null,"",null,"",""]
[null,null,null,null,null,null,null,null,"",null,null,null,null,null,null,null,null,"",null,"",""]
[null,null,null,null,null,null,null,null,"",null,null,null,null,null,null,null,null,"",null,"",""]
[null,null,null,null,null,null,null,null,"",null,null,null,null,null,null,null,null,"",null,"",""]
[null,null,null,null,null,null,null,null,"",null,null,null,null,null,null,null,null,"",null,"",""]
[null,null,null,null,null,null,null,null,"",null,null,null,null,null,null,null,null,"",null,"",""]
[null,null,null,null,null,null,null,null,"",null,null,null,null,null,null,null,null,"",null,"",""]
[null,null,null,null,null,null,null,null,"",null,null,null,null,null,null,null,null,"",null,"",""]
[null,null,null,null,null,null,null,null,"",null,null,null,null,null,null,null,null,"",null,"",""]
[null,null,null,null,null,null,null,null,"",null,null,null,null,null,null,null,null,"",null,"",""]
[null,null,null,null,null,null,null,null,"",null,null,null,null,null,null,null,null,"",null,"",""]
[null,null,null,null,null,null,null,null,null,null,null,null,null,null,null,null,null,""]
[null,null,null,null,null,null,null,null,null,null,null,null,null,null,null,null,null,""]
[null,null,null,null,null,null,null,null,null,null,null,null,null,null,null,null,null,""]
[null,null,null,null,null,null,null,null,null,null,null,null,null,null,null,null,null,""]
[null,null,null,null,null,null,null,null,null,null,null,null,null,null,null,null,null,""]
[null,null,null,null,null,null,null,null,null,null,null,null,null,null,null,null,null,""]
[]
[]
[]
[]
[]
[]
[]
[]
[]
[]
[]
[]
[]
[]
[]
[]
[]
[]
[]
[]
[]
[]
[]
[]
[]
[]
[]
[]
[]
[]
[]
[]
[]
[]
[]
[]
[]
[]
[]
[]
[]
[]
[]
[]
[]
[]
[]
[]
[]
[]
["Room Type","Type",null,"Ballast",null,"Lamps",null,"New or Retro",null,"Control","DLC Energy Star Qualified?"]
["Bathroom","Incandescent",null,null,null,null,null,null,null,null,"DLC"]
["Bedroom","Pin Fluorescent",null,"Magnetic",null,1,null,"New Fixture",null,"YES","EnergyStar"]
["Carport","Screw-in CFL",null,"Electronic",null,2,null,"Retrofit Kit",null,"NO"]
["Closet","Hardwired CFL",null,"Pulse-start",null,3,null,"Lamp to Lamp",null,"Ceiling"]
["Dining Room","2x4 Troffer",null,"N/A",null,4,null,"Remove",null,"Wall"]
["Entry","2x2 Troffer",null,null,null,5]
["Family Room","2' Strip",null,null,null,6]
["Garage","4' Strip",null,null,null,7]
["Gym","6' Strip",null,null,null,8]
["Hall/Entry","8' Strip",null,null,null,9]
["Kitchen","Wallpack",null,null,null,10]
["Laundry Room","Pole"]
["Living Room","HID"]
["Mailbox Area","Exit INC"]
["Office","HighBay T8"]
["Other","HighBay T5"]
["Patio / Balcony","Sign"]
["Pool Area","Other"]
["Storage / Closet"]
["Utility Room"]
[null,"Type2"]
[null,"LED Screw-in"]
[null,"LED T8 Lamp"]
[null,"Pin LED"]
[null,"LED 2x4 Troffer"]
[null,"LED 2x2 Troffer"]
[null,"2' LED Strip"]
[null,"4' LED Strip"]
[null,"6' LED Strip"]
[null,"8' LED Strip"]
[null,"LED Wallpack"]
[null,"LED Pole Fixture"]
[null,"LED Sign"]
[null,"Other"]

{"sheet":"HVAC & Smart Thermostats","index":8,"n_rows":136,"n_cols":21,"rows_kept":136,"cut":false,"hidden":false,"merged":[[27,17,28,17],[28,12,28,14],[30,7,32,7],[19,16,25,16],[19,17,25,17],[20,12,20,14],[42,0,42,7],[33,6,33,7],[33,4,33,5],[27,8,28,8],[29,12,29,14],[30,12,30,14],[30,16,32,16],[30,17,32,17],[31,12,31,14],[32,12,32,14],[22,0,24,2],[26,3,26,5],[27,3,27,5],[31,3,31,5],[22,3,22,5],[44,17,44,20],[46,1,46,8],[34,4,34,5],[34,6,34,7],[36,6,36,7],[36,4,36,5],[35,6,35,7],[35,4,35,5],[44,13,44,16],[40,6,40,7],[8,3,9,5],[58,6,58,8],[58,0,58,5],[53,1,53,3],[54,1,54,3],[55,1,55,3],[54,6,54,8],[55,6,55,8],[56,6,56,8],[30,8,32,8],[37,6,37,7],[38,6,38,7],[46,0,47,0],[19,3,19,5],[23,3,23,5],[47,1,47,3],[47,6,47,8],[39,4,39,5],[45,0,45,8],[41,6,41,7],[39,6,39,7],[43,0,43,7],[41,4,41,5],[40,4,40,5],[0,1,0,5],[37,4,37,5],[38,4,38,5],[12,0,18,2],[19,0,21,2],[17,3,18,5],[13,3,14,5],[29,0,32,2],[29,3,29,5],[30,3,30,5],[32,3,32,5],[27,0,27,2],[28,0,28,2],[15,3,16,5],[25,0,25,2],[26,0,26,2],[4,3,5,5],[20,3,20,5],[21,3,21,5],[25,3,25,5],[2,3,2,5],[28,3,28,5],[24,3,24,5],[6,3,7,5],[73,1,73,8],[67,0,67,8],[61,7,61,8],[61,0,61,6],[62,0,66,8],[71,1,71,8],[72,1,72,8],[69,1,69,8],[59,0,59,5],[59,6,59,8],[70,1,70,8],[68,1,68,8],[56,1,56,3],[57,1,57,3],[53,4,53,5],[54,4,54,5],[55,4,55,5],[57,4,57,5],[53,6,53,8],[57,6,57,8],[56,4,56,5],[1,7,1,8],[19,7,25,7],[19,8,25,8],[3,7,11,7],[3,8,11,8],[12,7,18,7],[12,8,18,8],[3,17,11,17],[4,12,5,14],[4,15,5,15],[6,12,7,14],[6,15,7,15],[8,12,9,14],[8,15,9,15],[10,12,11,14],[10,15,11,15],[21,12,21,14],[2,12,2,14],[3,11,11,11],[3,12,3,14],[12,11,18,11],[19,12,19,14],[13,6,14,6],[22,11,24,11],[19,11,21,11],[17,6,18,6],[12,17,18,17],[13,12,14,14],[13,15,14,15],[15,12,16,14],[15,15,16,15],[17,12,18,14],[17,15,18,15],[15,6,16,6],[47,4,47,5],[48,4,48,5],[49,4,49,5],[50,4,50,5],[51,4,51,5],[52,4,52,5],[3,16,11,16],[29,11,32,11],[3,0,11,2],[3,3,3,5],[4,6,5,6],[10,3,11,5],[6,6,7,6],[8,6,9,6],[10,6,11,6],[12,12,12,14],[12,16,18,16],[22,12,22,14],[23,12,23,14],[24,12,24,14],[25,12,25,14],[26,12,26,14],[27,12,27,14],[12,3,12,5],[48,6,48,8],[49,6,49,8],[50,6,50,8],[51,6,51,8],[52,6,52,8],[48,1,48,3],[49,1,49,3],[50,1,50,3],[51,1,51,3],[52,1,52,3]]}
[null,"HVAC INCENTIVES",null,null,null,null,null,null,null,null,null,"USE THIS SECTION TO REPLACE THE TABLE IN THE SPECS WORKSHEET"]
["Applicant: fill in gray fields at bottom"]
["Equipment Type",null,null,"Size Category",null,null,"Qualifying Efficiency*","Incentive \n(per ton)","Efficiency Bonus",null,null,"Equipment Type","Size Category",null,null,"Qualifying Efficiency*","Incentive \n(per ton)","Efficiency Bonus"]
["Unitary and Split Air Conditioning Systems",null,null,"< 65,000 Btu/h (5.4 tons)",null,null,"14.0 SEER and 12.0 EER",25,15,null,null,"Unitary and Split Air Conditioning Systems","< 65,000 Btu/h (5.4 tons)",null,null,"14.0 SEER and 12.0 EER",25,15]
[null,null,null,"≥ 65,000 Btu/h and \n< 135,000 Btu/h (5.4-11.25 tons)",null,null,"12.0 EER**",null,null,null,null,null,"≥ 65,000 Btu/h and \n< 135,000 Btu/h (5.4-11.25 tons)",null,null,"12.0 EER**"]
[]
[null,null,null,"≥ 135,000 Btu/h and < 240,000 Btu/h (11.25-20 tons)",null,null,"12.0 EER**",null,null,null,null,null,"≥ 135,000 Btu/h and < 240,000 Btu/h (11.25-20 tons)",null,null,"12.0 EER**"]
[]
[null,null,null,"≥ 240,000 Btu/h and < 760,000 Btu/h (20-63 Tons)",null,null,"10.8 EER**",null,null,null,null,null,"≥ 240,000 Btu/h and < 760,000 Btu/h (20-63 Tons)",null,null,"10.8 EER**"]
[]
[null,null,null,"≥ 760,000 Btu/h (> 63 tons)",null,null,"10.2 EER**",null,null,null,null,null,"≥ 760,000 Btu/h (> 63 tons)",null,null,"10.2 EER**"]
[]
["Air Source Heat Pumps",null,null,"< 65,000 Btu/h (5.4 tons)",null,null,"14 SEER and 12.0 EER and 7.7 HSPF",40,15,null,null,"Air Source Heat Pumps","< 65,000 Btu/h (5.4 tons)",null,null,"14 SEER and 12.0 EER and 7.7 HSPF",40,15]
[null,null,null,"≥ 65,000 Btu/h and \n< 135,000 Btu/h (5.4-11.25 tons)",null,null,"11.6 EER** and 3.2 COP",null,null,null,null,null,"≥ 65,000 Btu/h and \n< 135,000 Btu/h (5.4-11.25 tons)",null,null,"11.6 EER** and 3.2 COP"]
[]
[null,null,null,"≥ 135,000 Btu/h and < 240,000 Btu/h (11.25-20 tons)",null,null,"11.2 EER** and 3.1 COP",null,null,null,null,null,"≥ 135,000 Btu/h and < 240,000 Btu/h (11.25-20 tons)",null,null,"11.2 EER** and 3.1 COP"]
[]
[null,null,null,"≥ 240,000 Btu/h and < 760,000 Btu/h (20-63 Tons)",null,null,"10.0 EER** and 3.1 COP",null,null,null,null,null,"≥ 240,000 Btu/h and < 760,000 Btu/h (20-63 Tons)",null,null,"10.0 EER** and 3.1 COP"]
[]
["Chillers: Water-Cooled, Centrifugal***",null,null,"≤ 150 tons",null,null,"0.569 kW/ton-IPLV",20,20,null,null,"Chillers: Water-Cooled, Centrifugal","≤ 150 tons",null,null,"0.569 kW/ton-IPLV",20,20]
[null,null,null,">150 tons and ≤ 300 tons",null,null,"0.507 kW/ton-IPLV",null,null,null,null,null,">150 tons and ≤ 300 tons",null,null,"0.507 kW/ton-IPLV"]
[null,null,null,"> 300 tons",null,null,"0.467 kW/ton-IPLV",null,null,null,null,null,"> 300 tons",null,null,"0.467 kW/ton-IPLV"]
["Chillers: Water Cooled Scroll or Helical-Rotary***",null,null,"≤ 150 tons",null,null,"0.575 kW/ton-IPLV",null,null,null,null,"Chillers: Water Cooled Scroll or Helical-Rotary","≤ 150 tons",null,null,"0.575 kW/ton-IPLV"]
[null,null,null,">150 tons and ≤ 300 tons",null,null,"0.534 kW/ton-IPLV",null,null,null,null,null,">150 tons and ≤ 300 tons",null,null,"0.534 kW/ton-IPLV"]
[null,null,null,"> 300 tons",null,null,"0.486 kW/ton-IPLV",null,null,null,null,null,"> 300 tons",null,null,"0.486 kW/ton-IPLV"]
["Chillers: Water-Cooled Reciprocating, All",null,null,"ALL",null,null,"0.592 kW/ton-IPLV",null,null,null,null,"Chillers: Water-Cooled Reciprocating, All","ALL",null,null,"0.592 kW/ton-IPLV"]
["Chillers: Air-Cooled, All",null,null,"ALL",null,null,"0.867 kW/ton-IPLV",40,20,null,null,"Chillers: Air-Cooled, All","ALL",null,null,"0.867 kW/ton-IPLV",40,20]
["Packaged Terminal AC",null,null,"ALL",null,null,"12.5-(0.213 x Btu/h/1000) EER",50,0,null,null,"Packaged Terminal AC","ALL",null,null,"12.5-(0.213 x Btu/h/1000) EER",50,0]
["Packaged Terminal HP",null,null,"ALL",null,null,"12.3-(0.213 x Btu/h/1000) EER",100,null,null,null,"Packaged Terminal HP","ALL",null,null,"12.3-(0.213 x Btu/h/1000) EER",100]
["Variable Refrigerant Flow HP",null,null,"< 65,000 Btu/h (5.4 tons)",null,null,"15.6 SEER and 8.9 HSPF",40,20,null,null,"Variable Refrigerant Flow HP","< 65,000 Btu/h (5.4 tons)",null,null,"15.6 SEER and 8.9 HSPF",40,20]
[null,null,null,"≥ 65,000 Btu/h and \n< 135,000 Btu/h (5.4-11.25 tons)",null,null,"14.8 IEER and 4.0 COP",40,25,null,null,null,"≥ 65,000 Btu/h and \n< 135,000 Btu/h (5.4-11.25 tons)",null,null,"14.8 IEER and 4.0 COP",40,25]
[null,null,null,"≥ 135,000 Btu/h and < 240,000 Btu/h (11.25-20 tons)",null,null,"14.2 IEER and 3.2 COP",null,null,null,null,null,"≥ 135,000 Btu/h and < 240,000 Btu/h (11.25-20 tons)",null,null,"14.2 IEER and 3.2 COP"]
[null,null,null,"≥ 240,000 Btu/h (20 Tons)",null,null,"12.7 IEER and 3.7 COP",null,null,null,null,null,"≥ 240,000 Btu/h (20 Tons)",null,null,"12.7 IEER and 3.7 COP"]
["Equipment Model","Tons","Efficiency Rating","Quantity","Equipment Type",null,"Size Category",null,"Incentive"]
[null,null,null,null,null,null,null,null,{"$f":"IF(E35=\"\",\"\",IF(LEFT(E35,1)<>\"C\",B35*D35*IF(VLOOKUP(CONCATENATE(E35,G35),$K$108:$N$134,2,FALSE)>C35,0,VLOOKUP(CONCATENATE(E35,G35),$K$108:$N$134,3,FALSE)+(C35-(VLOOKUP(CONCATENATE(E35,G35),$K$108:$N$134,2,FALSE)))*(VLOOKUP(CONCATENATE(E35,G35),$K$108:$N$134,4,FALSE))),B35*D35*IF(VLOOKUP(CONCATENATE(E35,G35),$K$108:$N$134,2,FALSE)<C35,0,VLOOKUP(CONCATENATE(E35,G35),$K$108:$N$134,3,FALSE)+((VLOOKUP(CONCATENATE(E35,G35),$K$108:$N$134,2,FALSE))-C35)*(VLOOKUP(CONCATENATE(E35,G35),$K$108:$N$134,4,FALSE))/0.1)))","v":""}]
[null,null,null,null,null,null,null,null,""]
[null,null,null,null,null,null,null,null,""]
[null,null,null,null,null,null,null,null,""]
[null,null,null,null,null,null,null,null,""]
[null,null,null,null,null,null,null,null,""]
[null,null,null,null,null,null,null,null,""]
[null,null,null,null,null,null,null,null,""]
["Income Qualifier Bonus:",null,null,null,null,null,null,null,{"$f":"IF('Applicant Info'!$P$13=TRUE,SUM(I35:I42)*0.1,0)","v":0}]
["Total HVAC Incentives:",null,null,null,null,null,null,null,{"$f":"SUM(I35:I43)","v":0}]
[null,null,null,null,null,null,null,null,null,null,null,null,null,"Cooling Only",null,null,null,"Heating and Cooling"]
["Smart Thermostats (when replacing Manual or Programmable Thermostats, pre-inspection required)",null,null,null,null,null,null,null,null,null,null,"Thermostats - System Description","Rated Cooling Capacity","Incentive","$/kWh","EUL, years","IMC","Incentive","$/kWh","EUL, years","IMC"]
["Rated Cooling Capacity","Incentive/Unit",null,null,null,null,null,null,null,null,null,"Air Conditioning (Refrigerated Air)",12000,15,0.16557978398206641,10,175,55,0.14069936079734763,10,175]
[null,"DX Cooling (Refrigerated Air)",null,null,"Heat Pump",null,"DX Cooling and Electric Resistance",null,null,null,null,"Heat Pump",18000,25,0.18397753775785161,10,175,75,0.12790850981577059,10,175]
["12000 BTU",15,null,null,55,null,55,null,null,null,null,"Electric Baseboard / Furnace",24000,35,0.19317641464574414,10,175,95,0.12151308432498205,10,175]
["18000 BTU",25,null,null,75,null,75,null,null,null,null,null,30000,45,0.19869574077847976,10,175,115,0.11767582903050894,10,175]
["24000 BTU",35,null,null,95,null,95,null,null,null,null,null,36000,55,0.20237529153363679,10,175,135,0.11511765883419353,10,175]
["30000 BTU",45,null,null,115,null,115]
["36000 BTU",55,null,null,135,null,135]
["System Type","Capacity (Btu/h)",null,null,"Quantity",null,"Incentive"]
[null,null,null,null,null,null,{"$f":"_xlfn.IFNA(IF($A55=$L$47,VLOOKUP($B55,$M$47:$U$51,2,FALSE)*$E55,IF($A55=$L$48,VLOOKUP($B55,$M$47:$U$51,6,FALSE)*$E55,IF($A55=$L$49,VLOOKUP($B55,$M$47:$U$51,6,FALSE)*$E55,\"\"))),\"\")","v":""}]
[null,null,null,null,null,null,{"$f":"_xlfn.IFNA(IF($A56=$L$47,VLOOKUP($B56,$M$47:$U$51,2,FALSE)*$E56,IF($A56=$L$48,VLOOKUP($B56,$M$47:$U$51,6,FALSE)*$E56,IF($A56=$L$49,VLOOKUP($B56,$M$47:$U$51,6,FALSE)*$E56,\"\"))),\"\")","v":""}]
[null,null,null,null,null,null,""]
[null,null,null,null,null,null,""]
["Income Qualifier Bonus:",null,null,null,null,null,{"$f":"IF('Applicant Info'!$P$13=TRUE,SUM(G55:I58)*0.1,0)","v":0}]
["Total Smart Thermostat Incentives:",null,null,null,null,null,{"$f":"IF(SUM(G55:I59)=0,\"\",SUM(G55:I59))","v":""}]
[]
["Total All HVAC Form Incentives",null,null,null,null,null,null,{"$f":"SUM(I44,G60)","v":0}]
["* Use SEER for Unitary and Split Units less than 5.4 tons and EER for units larger than 5.4 tons; values available from CEE 2012 Tier 2; Use IEER for VRF Units; IPLV values based on ASHRAE 90.1 2010; see specifications page for complete list. Attach AHRI Rating Sheet. \n** Units with electric resistance heating must have EER values 0.2 higher than the efficiencies listed.\n*** Unit efficiency for chillers should be provided in kW per ton – IPLV where IPLV = Integrated Part Load Value; values based on ASHRAE 90.1 2010. Attach manufacturer's rating sheet for credit."]
[]
[]
[]
[]
["INSTRUCTIONS TO COMPLETE THIS WORKSHEET:"]
["Equipment Model:","Enter the equipment model as shown on the invoice; provide the specification sheet(s) that accompany the model"]
["Tons:","Enter the equipment tonnage from the AHRI or manufacturer specification sheet"]
["Efficiency Rating:","Enter the equipment efficiency rating from the AHRI or manufacturer specification sheet; for chillers, kW/ton = 12/IPLV EER"]
["Quantity:","Enter the number of units that fit this size and efficiency rating"]
["Equipment Type:","Enter the equipment type from the drop-down menu"]
["Size Category:","Enter the equipment size from the drop-down menu"]
[]
[]
[]
[]
[]
[]
[]
[]
[]
[null,null,null,null,null,null,null,null,null,null,"Unitary and Split Air Conditioning Systems"]
[null,null,null,null,null,null,null,null,null,null,"Air Source Heat Pumps"]
[null,null,null,null,null,null,null,null,null,null,"Chillers: Water-Cooled: Centrifugal"]
[null,null,null,null,null,null,null,null,null,null,"Chillers: Water-Cooled: Scroll or Screw"]
[null,null,null,null,null,null,null,null,null,null,"Chillers: Water-Cooled: Reciprocating"]
[null,null,null,null,null,null,null,null,null,null,"Chillers: Air-Cooled"]
[null,null,null,null,null,null,null,null,null,null,"Packaged Terminal AC"]
[null,null,null,null,null,null,null,null,null,null,"Packaged Terminal HP"]
[null,null,null,null,null,null,null,null,null,null,"Variable Refrigerant Flow HP"]
[]
[]
[null,null,null,null,null,null,null,null,null,null,"< 65,000 Btu/h (5.4 tons)"]
[null,null,null,null,null,null,null,null,null,null,"≥ 65,000 Btu/h and < 135,000 Btu/h (5.4-11.25 tons)"]
[null,null,null,null,null,null,null,null,null,null,"≥ 135,000 Btu/h and < 240,000 Btu/h (11.25-20 tons)"]
[null,null,null,null,null,null,null,null,null,null,"≥ 240,000 Btu/h and < 760,000 Btu/h (20-63 Tons)"]
[null,null,null,null,null,null,null,null,null,null,"≥ 760,000 Btu/h (> 63 tons)"]
[null,null,null,null,null,null,null,null,null,null,"≤ 150 tons"]
[null,null,null,null,null,null,null,null,null,null,">150 tons and ≤ 300 tons"]
[null,null,null,null,null,null,null,null,null,null,"> 300 tons"]
[null,null,null,null,null,null,null,null,null,null,"ALL"]
[]
[]
[]
[]
[null,null,null,null,null,null,null,null,null,null,null,"Level Normal","Incentive","Bonus","Level 2","Level 3","Level 4","Min","Max"]
[]
[null,null,null,null,null,null,null,null,null,null,"Unitary and Split Air Conditioning Systems< 65,000 Btu/h (5.4 tons)",14,25,15,{"$f":"L110+1","v":15},{"$f":"O110+1","v":16},17,0,5.4]
[null,null,null,null,null,null,null,null,null,null,"Unitary and Split Air Conditioning Systems≥ 65,000 Btu/h and < 135,000 Btu/h (5.4-11.25 tons)",12,25,15,{"$f":"L111+1","v":13},14,15]
[null,null,null,null,null,null,null,null,null,null,"Unitary and Split Air Conditioning Systems≥ 135,000 Btu/h and < 240,000 Btu/h (11.25-20 tons)",12,25,15,{"$f":"L112+1","v":13},14,15,11.25,20]
[null,null,null,null,null,null,null,null,null,null,"Unitary and Split Air Conditioning Systems≥ 240,000 Btu/h and < 760,000 Btu/h (20-63 Tons)",10.8,25,15,{"$f":"L110+1","v":15},{"$f":"O110+1","v":16},{"$f":"P110+1","v":17},20,63]
[null,null,null,null,null,null,null,null,null,null,"Unitary and Split Air Conditioning Systems≥ 760,000 Btu/h (> 63 tons)",10.199999999999999,25,15,{"$f":"L114+1","v":11.2},12.2,13.2,63,100000]
[null,null,null,null,null,null,null,null,null,null,"Air Source Heat Pumps< 65,000 Btu/h (5.4 tons)",14,40,15,{"$f":"L115+1","v":15},16,17,0,5.4]
[null,null,null,null,null,null,null,null,null,null,"Air Source Heat Pumps≥ 65,000 Btu/h and < 135,000 Btu/h (5.4-11.25 tons)",11.6,40,15,{"$f":"L116+1","v":12.6},13.6,14.6,5.4,11.25]
[null,null,null,null,null,null,null,null,null,null,"Air Source Heat Pumps≥ 135,000 Btu/h and < 240,000 Btu/h (11.25-20 tons)",11.2,40,15,{"$f":"L117+1","v":12.2},13.2,14.2,11.25,20]
[null,null,null,null,null,null,null,null,null,null,"Air Source Heat Pumps≥ 240,000 Btu/h and < 760,000 Btu/h (20-63 Tons)",10,40,15,{"$f":"L115+1","v":15},{"$f":"O115+1","v":16},{"$f":"P115+1","v":17},20,63]
[null,null,null,null,null,null,null,null,null,null,"Air Source Heat Pumps≥ 760,000 Btu/h (> 63 tons)",10,40,15,{"$f":"L119+1","v":11},{"$f":"O119+1","v":12},13,63,100000]
[null,null,null,null,null,null,null,null,null,null,"Chillers: Water-Cooled: Centrifugal≤ 150 tons",0.56899999999999995,20,20,0.54,{"$f":"ROUNDUP(L120/0.9*0.7,2)","v":0.45},{"$f":"ROUNDUP(L120/0.9*0.6,2)","v":0.38},0,150]
[null,null,null,null,null,null,null,null,null,null,"Chillers: Water-Cooled: Centrifugal>150 tons and ≤ 300 tons",0.50700000000000001,20,20,0.48,0.4,0.34,150,300]
[null,null,null,null,null,null,null,null,null,null,"Chillers: Water-Cooled: Centrifugal> 300 tons",0.46700000000000003,20,20,0.44,0.37,0.32,300,100000]
[null,null,null,null,null,null,null,null,null,null,"Chillers: Water-Cooled: ReciprocatingALL",0.59199999999999997,20,20,0.54,0.47000000000000003,0.4,0,75]
[null,null,null,null,null,null,null,null,null,null,"Chillers: Water-Cooled: Scroll or Screw≤ 150 tons",0.57499999999999996,20,20,0.54,0.45,0.39,75,150]
[null,null,null,null,null,null,null,null,null,null,"Chillers: Water-Cooled: Scroll or Screw>150 tons and ≤ 300 tons",0.53400000000000003,20,20,0.5,0.42,0.36,150,300]
[null,null,null,null,null,null,null,null,null,null,"Chillers: Water-Cooled: Scroll or Screw> 300 tons",0.48599999999999999,20,20,0.46,0.38,0.33,300,100000]
[null,null,null,null,null,null,null,null,null,null,"Chillers: Air-CooledALL",0.86699999999999999,40,20,{"$f":"ROUND(L127/0.9*0.8,2)","v":0.77},0.68,0.57999999999999996,0,150]
[null,null,null,null,null,null,null,null,null,null,"Chillers: Air-Cooled> 150 tons",0.86699999999999999,15,20,{"$f":"ROUND(L128/0.9*0.8,2)","v":0.77},0.68,0.57999999999999996,150,100000]
[null,null,null,null,null,null,null,null,null,null,"Packaged Terminal ACALL",{"$f":"12.5-(0.213*B35*12000/1000)","v":12.5},50,0,{"$f":"L129+1","v":13.5},{"$f":"O129+1","v":14.5},15.5,0,100000]
[null,null,null,null,null,null,null,null,null,null,"Packaged Terminal HPALL",{"$f":"12.3-(0.213*B36*12000/1000)","v":12.3},100,0,13.3,14.3,15.3,0,100000]
[null,null,null,null,null,null,null,null,null,null,"Variable Refrigerant Flow HP≥ 65,000 Btu/h and < 135,000 Btu/h (5.4-11.25 tons)",14.8,40,25,15.8,16.8,17.8,5.4,11.25]
[null,null,null,null,null,null,null,null,null,null,"Variable Refrigerant Flow HP≥ 135,000 Btu/h and < 240,000 Btu/h (11.25-20 tons)",14.2,40,25,15.2,16.2,17.2,11.25,20]
[null,null,null,null,null,null,null,null,null,null,"Variable Refrigerant Flow HP≥ 240,000 Btu/h and < 760,000 Btu/h (20-63 Tons)",12.7,40,25,13.7,14.7,15.7,20,63]
[null,null,null,null,null,null,null,null,null,null,"Variable Refrigerant Flow HP< 65,000 Btu/h (5.4 tons)",15.6,40,25,16.600000000000001,17.600000000000001,18.600000000000001,63,100000]
[]
[null,null,null,null,null,null,null,null,null,null,null,null,null,null,"**used stated values for Level 2, if available.  Else was rounded up to the  10s of watts"]

{"sheet":"Motors, VSDs & Pool Pumps","index":9,"n_rows":118,"n_cols":41,"rows_kept":118,"cut":false,"hidden":false,"merged":[[41,6,41,7],[27,28,27,35],[29,29,33,29],[29,30,33,30],[38,0,39,9],[33,8,33,9],[35,8,35,9],[46,0,46,8],[61,0,61,8],[34,8,34,9],[36,8,36,9],[45,6,45,7],[47,0,47,8],[49,0,49,9],[48,0,48,9],[40,0,40,3],[41,0,41,3],[42,0,42,3],[43,0,43,3],[44,0,44,3],[45,0,45,3],[40,4,40,5],[41,4,41,5],[42,4,42,5],[0,8,0,9],[1,0,1,2],[0,2,0,7],[31,8,31,9],[32,8,32,9],[13,8,13,9],[14,8,14,9],[18,8,18,9],[19,8,19,9],[21,8,21,9],[7,8,7,9],[8,8,8,9],[9,8,9,9],[10,8,10,9],[12,8,12,9],[11,8,11,9],[15,8,15,9],[16,8,16,9],[17,8,17,9],[20,8,20,9],[19,0,19,1],[17,0,17,1],[15,0,15,1],[16,0,16,1],[18,0,18,1],[6,0,6,1],[4,0,5,1],[4,8,5,9],[4,6,4,7],[4,4,4,5],[4,2,4,3],[6,8,6,9],[7,0,7,1],[12,0,12,1],[11,0,11,1],[8,0,8,1],[9,0,9,1],[10,0,10,1],[13,0,13,1],[14,0,14,1],[22,8,22,9],[23,8,23,9],[24,0,24,1],[26,8,26,9],[44,4,44,5],[45,4,45,5],[40,6,40,7],[51,0,51,4],[34,0,34,1],[28,0,28,1],[29,0,29,1],[26,0,26,1],[36,0,36,7],[35,0,35,7],[50,0,50,4],[27,8,27,9],[28,8,28,9],[29,8,29,9],[30,8,30,9],[24,8,24,9],[42,6,42,7],[43,6,43,7],[44,6,44,7],[43,4,43,5],[21,0,21,1],[23,0,23,1],[22,0,22,1],[30,0,30,1],[31,0,31,1],[32,0,32,1],[33,0,33,1],[27,0,27,1],[20,0,20,1],[63,0,64,9],[62,0,62,8],[52,0,52,4],[53,0,53,4],[57,0,57,4],[54,0,54,4],[56,0,56,4],[60,0,60,4],[55,0,55,4],[58,0,58,4],[59,0,59,4]]}
[null,null,"MOTORS & VARIABLE SPEED DRIVES INCENTIVES"]
["Applicant: fill in gray fields at bottom"]
[null,null,null,null,null,null,null,null,null,null,null,null,null,null,null,"Validation"]
["Premium-Efficiency Motors - Minimum Qualifying Efficiencies",null,null,null,null,null,null,null,null,null,null,null,null,null,null,null,null,null,null,null,null,null,null,"Concatenate","Baseline Efficiency"]
["Horsepower",null,"1200 RPM",null,"1800 RPM",null,"3600 RPM",null,"Incentive per 0.1% efficiency improvement over baseline efficiencies",null,null,null,null,null,1,1200,"Open ",null,null,null,1,1200,"Open ","11200Open ",0.82499999999999996]
[null,null,"Open","Closed","Open","Closed","Open","Closed",null,null,null,null,null,null,1.5,1800,"Closed",null,null,null,1.5,1200,"Open ","1.51200Open ",0.86499999999999999]
[1,null,0.82499999999999996,0.85499999999999998,0.77,0.82499999999999996,0.85499999999999998,0.77,2,null,null,null,null,null,2,3600,null,null,null,null,2,1200,"Open ","21200Open ",0.875]
[1.5,null,0.86499999999999999,0.86499999999999999,0.84,0.875,0.86499999999999999,0.84,3,null,null,null,null,null,3,null,null,null,null,null,3,1200,"Open ","31200Open ",0.88500000000000001]
[2,null,0.875,0.86499999999999999,0.85499999999999998,0.88500000000000001,0.86499999999999999,0.85499999999999998,4,null,null,null,null,null,5,null,null,null,null,null,5,1200,"Open ","51200Open ",0.89500000000000002]
[3,null,0.88500000000000001,0.89500000000000002,0.85499999999999998,0.89500000000000002,0.89500000000000002,0.86499999999999999,6,null,null,null,null,null,7.5,null,null,null,null,null,7.5,1200,"Open ","7.51200Open ",0.90200000000000002]
[5,null,0.89500000000000002,0.89500000000000002,0.86499999999999999,0.89500000000000002,0.89500000000000002,0.88500000000000001,10,null,null,null,null,null,10,null,null,null,null,null,10,1200,"Open ","101200Open ",0.91700000000000004]
[7.5,null,0.90200000000000002,0.91,0.88500000000000001,0.91,0.91700000000000004,0.89500000000000002,17,null,null,null,null,null,15,null,null,null,null,null,15,1200,"Open ","151200Open ",0.91700000000000004]
[10,null,0.91700000000000004,0.91700000000000004,0.89500000000000002,0.91,0.91700000000000004,0.90200000000000002,22,null,null,null,null,null,20,null,null,null,null,null,20,1200,"Open ","201200Open ",0.92400000000000004]
[15,null,0.91700000000000004,0.93,0.90200000000000002,0.91700000000000004,0.92400000000000004,0.91,33,null,null,null,null,null,25,null,null,null,null,null,25,1200,"Open ","251200Open ",0.93]
[20,null,0.92400000000000004,0.93,0.91,0.91700000000000004,0.93,0.91,44,null,null,null,null,null,30,null,null,null,null,null,30,1200,"Open ","301200Open ",0.93599999999999994]
[25,null,0.93,0.93599999999999994,0.91700000000000004,0.93,0.93599999999999994,0.91700000000000004,65,null,null,null,null,null,40,null,null,null,null,null,40,1200,"Open ","401200Open ",0.94099999999999995]
[30,null,0.93599999999999994,0.94099999999999995,0.91700000000000004,0.93,0.93599999999999994,0.91700000000000004,77,null,null,null,null,null,50,null,null,null,null,null,50,1200,"Open ","501200Open ",0.94099999999999995]
[40,null,0.94099999999999995,0.94099999999999995,0.92400000000000004,0.94099999999999995,0.94099999999999995,0.92400000000000004,102,null,null,null,null,null,60,null,null,null,null,null,60,1200,"Open ","601200Open ",0.94499999999999995]
[50,null,0.94099999999999995,0.94499999999999995,0.93,0.94099999999999995,0.94499999999999995,0.93,127,null,null,null,null,null,75,null,null,null,null,null,75,1200,"Open ","751200Open ",0.94499999999999995]
[60,null,0.94499999999999995,0.95,0.93599999999999994,0.94499999999999995,0.95,0.93599999999999994,200,null,null,null,null,null,100,null,null,null,null,null,100,1200,"Open ","1001200Open ",0.95]
[75,null,0.94499999999999995,0.95,0.93599999999999994,0.94499999999999995,0.95400000000000007,0.93599999999999994,250,null,null,null,null,null,125,null,null,null,null,null,125,1200,"Open ","1251200Open ",0.95]
[100,null,0.95,0.95400000000000007,0.93599999999999994,0.95,0.95400000000000007,0.94099999999999995,325,null,null,null,null,null,150,null,null,null,null,null,150,1200,"Open ","1501200Open ",0.95400000000000007]
[125,null,0.95,0.95400000000000007,0.94099999999999995,0.95,0.95400000000000007,0.95,400,null,null,null,null,null,200,null,null,null,null,null,200,1200,"Open ","2001200Open ",0.95400000000000007]
[150,null,0.95400000000000007,0.95799999999999996,0.94099999999999995,0.95799999999999996,0.95799999999999996,0.95,475,null,null,null,null,null,null,null,null,null,null,null,1,1200,"Closed","11200Closed",0.85499999999999998]
[200,null,0.95400000000000007,0.95799999999999996,0.95,0.95799999999999996,0.96200000000000008,0.95400000000000007,625,null,null,null,null,null,null,null,null,null,null,null,1.5,1200,"Closed","1.51200Closed",0.86499999999999999]
[null,null,null,null,null,null,null,null,null,null,null,null,null,null,null,null,null,null,null,null,2,1200,"Closed","21200Closed",0.86499999999999999]
["Motor Make/Model",null,"Quantity","Motor Size\n(HP)\n(dropdown)","Motor Speed (rpm)\n(dropdown)","Motor Type\n(open/closed)\n(dropdown)","Baseline  Efficiency","Actual Motor Efficiency","Total\nIncentive",null,null,null,null,null,"Concatenate",null,null,null,null,null,3,1200,"Closed","31200Closed",0.89500000000000002]
[null,null,null,null,null,null,{"$f":"IF(ISNA(VLOOKUP(O28,$X$5:$Y$118,2,0))=TRUE,\"\",(VLOOKUP(O28,$X$5:$Y$118,2,0)))","v":""},null,{"$f":"IF(H28=\"\",\"\",IF(OR(ISNA((H28-G28)*1000*VLOOKUP(D28,$A$7:$I$25,8,0)),H28<G28)=TRUE,\"DNQ\",((H28-G28)*1000*VLOOKUP(D28,$A$7:$I$25,9,0)*C28)))","v":""},null,null,null,null,null,{"$f":"CONCATENATE(D28,E28,F28)","v":""},null,null,null,null,null,5,1200,"Closed","51200Closed",0.89500000000000002,null,null,null,"ENERGYSTAR Pool Pump Assumptions",null,null,null,null,null,null,null,null,"Incentive","$/kWh",null,"ES"]
[null,null,null,null,null,null,{"$f":"IF(ISNA(VLOOKUP(O29,$X$5:$Y$118,2,0))=TRUE,\"\",(VLOOKUP(O29,$X$5:$Y$118,2,0)))","v":""},null,{"$f":"IF(H29=\"\",\"\",IF(OR(ISNA((H29-G29)*1000*VLOOKUP(D29,$A$7:$I$25,8,0)),H29<G29)=TRUE,\"DNQ\",((H29-G29)*1000*VLOOKUP(D29,$A$7:$I$25,9,0)*C29)))","v":""},null,null,null,null,null,{"$f":"CONCATENATE(D29,E29,F29)","v":""},null,null,null,null,null,7.5,1200,"Closed","7.51200Closed",0.91,null,null,null,"Rated Hp","Hours, HighSpeed","Hours, LowSpeed","PFR, HighSpeed","EF, HighSpeed","PFR, LowSpeed","EF, LowSpeed","kWh, ENERGYSTAR",null,null,null,null,"Yes"]
[null,null,null,null,null,null,"",null,"",null,null,null,null,null,"",null,null,null,null,null,10,1200,"Closed","101200Closed",0.91700000000000004,null,null,null,"<1.25",4.3,9.6999999999999993,56,2.3980000000000001,31,5.407,{"$f":"+((AF30*60*$C$13*365)/(AG30*1000))+((AH30*60*$D$13*365)/(AI30*1000))","v":584.11583962839381},null,120,{"$f":"+AL30/AI30","v":22.193452931385242},null,"No"]
[null,null,null,null,null,null,"",null,"",null,null,null,null,null,"",null,null,null,null,null,15,1200,"Closed","151200Closed",0.93,null,null,null,"1.25 < HP <1.75",null,0.20849999999999999,61,2.2669999999999999,31.9,5.4329999999999998,{"$f":"+((AF31*60*$C$13*365)/(AG31*1000))+((AH31*60*$D$13*365)/(AI31*1000))","v":658.28440986648036},null,{"$f":"+AL30+20","v":140},{"$f":"+AL31/AI31","v":25.768452052273148}]
[null,null,null,null,null,null,"",null,"",null,null,null,null,null,"",null,null,null,null,null,20,1200,"Closed","201200Closed",0.93,null,null,null,"1.75 < HP <2.25",null,0.25159999999999999,66.400000000000006,1.9510000000000001,33.299999999999997,5.2210000000000001,811.56424668405839,null,{"$f":"+AL31+20","v":160},{"$f":"+AL32/AI32","v":30.645470216433633}]
[null,null,null,null,null,null,"",null,"",null,null,null,null,null,"",null,null,null,null,null,25,1200,"Closed","251200Closed",0.93599999999999994,null,null,null,"2.25 < HP <2.75",null,0.30809999999999998,66,2.024,34,4.7960000000000003,797.22587391666968,null,180,{"$f":"+AL33/AI33","v":37.531276063386152}]
[null,null,null,null,null,null,"",null,"",null,null,null,null,null,"",null,null,null,null,null,30,1200,"Closed","301200Closed",0.94099999999999995,null,null,null,"2.75 < HP <3.00",null,0.3639,74,1.617,37,4.7640000000000002,1075.0124022702739,null,200,{"$f":"+AL34/AI34","v":41.981528127623847}]
[null,null,null,null,null,null,"",null,"",null,null,null,null,null,"",null,null,null,null,null,40,1200,"Closed","401200Closed",0.94099999999999995]
["Income Qualifier Bonus:",null,null,null,null,null,null,null,{"$f":"IF('Applicant Info'!$P$13=TRUE,SUM(I28:J35)*0.1,0)","v":0},null,null,{"$f":"I37","v":0},null,null,{"$f":"CONCATENATE(D37,E37,F37)","v":""},null,null,null,null,null,50,1200,"Closed","501200Closed",0.94499999999999995]
["Total Motors Incentives:",null,null,null,null,null,null,null,{"$f":"SUM(I28:J36)","v":0},null,null,null,null,null,null,null,null,null,null,null,60,1200,"Closed","601200Closed",0.95]
[null,null,null,null,null,null,null,null,null,null,null,null,null,null,null,null,null,null,null,null,75,1200,"Closed","751200Closed",0.95]
["Pool Pump 0.5 - 3 HP (ENERGY STAR® qualified multi-speed or variable-speed)",null,null,null,null,null,null,null,null,null,null,null,null,null,null,null,null,null,null,null,100,1200,"Closed","1001200Closed",0.95400000000000007]
[null,null,null,null,null,null,null,null,null,null,null,null,null,null,null,null,null,null,null,null,125,1200,"Closed","1251200Closed",0.95400000000000007]
["Horsepower (HP)",null,null,null,"ENERGY STAR®",null,"Incentive/Unit",null,"Quantity","Total Incentive",null,null,null,null,null,null,null,null,null,null,150,1200,"Closed","1501200Closed",0.95799999999999996]
["HP ≤ 1.25",null,null,null,null,null,120,null,null,{"$f":"IF(E42=\"Yes\",$G42*$I42,IF(E42=\"No\",\"DNQ\",IF(OR(E42=\"\",I42=\"\"),0,\"\")))","v":0},null,null,null,null,null,null,null,null,null,null,200,1200,"Closed","2001200Closed",0.95799999999999996]
["1.25 < HP ≤ 1.75",null,null,null,null,null,140,100,null,{"$f":"IF(E43=\"Yes\",$G43*$I43,IF(E43=\"No\",\"DNQ\",IF(OR(E43=\"\",I43=\"\"),0,\"\")))","v":0},null,null,null,null,null,null,null,null,null,null,1,1800,"Open ","11800Open ",0.77]
["1.75 < HP ≤ 2.25",null,160,null,null,null,160,100,null,0,null,null,null,null,null,null,null,null,null,null,1.5,1800,"Open ","1.51800Open ",0.84]
["2.25 < HP ≤ 2.75",null,180,null,null,null,180,100,null,0,null,null,null,null,null,null,null,null,null,null,2,1800,"Open ","21800Open ",0.85499999999999998]
["2.75 < HP ≤ 3.0",null,200,null,null,null,200,100,null,0,null,null,null,null,null,null,null,null,null,null,3,1800,"Open ","31800Open ",0.85499999999999998]
["Income Qualifier Bonus:",null,null,null,null,null,null,null,null,{"$f":"IF('Applicant Info'!$P$13=TRUE,SUM(J42:J46)*0.2,0)","v":0},null,null,null,null,null,null,null,null,null,null,5,1800,"Open ","51800Open ",0.86499999999999999]
["Total Pool Pumps Incentive:",null,null,null,null,null,null,null,null,{"$f":"SUM(J42:J47)","v":0},null,null,null,null,null,null,null,null,null,null,7.5,1800,"Open ","7.51800Open ",0.88500000000000001]
[null,null,null,null,null,null,null,null,null,null,null,null,null,null,null,null,null,null,null,null,10,1800,"Open ","101800Open ",0.89500000000000002]
["Variable Speed Drive on HVAC Motors Incentives (when adding VSDs where none existed before)",null,null,null,null,null,null,null,null,null,null,null,null,null,null,null,null,null,null,null,15,1800,"Open ","151800Open ",0.90200000000000002]
["VSD Application Description",null,null,null,null,"VSD Size (HP)","Incentive\nUnit","Incentive/ Unit*","Quantity","Incentive ($100/hp)","Recommended increase","kWh","Cost","New",null,null,null,null,null,null,20,1800,"Open ","201800Open ",0.91]
[null,null,null,null,null,null,"per HP",100,null,{"$f":"IF($A52=\"\",\"\",$F52*$I52*$H52)","v":""},70,{"$f":"1757*F52*I52","v":0},{"$f":"J52/L52","v":{"$error":"#VALUE!"}},{"$f":"P55/L52","v":{"$error":"#DIV/0!"}},null,null,null,null,null,null,25,1800,"Open ","251800Open ",0.91700000000000004]
[null,null,null,null,null,null,"per HP",100,null,{"$f":"F53*I53*H53","v":0},70,null,null,null,null,null,null,null,null,null,30,1800,"Open ","301800Open ",0.91700000000000004]
[null,null,null,null,null,null,"per HP",100,null,0,70,null,null,null,null,null,null,null,null,null,40,1800,"Open ","401800Open ",0.92400000000000004]
[null,null,null,null,null,null,"per HP",100,null,0,70,null,null,null,null,{"$f":"F52*I52*K52","v":0},null,null,null,null,50,1800,"Open ","501800Open ",0.93]
[null,null,null,null,null,null,"per HP",100,null,0,70,null,null,null,null,null,null,null,null,null,60,1800,"Open ","601800Open ",0.93599999999999994]
[null,null,null,null,null,null,"per HP",100,null,0,70,null,null,null,null,null,null,null,null,null,75,1800,"Open ","751800Open ",0.93599999999999994]
[null,null,null,null,null,null,"per HP",100,null,0,70,null,null,null,null,null,null,null,null,null,100,1800,"Open ","1001800Open ",0.93599999999999994]
[null,null,null,null,null,null,"per HP",100,null,0,70,null,null,null,null,null,null,null,null,null,125,1800,"Open ","1251800Open ",0.94099999999999995]
[null,null,null,null,null,null,"per HP",100,null,0,70,null,null,null,null,null,null,null,null,null,150,1800,"Open ","1501800Open ",0.94099999999999995]
[null,null,null,null,null,null,"per HP",100,null,0,70,null,null,null,null,null,null,null,null,null,200,1800,"Open ","2001800Open ",0.95]
["Income Qualifier Bonus:",null,null,null,null,null,null,null,null,{"$f":"IF('Applicant Info'!$P$13=TRUE,SUM(J52:J61)*0.1,0)","v":0},null,{"$f":"J63","v":0},null,null,null,null,null,null,null,null,1,1800,"Closed","11800Closed",0.82499999999999996]
["Total VSD Incentives:",null,null,null,null,null,null,null,null,{"$f":"SUM(J52:J62)","v":0},null,{"$f":"L36+L62","v":0},null,null,null,null,null,null,null,null,1.5,1800,"Closed","1.51800Closed",0.875]
["*The variable speed drive incentive is calculated based on the horsepower (HP) that is actually being controlled, not necessarily the size of the VSD. This section for HVAC only; for VSD's on non-HVAC equipment, use the Custom tab.",null,null,null,null,null,null,null,null,null,null,null,null,null,null,null,null,null,null,null,2,1800,"Closed","21800Closed",0.88500000000000001]
[null,null,null,null,null,null,null,null,null,null,null,null,null,null,null,null,null,null,null,null,3,1800,"Closed","31800Closed",0.89500000000000002]
[null,null,null,null,null,null,null,null,null,null,null,null,null,null,null,null,null,null,null,null,5,1800,"Closed","51800Closed",0.89500000000000002]
[null,null,null,null,null,null,null,null,null,null,null,null,null,null,null,null,null,null,null,null,7.5,1800,"Closed","7.51800Closed",0.91]
[null,null,null,null,null,null,null,null,null,null,null,null,null,null,null,null,null,null,null,null,10,1800,"Closed","101800Closed",0.91]
[null,null,null,null,null,null,null,null,null,null,null,null,null,null,null,null,null,null,null,null,15,1800,"Closed","151800Closed",0.91700000000000004]
[null,null,null,null,null,null,null,null,null,null,null,null,null,null,null,null,null,null,null,null,20,1800,"Closed","201800Closed",0.91700000000000004]
[null,null,null,null,null,null,null,null,null,null,null,null,null,null,null,null,null,null,null,null,25,1800,"Closed","251800Closed",0.93]
[null,null,null,null,null,null,null,null,null,null,null,null,null,null,null,null,null,null,null,null,30,1800,"Closed","301800Closed",0.93]
[null,null,null,null,null,null,null,null,null,null,null,null,null,null,null,null,null,null,null,null,40,1800,"Closed","401800Closed",0.94099999999999995]
[null,null,null,null,null,null,null,null,null,null,null,null,null,null,null,null,null,null,null,null,50,1800,"Closed","501800Closed",0.94099999999999995]
[null,null,null,null,null,null,null,null,null,null,null,null,null,null,null,null,null,null,null,null,60,1800,"Closed","601800Closed",0.94499999999999995]
[null,null,null,null,null,null,null,null,null,null,null,null,null,null,null,null,null,null,null,null,75,1800,"Closed","751800Closed",0.94499999999999995]
[null,null,null,null,null,null,null,null,null,null,null,null,null,null,null,null,null,null,null,null,100,1800,"Closed","1001800Closed",0.95]
[null,null,null,null,null,null,null,null,null,null,null,null,null,null,null,null,null,null,null,null,125,1800,"Closed","1251800Closed",0.95]
[null,null,null,null,null,null,null,null,null,null,null,null,null,null,null,null,null,null,null,null,150,1800,"Closed","1501800Closed",0.95799999999999996]
[null,null,null,null,null,null,null,null,null,null,null,null,null,null,null,null,null,null,null,null,200,1800,"Closed","2001800Closed",0.95799999999999996]
[null,null,null,null,null,null,null,null,null,null,null,null,null,null,null,null,null,null,null,null,1,3600,"Open ","13600Open ",0.85499999999999998]
[null,null,null,null,null,null,null,null,null,null,null,null,null,null,null,null,null,null,null,null,1.5,3600,"Open ","1.53600Open ",0.86499999999999999]
[null,null,null,null,null,null,null,null,null,null,null,null,null,null,null,null,null,null,null,null,2,3600,"Open ","23600Open ",0.86499999999999999]
[null,null,null,null,null,null,null,null,null,null,null,null,null,null,null,null,null,null,null,null,3,3600,"Open ","33600Open ",0.89500000000000002]
[null,null,null,null,null,null,null,null,null,null,null,null,null,null,null,null,null,null,null,null,5,3600,"Open ","53600Open ",0.89500000000000002]
[null,null,null,null,null,null,null,null,null,null,null,null,null,null,null,null,null,null,null,null,7.5,3600,"Open ","7.53600Open ",0.91700000000000004]
[null,null,null,null,null,null,null,null,null,null,null,null,null,null,null,null,null,null,null,null,10,3600,"Open ","103600Open ",0.91700000000000004]
[null,null,null,null,null,null,null,null,null,null,null,null,null,null,null,null,null,null,null,null,15,3600,"Open ","153600Open ",0.92400000000000004]
[null,null,null,null,null,null,null,null,null,null,null,null,null,null,null,null,null,null,null,null,20,3600,"Open ","203600Open ",0.93]
[null,null,null,null,null,null,null,null,null,null,null,null,null,null,null,null,null,null,null,null,25,3600,"Open ","253600Open ",0.93599999999999994]
[null,null,null,null,null,null,null,null,null,null,null,null,null,null,null,null,null,null,null,null,30,3600,"Open ","303600Open ",0.93599999999999994]
[null,null,null,null,null,null,null,null,null,null,null,null,null,null,null,null,null,null,null,null,40,3600,"Open ","403600Open ",0.94099999999999995]
[null,null,null,null,null,null,null,null,null,null,null,null,null,null,null,null,null,null,null,null,50,3600,"Open ","503600Open ",0.94499999999999995]
[null,null,null,null,null,null,null,null,null,null,null,null,null,null,null,null,null,null,null,null,60,3600,"Open ","603600Open ",0.95]
[null,null,null,null,null,null,null,null,null,null,null,null,null,null,null,null,null,null,null,null,75,3600,"Open ","753600Open ",0.95400000000000007]
[null,null,null,null,null,null,null,null,null,null,null,null,null,null,null,null,null,null,null,null,100,3600,"Open ","1003600Open ",0.95400000000000007]
[null,null,null,null,null,null,null,null,null,null,null,null,null,null,null,null,null,null,null,null,125,3600,"Open ","1253600Open ",0.95400000000000007]
[null,null,null,null,null,null,null,null,null,null,null,null,null,null,null,null,null,null,null,null,150,3600,"Open ","1503600Open ",0.95799999999999996]
[null,null,null,null,null,null,null,null,null,null,null,null,null,null,null,null,null,null,null,null,200,3600,"Open ","2003600Open ",0.96200000000000008]
[null,null,null,null,null,null,null,null,null,null,null,null,null,null,null,null,null,null,null,null,1,3600,"Closed","13600Closed",0.77]
[null,null,null,null,null,null,null,null,null,null,null,null,null,null,null,null,null,null,null,null,1.5,3600,"Closed","1.53600Closed",0.84]
[null,null,null,null,null,null,null,null,null,null,null,null,null,null,null,null,null,null,null,null,2,3600,"Closed","23600Closed",0.85499999999999998]
[null,null,null,null,null,null,null,null,null,null,null,null,null,null,null,null,null,null,null,null,3,3600,"Closed","33600Closed",0.86499999999999999]
[null,null,null,null,null,null,null,null,null,null,null,null,null,null,null,null,null,null,null,null,5,3600,"Closed","53600Closed",0.88500000000000001]
[null,null,null,null,null,null,null,null,null,null,null,null,null,null,null,null,null,null,null,null,7.5,3600,"Closed","7.53600Closed",0.89500000000000002]
[null,null,null,null,null,null,null,null,null,null,null,null,null,null,null,null,null,null,null,null,10,3600,"Closed","103600Closed",0.90200000000000002]
[null,null,null,null,null,null,null,null,null,null,null,null,null,null,null,null,null,null,null,null,15,3600,"Closed","153600Closed",0.91]
[null,null,null,null,null,null,null,null,null,null,null,null,null,null,null,null,null,null,null,null,20,3600,"Closed","203600Closed",0.91]
[null,null,null,null,null,null,null,null,null,null,null,null,null,null,null,null,null,null,null,null,25,3600,"Closed","253600Closed",0.91700000000000004]
[null,null,null,null,null,null,null,null,null,null,null,null,null,null,null,null,null,null,null,null,30,3600,"Closed","303600Closed",0.91700000000000004]
[null,null,null,null,null,null,null,null,null,null,null,null,null,null,null,null,null,null,null,null,40,3600,"Closed","403600Closed",0.92400000000000004]
[null,null,null,null,null,null,null,null,null,null,null,null,null,null,null,null,null,null,null,null,50,3600,"Closed","503600Closed",0.93]
[null,null,null,null,null,null,null,null,null,null,null,null,null,null,null,null,null,null,null,null,60,3600,"Closed","603600Closed",0.93599999999999994]
[null,null,null,null,null,null,null,null,null,null,null,null,null,null,null,null,null,null,null,null,75,3600,"Closed","753600Closed",0.93599999999999994]
[null,null,null,null,null,null,null,null,null,null,null,null,null,null,null,null,null,null,null,null,100,3600,"Closed","1003600Closed",0.94099999999999995]
[null,null,null,null,null,null,null,null,null,null,null,null,null,null,null,null,null,null,null,null,125,3600,"Closed","1253600Closed",0.95]
[null,null,null,null,null,null,null,null,null,null,null,null,null,null,null,null,null,null,null,null,150,3600,"Closed","1503600Closed",0.95]
[null,null,null,null,null,null,null,null,null,null,null,null,null,null,null,null,null,null,null,null,200,3600,"Closed","2003600Closed",0.95400000000000007]

{"sheet":"Windows","index":10,"n_rows":19,"n_cols":39,"rows_kept":19,"cut":false,"hidden":false,"merged":[[1,0,1,2],[5,27,6,27],[4,23,4,25],[18,0,18,9],[3,14,3,17],[16,0,16,8],[15,28,15,31],[5,17,5,20],[17,0,17,8],[4,16,4,21],[5,23,6,23],[5,24,6,24],[5,25,6,25],[5,26,6,26]]}
[]
["Applicant: fill in gray fields"]
["Window Incentive (MUST satisfy Energy Star® Criteria; please see specs below)"]
["Region*","Shading Type    (Old Windows)","U-Factor Btu/(h sq.ft.°F)","Solar Heat Gain Coefficient (SHGC)","Area of Window Film [ft2]","Incentive/ft2","ENERGY STAR® ","Cooling Type ","Heating Type","Incentive","$/kWh","ES Requirement","Base U-Factor","Base SHGC",null,null,null,null,null,null,null,null,null,null,null,null,null,null,null,null,null,null,null,null,null,null,null,null,"Region"]
[null,null,null,null,null,{"$f":"_xlfn.IFNA(IF($B5=\"Single-pane\",VLOOKUP($A5,$P$8:$Q$10,2,FALSE),IF(OR($A5=\"\",$B5=\"\"),\"\",VLOOKUP($A5,$P$16:$Q$18,2,FALSE))),\"\")","v":""},{"$f":"IF(OR(A5=\"\",B5=\"\",C5=\"\",D5=\"\"),\"\",L5)","v":""},null,null,{"$f":"IF(OR($C5=\"\",$D5=\"\",$E5=\"\",$G5=\"\",$H5=\"\",$I5=\"\"),\"\",IF(OR($L5=\"Do Not Qualify\",$H5=\"NO COOLING\"),\"DNQ\",$F5*$E5))","v":""},{"$f":"IFERROR(J5/AI5,\"\")","v":""},{"$f":"_xlfn.IFNA(IF(AND(OR($C5<=0.27,AND($C5<=0.28,$D5>=0.32),AND($C5<=0.28,$D5>=0.37),AND($C5<=0.29,$D5>=0.37),AND($C5<=0.3,$D5>=0.42)),$A5=\"Santa Fe\",$C5=\"\"=FALSE),\"Qualified Product\",IF(AND(OR($A5=\"Albuquerque\",$A5=\"Las Cruces\"),$C5<=$M5,$D5<=$N5,$C5=\"\"=FALSE,$D5=\"\"=FALSE),\"Qualified Product\",\"Do Not Qualify\")),\"\")","v":"Do Not Qualify"},{"$f":"_xlfn.IFNA(VLOOKUP($A5,$X$8:$Z$13,2,FALSE),\"\")","v":""},{"$f":"_xlfn.IFNA(VLOOKUP($A5,$X$8:$Z$13,3,FALSE),\"\")","v":""},null,null,"Annual kWh Savings: Energy Star Windows Replacing Single-pane Windows",null,null,null,null,null,null,"Windows MUST satisfy ENERGY STAR criteria Below",null,null,null,null,null,null,null,null,null,null,null,null,null,null,"North -NM"]
[null,null,null,null,null,"",{"$f":"IF(OR(A6=\"\",B6=\"\",C6=\"\",D6=\"\"),\"\",L6)","v":""},null,null,"","",{"$f":"_xlfn.IFNA(IF(AND(OR($C6<=0.27,AND($C6<=0.28,$D6>=0.32),AND($C6<=0.28,$D6>=0.37),AND($C6<=0.29,$D6>=0.37),AND($C6<=0.3,$D6>=0.42)),$A6=\"Santa Fe\",$C6=\"\"=FALSE),\"Qualified Product\",IF(AND(OR($A6=\"Albuquerque\",$A6=\"Las Cruces\"),$C6<=$M6,$D6<=$N6,$C6=\"\"=FALSE,$D6=\"\"=FALSE),\"Qualified Product\",\"Do Not Qualify\")),\"\")","v":"Do Not Qualify"},{"$f":"_xlfn.IFNA(VLOOKUP($A6,$X$8:$Z$13,2,FALSE),\"\")","v":""},{"$f":"_xlfn.IFNA(VLOOKUP($A6,$X$8:$Z$13,3,FALSE),\"\")","v":""},null,null,null,"$/kWh",null,null,null,null,null,"Climate Zone","U-Factor Btu/(h sq.ft. F)","Solar Heat Gain Coefficient (SHGC)",null,null,null,null,null,null,null,null,null,null,null,null,"Central -NM"]
[null,null,null,null,null,"","",null,null,{"$f":"IF(OR($C7=\"\",$D7=\"\",$E7=\"\",$G7=\"\",$H7=\"\",$I7=\"\"),\"\",IF(OR($L7=\"Do Not Qualify\",$H7=\"NO COOLING\"),\"DNQ\",$F7*$E7))","v":""},"","Do Not Qualify","","",null,"Climate Zone","Incentive per Sq. Ft.","Refrigerated Air","Evap Cooling","Electric Resistance + Evap","Heat Pump",null,null,null,null,null,null,null,null,null,null,null,null,null,null,null,null,null,"South -NM"]
[null,null,null,null,null,"","",null,null,"","","Do Not Qualify","","",null,"Albuquerque",1,0.17574692442882248,0.52356020942408377,0.31948881789137379,0.1529051987767584,null,null,"Albuquerque",0.3,0.4]
[null,null,null,null,null,"","",null,null,"","","Do Not Qualify","","",null,"Santa Fe",1,0.47846889952153115,1.4285714285714286,0.3012048192771084,0.25510204081632654,null,null,"Santa Fe",0.27]
[null,null,null,null,null,"","",null,null,"","","Do Not Qualify","","",null,"Las Cruces",1,0.17921146953405018,0.53475935828876997,0.32467532467532467,0.1557632398753894,null,null,"Santa Fe",0.28000000000000003,0.32]
[null,null,null,null,null,"","",null,null,"","","Do Not Qualify","","",null,null,null,null,null,null,null,null,null,"Santa Fe",0.28999999999999998,0.37]
[null,null,null,null,null,"","",null,null,"","","Do Not Qualify","","",null,null,null,null,null,null,null,null,null,"Santa Fe",0.3,0.42]
[null,null,null,null,null,"","",null,null,"","","Do Not Qualify","","",null,null,"Annual kWh Savings: Energy Star Windows Replacing Double-pane Windows",null,null,null,null,null,null,"Las Cruces",0.3,0.25]
[null,null,null,null,null,"","",null,null,"",{"$f":"IFERROR(J14/AI14,\"\")","v":""},"Do Not Qualify","","",null,null,null,"$/kWh"]
[null,null,null,null,null,"","",null,null,"","","Do Not Qualify","","",null,"Climate Zone","Incentive per Sq. Ft.","Refrigerated Air","Evap Cooling","Electric Resistance + Evap","Heat Pump"]
[null,null,null,null,null,"","",null,null,"","","Do Not Qualify","","",null,"Albuquerque",0.5,0.11737089201877934,0.3401360544217687,0.4,0.11210762331838565,null,"Energy Star?","Shading Coefficient","Region","Cooling Type","Heating Type"]
["Income Qualifier Bonus:",null,null,null,null,null,null,null,null,{"$f":"IF('Applicant Info'!$P$13=TRUE,SUM(J5:J16)*0.1,0)","v":0},null,null,null,null,null,"Santa Fe",0.5,0.32051282051282048,0.92592592592592582,8.3333333333333268,0.25252525252525254,null,"Yes","Single-pane","Albuquerque","Refrigerated Air","Gas Heat"]
["Total Window Film Incentives:",null,null,null,null,null,null,null,null,{"$f":"SUM($J$5:$J$17)","v":0},null,null,null,null,null,"Las Cruces",0.5,0.11961722488038279,0.38167938931297707,0.4587155963302752,0.11415525114155252,null,"No","Double-pane","Santa Fe","Evap Cooling","Electric Resistance"]
["*Please refer to spec sheets for information about region and Energy Star® Criteria.",null,null,null,null,null,null,null,null,null,null,null,null,null,null,null,null,null,null,null,null,null,null,null,"Las Cruces","NO COOLING","Heat Pump"]

{"sheet":"Custom","index":11,"n_rows":63,"n_cols":12,"rows_kept":63,"cut":false,"hidden":false,"merged":[[0,3,0,5],[1,0,1,2],[0,8,0,9],[20,4,20,5],[16,7,24,7],[13,0,13,9],[15,0,15,3],[15,4,15,6],[14,0,14,9],[15,8,15,9],[23,4,23,6],[24,4,24,5],[16,0,24,3],[12,4,12,5],[4,8,12,9],[2,0,2,9],[50,0,50,7],[50,8,50,9],[4,0,12,3],[16,8,24,9],[17,4,17,6],[22,4,22,5],[28,4,28,5],[19,4,19,6],[21,4,21,6],[16,4,16,5],[18,4,18,5],[40,0,48,3],[36,4,36,5],[25,0,25,9],[31,4,31,6],[33,4,33,6],[3,0,3,3],[3,4,3,6],[3,8,3,9],[4,7,12,7],[9,4,9,6],[5,4,5,6],[7,4,7,6],[4,4,4,5],[6,4,6,5],[8,4,8,5],[10,4,10,5],[11,4,11,6],[27,0,27,3],[27,4,27,6],[27,8,27,9],[26,0,26,9],[30,4,30,5],[28,8,36,9],[29,4,29,6],[32,4,32,5],[28,7,36,7],[40,7,48,7],[40,8,48,9],[42,4,42,5],[44,4,44,5],[28,0,36,3],[34,4,34,5],[35,4,35,6],[59,0,60,9],[39,0,39,3],[39,4,39,6],[39,8,39,9],[37,0,37,9],[38,0,38,9],[51,8,51,9],[41,4,41,6],[43,4,43,6],[45,4,45,6],[48,4,48,5],[46,4,46,5],[47,4,47,6],[51,0,51,7],[49,0,49,9],[40,4,40,5]]}
[null,null,null,"CUSTOM INCENTIVES"]
["Applicant: fill in gray fields",null,null,"*Please attach supporting documentation as described in the specifications*"]
["Item 1"]
["Description",null,null,null,null,null,null,"$/kWh","Subtotal"]
[null,null,null,null,"Annual kWh Savings",null,null,0.08,{"$f":"IF(AND(G5>0,G11>0,G13>0),MIN(G5*H5,G11,0.5*G13),0)","v":0}]
[]
[null,null,null,null,"kW Savings"]
[]
[null,null,null,null,"Annual Operating Hours",null,null,null,null,null,null,{"$f":"IF(ISNUMBER(I5)=TRUE,I5,0)","v":0}]
[]
[null,null,null,null,"Incremental Measure Cost"]
[]
[null,null,null,null,"Total Project Cost"]
[]
["Item 2"]
["Description",null,null,null,null,null,null,"$/kWh","Subtotal"]
[null,null,null,null,"Annual kWh Savings",null,null,0.08,{"$f":"IF(AND(G17>0,G23>0,G25>0),MIN(G17*H17,G23,0.5*G25),0)","v":0}]
[]
[null,null,null,null,"kW Savings"]
[]
[null,null,null,null,"Annual Operating Hours",null,null,null,null,null,null,{"$f":"IF(ISNUMBER(I17)=TRUE,I17,0)","v":0}]
[]
[null,null,null,null,"Incremental Measure Cost"]
[]
[null,null,null,null,"Total Project Cost"]
[]
["Item 3"]
["Description",null,null,null,null,null,null,"$/kWh","Subtotal"]
[null,null,null,null,"Annual kWh Savings",null,null,0.08,{"$f":"IF(AND(G29>0,G35>0,G37>0),MIN(G29*H29,G35,0.5*G37),0)","v":0}]
[]
[null,null,null,null,"kW Savings"]
[]
[null,null,null,null,"Annual Operating Hours",null,null,null,null,null,null,{"$f":"IF(ISNUMBER(I29)=TRUE,I29,0)","v":0}]
[]
[null,null,null,null,"Incremental Measure Cost"]
[]
[null,null,null,null,"Total Project Cost"]
[]
["Item 4"]
["Description",null,null,null,null,null,null,"$/kWh","Subtotal"]
[null,null,null,null,"Annual kWh Savings",null,null,0.08,{"$f":"IF(AND(G41>0,G47>0,G49>0),MIN(G41*H41,G47,0.5*G49),0)","v":0}]
[]
[null,null,null,null,"kW Savings"]
[]
[null,null,null,null,"Annual Operating Hours",null,null,null,null,null,null,{"$f":"IF(ISNUMBER(I41)=TRUE,I41,0)","v":0}]
[]
[null,null,null,null,"Incremental Measure Cost"]
[]
[null,null,null,null,"Total Project Cost"]
[]
["Income Qualifier Bonus:",null,null,null,null,null,null,null,{"$f":"IF('Applicant Info'!$P$13=TRUE,L51*0.1,0)","v":0},null,null,{"$f":"L9+L21+L33+L45","v":0}]
["Total Custom Incentives:",null,null,null,null,null,null,null,{"$f":"SUM(I51:L51)","v":0}]
[]
["Incremental measure cost (IMC) is the difference between the cost of an energy-efficient piece of equipment and a new"]
["standard-efficiency piece of equipment. The IMC of energy-efficient equipment installed before an old piece of equipment"]
["reaches the end of its life (such as lighting equipment) generally is equal to the total cost of the energy-efficient equipment,"]
["including labor. The IMC of energy-efficient equipment installed at or near the end of life of an old piece of equipment (such as"]
["chillers, motors, air-conditioning units) generally is equal to the difference in cost between the energy-efficient equipment and"]
["the new standard-efficiency piece of equipment, not including labor."]
["The rebate will be shown as 100% of the Incremental Measure Cost or 50% of the Total Project Cost. All Custom measures subject to approval using the Utility Cost Test (UCT). Submit calculations and costs for assistance."]
[]
[]
["Custom Specifications"]